Workbook

Sheet FORS
A4: STATISTIKK
A7: FOR
A10: MÅLEVIRKSOMHETEN
A14: 2020
A15: NB: Alle timefortjenester er før eventuelt trekk av målegebyr | I15: Passord dokumentbeskyttelse:<Retur>

Sheet ÅRSTOT
A2: ="MÅLESTATISTIKK ALLE BYGGFAG - 1. HALVÅR "&FORS!$A$14 -> MÅLESTATISTIKK ALLE BYGGFAG - 1. HALVÅR 2020
B4: Målesum i kroner | D4: Timer | F4: ="Fortjeneste 1. halvår "&FORS!$A$14-0 -> Fortjeneste 1. halvår 2020 | I4: =" 1. halvår "&FORS!$A$14-1 -> 1. halvår 2019 | L4: Endringer i %
B5: Innmålt m/ | C5: Innmålt m/ | D5: Innmålt m/ | E5: Innmålt m/ | F5: Innmålt m/ | G5: Innmålt m/ | H5: Gjennom- | I5: Innmålt m/ | J5: Innmålt m/ | K5: Gjen.snitt | L5: Innmålt m/ | M5: Gjen.snitt
B6: overskudd | C6: underskudd | D6: overskudd | E6: underskudd | F6: overskudd | G6: underskudd | H6: snitt | I6: overskudd | J6: underskudd | K6: fortjeneste | L6: overskudd | M6: fortjeneste
A7: Agder | B7: =SUMIFS(BETONG!B$7:B$18,BETONG!$A$7:$A$18,ÅRSTOT!$A7)+SUMIFS(TØMRERE!B$7:B$18,TØMRERE!$A$7:$A$18,ÅRSTOT!$A7)+SUMIFS(RØRLEGGERE!B$7:B$18,RØRLEGGERE!$A$7:$A$18,ÅRSTOT!$A7)+SUMIFS(MURERE!B$7:B$18,MURERE!$A$7:$A$18,ÅRSTOT!$A7)+SUMIFS('BLIKK OG VENTILASJON'!B$7:B$18,'BLIKK OG VENTILASJON'!$A$7:$A$18,ÅRSTOT!$A7)+SUMIFS(ISOLATØR!B$7:B$18,ISOLATØR!$A$7:$A$18,ÅRSTOT!$A7)+SUMIFS(MALERE!B$7:B$18,MALERE!$A$7:$A$18,ÅRSTOT!$A7)+SUMIFS(TAKTEKKERE!B$7:B$18,TAKTEKKERE!$A$7:$A$18,ÅRSTOT!$A7) -> 10620699 | C7: =SUMIFS(BETONG!C$7:C$18,BETONG!$A$7:$A$18,ÅRSTOT!$A7)+SUMIFS(TØMRERE!C$7:C$18,TØMRERE!$A$7:$A$18,ÅRSTOT!$A7)+SUMIFS(RØRLEGGERE!C$7:C$18,RØRLEGGERE!$A$7:$A$18,ÅRSTOT!$A7)+SUMIFS(MURERE!C$7:C$18,MURERE!$A$7:$A$18,ÅRSTOT!$A7)+SUMIFS('BLIKK OG VENTILASJON'!C$7:C$18,'BLIKK OG VENTILASJON'!$A$7:$A$18,ÅRSTOT!$A7)+SUMIFS(ISOLATØR!C$7:C$18,ISOLATØR!$A$7:$A$18,ÅRSTOT!$A7)+SUMIFS(MALERE!C$7:C$18,MALERE!$A$7:$A$18,ÅRSTOT!$A7)+SUMIFS(TAKTEKKERE!C$7:C$18,TAKTEKKERE!$A$7:$A$18,ÅRSTOT!$A7) -> 330230 | D7: =SUMIFS(BETONG!D$7:D$18,BETONG!$A$7:$A$18,ÅRSTOT!$A7)+SUMIFS(TØMRERE!D$7:D$18,TØMRERE!$A$7:$A$18,ÅRSTOT!$A7)+SUMIFS(RØRLEGGERE!D$7:D$18,RØRLEGGERE!$A$7:$A$18,ÅRSTOT!$A7)+SUMIFS(MURERE!D$7:D$18,MURERE!$A$7:$A$18,ÅRSTOT!$A7)+SUMIFS('BLIKK OG VENTILASJON'!D$7:D$18,'BLIKK OG VENTILASJON'!$A$7:$A$18,ÅRSTOT!$A7)+SUMIFS(ISOLATØR!D$7:D$18,ISOLATØR!$A$7:$A$18,ÅRSTOT!$A7)+SUMIFS(MALERE!D$7:D$18,MALERE!$A$7:$A$18,ÅRSTOT!$A7)+SUMIFS(TAKTEKKERE!D$7:D$18,TAKTEKKERE!$A$7:$A$18,ÅRSTOT!$A7) -> 35891 | E7: =SUMIFS(BETONG!E$7:E$18,BETONG!$A$7:$A$18,ÅRSTOT!$A7)+SUMIFS(TØMRERE!E$7:E$18,TØMRERE!$A$7:$A$18,ÅRSTOT!$A7)+SUMIFS(RØRLEGGERE!E$7:E$18,RØRLEGGERE!$A$7:$A$18,ÅRSTOT!$A7)+SUMIFS(MURERE!E$7:E$18,MURERE!$A$7:$A$18,ÅRSTOT!$A7)+SUMIFS('BLIKK OG VENTILASJON'!E$7:E$18,'BLIKK OG VENTILASJON'!$A$7:$A$18,ÅRSTOT!$A7)+SUMIFS(ISOLATØR!E$7:E$18,ISOLATØR!$A$7:$A$18,ÅRSTOT!$A7)+SUMIFS(MALERE!E$7:E$18,MALERE!$A$7:$A$18,ÅRSTOT!$A7)+SUMIFS(TAKTEKKERE!E$7:E$18,TAKTEKKERE!$A$7:$A$18,ÅRSTOT!$A7) -> 1511 | F7: =IF(D7=0,0,B7/D7) -> 295.9153827 | G7: =IF(E7=0,0,C7/E7) -> 218.5506287 | H7: =IF(D7+E7=0,0,(B7+C7)/(D7+E7)) -> 292.789931 | I7: =SUMIFS(BETONG!I$7:I$18,BETONG!$A$7:$A$18,ÅRSTOT!$A7)+SUMIFS(TØMRERE!I$7:I$18,TØMRERE!$A$7:$A$18,ÅRSTOT!$A7)+SUMIFS(RØRLEGGERE!I$7:I$18,RØRLEGGERE!$A$7:$A$18,ÅRSTOT!$A7)+SUMIFS(MURERE!I$7:I$18,MURERE!$A$7:$A$18,ÅRSTOT!$A7)+SUMIFS('BLIKK OG VENTILASJON'!I$7:I$18,'BLIKK OG VENTILASJON'!$A$7:$A$18,ÅRSTOT!$A7)+SUMIFS(ISOLATØR!I$7:I$18,ISOLATØR!$A$7:$A$18,ÅRSTOT!$A7)+SUMIFS(MALERE!I$7:I$18,MALERE!$A$7:$A$18,ÅRSTOT!$A7)+SUMIFS(TAKTEKKERE!I$7:I$18,TAKTEKKERE!$A$7:$A$18,ÅRSTOT!$A7) -> 12805599 | J7: =SUMIFS(BETONG!J$7:J$18,BETONG!$A$7:$A$18,ÅRSTOT!$A7)+SUMIFS(TØMRERE!J$7:J$18,TØMRERE!$A$7:$A$18,ÅRSTOT!$A7)+SUMIFS(RØRLEGGERE!J$7:J$18,RØRLEGGERE!$A$7:$A$18,ÅRSTOT!$A7)+SUMIFS(MURERE!J$7:J$18,MURERE!$A$7:$A$18,ÅRSTOT!$A7)+SUMIFS('BLIKK OG VENTILASJON'!J$7:J$18,'BLIKK OG VENTILASJON'!$A$7:$A$18,ÅRSTOT!$A7)+SUMIFS(ISOLATØR!J$7:J$18,ISOLATØR!$A$7:$A$18,ÅRSTOT!$A7)+SUMIFS(MALERE!J$7:J$18,MALERE!$A$7:$A$18,ÅRSTOT!$A7)+SUMIFS(TAKTEKKERE!J$7:J$18,TAKTEKKERE!$A$7:$A$18,ÅRSTOT!$A7) -> 0 | K7: 298.42 | L7: =IF(I7=0,0,(B7-I7)/I7) -> -0.1706206793 | M7: =IF(K7=0,0,(H7-K7)/K7) -> -0.0188662589
A8: Bergen | B8: =SUMIFS(BETONG!B$7:B$18,BETONG!$A$7:$A$18,ÅRSTOT!$A8)+SUMIFS(TØMRERE!B$7:B$18,TØMRERE!$A$7:$A$18,ÅRSTOT!$A8)+SUMIFS(RØRLEGGERE!B$7:B$18,RØRLEGGERE!$A$7:$A$18,ÅRSTOT!$A8)+SUMIFS(MURERE!B$7:B$18,MURERE!$A$7:$A$18,ÅRSTOT!$A8)+SUMIFS('BLIKK OG VENTILASJON'!B$7:B$18,'BLIKK OG VENTILASJON'!$A$7:$A$18,ÅRSTOT!$A8)+SUMIFS(ISOLATØR!B$7:B$18,ISOLATØR!$A$7:$A$18,ÅRSTOT!$A8)+SUMIFS(MALERE!B$7:B$18,MALERE!$A$7:$A$18,ÅRSTOT!$A8)+SUMIFS(TAKTEKKERE!B$7:B$18,TAKTEKKERE!$A$7:$A$18,ÅRSTOT!$A8) -> 28112984.92 | C8: =SUMIFS(BETONG!C$7:C$18,BETONG!$A$7:$A$18,ÅRSTOT!$A8)+SUMIFS(TØMRERE!C$7:C$18,TØMRERE!$A$7:$A$18,ÅRSTOT!$A8)+SUMIFS(RØRLEGGERE!C$7:C$18,RØRLEGGERE!$A$7:$A$18,ÅRSTOT!$A8)+SUMIFS(MURERE!C$7:C$18,MURERE!$A$7:$A$18,ÅRSTOT!$A8)+SUMIFS('BLIKK OG VENTILASJON'!C$7:C$18,'BLIKK OG VENTILASJON'!$A$7:$A$18,ÅRSTOT!$A8)+SUMIFS(ISOLATØR!C$7:C$18,ISOLATØR!$A$7:$A$18,ÅRSTOT!$A8)+SUMIFS(MALERE!C$7:C$18,MALERE!$A$7:$A$18,ÅRSTOT!$A8)+SUMIFS(TAKTEKKERE!C$7:C$18,TAKTEKKERE!$A$7:$A$18,ÅRSTOT!$A8) -> 0 | D8: =SUMIFS(BETONG!D$7:D$18,BETONG!$A$7:$A$18,ÅRSTOT!$A8)+SUMIFS(TØMRERE!D$7:D$18,TØMRERE!$A$7:$A$18,ÅRSTOT!$A8)+SUMIFS(RØRLEGGERE!D$7:D$18,RØRLEGGERE!$A$7:$A$18,ÅRSTOT!$A8)+SUMIFS(MURERE!D$7:D$18,MURERE!$A$7:$A$18,ÅRSTOT!$A8)+SUMIFS('BLIKK OG VENTILASJON'!D$7:D$18,'BLIKK OG VENTILASJON'!$A$7:$A$18,ÅRSTOT!$A8)+SUMIFS(ISOLATØR!D$7:D$18,ISOLATØR!$A$7:$A$18,ÅRSTOT!$A8)+SUMIFS(MALERE!D$7:D$18,MALERE!$A$7:$A$18,ÅRSTOT!$A8)+SUMIFS(TAKTEKKERE!D$7:D$18,TAKTEKKERE!$A$7:$A$18,ÅRSTOT!$A8) -> 93761.86 | E8: =SUMIFS(BETONG!E$7:E$18,BETONG!$A$7:$A$18,ÅRSTOT!$A8)+SUMIFS(TØMRERE!E$7:E$18,TØMRERE!$A$7:$A$18,ÅRSTOT!$A8)+SUMIFS(RØRLEGGERE!E$7:E$18,RØRLEGGERE!$A$7:$A$18,ÅRSTOT!$A8)+SUMIFS(MURERE!E$7:E$18,MURERE!$A$7:$A$18,ÅRSTOT!$A8)+SUMIFS('BLIKK OG VENTILASJON'!E$7:E$18,'BLIKK OG VENTILASJON'!$A$7:$A$18,ÅRSTOT!$A8)+SUMIFS(ISOLATØR!E$7:E$18,ISOLATØR!$A$7:$A$18,ÅRSTOT!$A8)+SUMIFS(MALERE!E$7:E$18,MALERE!$A$7:$A$18,ÅRSTOT!$A8)+SUMIFS(TAKTEKKERE!E$7:E$18,TAKTEKKERE!$A$7:$A$18,ÅRSTOT!$A8) -> 0 | F8: =IF(D8=0,0,B8/D8) -> 299.8339082 | G8: =IF(E8=0,0,C8/E8) -> 0 | H8: =IF(D8+E8=0,0,(B8+C8)/(D8+E8)) -> 299.8339082 | I8: =SUMIFS(BETONG!I$7:I$18,BETONG!$A$7:$A$18,ÅRSTOT!$A8)+SUMIFS(TØMRERE!I$7:I$18,TØMRERE!$A$7:$A$18,ÅRSTOT!$A8)+SUMIFS(RØRLEGGERE!I$7:I$18,RØRLEGGERE!$A$7:$A$18,ÅRSTOT!$A8)+SUMIFS(MURERE!I$7:I$18,MURERE!$A$7:$A$18,ÅRSTOT!$A8)+SUMIFS('BLIKK OG VENTILASJON'!I$7:I$18,'BLIKK OG VENTILASJON'!$A$7:$A$18,ÅRSTOT!$A8)+SUMIFS(ISOLATØR!I$7:I$18,ISOLATØR!$A$7:$A$18,ÅRSTOT!$A8)+SUMIFS(MALERE!I$7:I$18,MALERE!$A$7:$A$18,ÅRSTOT!$A8)+SUMIFS(TAKTEKKERE!I$7:I$18,TAKTEKKERE!$A$7:$A$18,ÅRSTOT!$A8) -> 26375961.45 | J8: =SUMIFS(BETONG!J$7:J$18,BETONG!$A$7:$A$18,ÅRSTOT!$A8)+SUMIFS(TØMRERE!J$7:J$18,TØMRERE!$A$7:$A$18,ÅRSTOT!$A8)+SUMIFS(RØRLEGGERE!J$7:J$18,RØRLEGGERE!$A$7:$A$18,ÅRSTOT!$A8)+SUMIFS(MURERE!J$7:J$18,MURERE!$A$7:$A$18,ÅRSTOT!$A8)+SUMIFS('BLIKK OG VENTILASJON'!J$7:J$18,'BLIKK OG VENTILASJON'!$A$7:$A$18,ÅRSTOT!$A8)+SUMIFS(ISOLATØR!J$7:J$18,ISOLATØR!$A$7:$A$18,ÅRSTOT!$A8)+SUMIFS(MALERE!J$7:J$18,MALERE!$A$7:$A$18,ÅRSTOT!$A8)+SUMIFS(TAKTEKKERE!J$7:J$18,TAKTEKKERE!$A$7:$A$18,ÅRSTOT!$A8) -> 0 | K8: 270.77 | L8: =IF(I8=0,0,(B8-I8)/I8) -> 0.0658563091 | M8: =IF(K8=0,0,(H8-K8)/K8) -> 0.1073379922
A9: Nordland | B9: =SUMIFS(BETONG!B$7:B$18,BETONG!$A$7:$A$18,ÅRSTOT!$A9)+SUMIFS(TØMRERE!B$7:B$18,TØMRERE!$A$7:$A$18,ÅRSTOT!$A9)+SUMIFS(RØRLEGGERE!B$7:B$18,RØRLEGGERE!$A$7:$A$18,ÅRSTOT!$A9)+SUMIFS(MURERE!B$7:B$18,MURERE!$A$7:$A$18,ÅRSTOT!$A9)+SUMIFS('BLIKK OG VENTILASJON'!B$7:B$18,'BLIKK OG VENTILASJON'!$A$7:$A$18,ÅRSTOT!$A9)+SUMIFS(ISOLATØR!B$7:B$18,ISOLATØR!$A$7:$A$18,ÅRSTOT!$A9)+SUMIFS(MALERE!B$7:B$18,MALERE!$A$7:$A$18,ÅRSTOT!$A9)+SUMIFS(TAKTEKKERE!B$7:B$18,TAKTEKKERE!$A$7:$A$18,ÅRSTOT!$A9) -> 0 | C9: =SUMIFS(BETONG!C$7:C$18,BETONG!$A$7:$A$18,ÅRSTOT!$A9)+SUMIFS(TØMRERE!C$7:C$18,TØMRERE!$A$7:$A$18,ÅRSTOT!$A9)+SUMIFS(RØRLEGGERE!C$7:C$18,RØRLEGGERE!$A$7:$A$18,ÅRSTOT!$A9)+SUMIFS(MURERE!C$7:C$18,MURERE!$A$7:$A$18,ÅRSTOT!$A9)+SUMIFS('BLIKK OG VENTILASJON'!C$7:C$18,'BLIKK OG VENTILASJON'!$A$7:$A$18,ÅRSTOT!$A9)+SUMIFS(ISOLATØR!C$7:C$18,ISOLATØR!$A$7:$A$18,ÅRSTOT!$A9)+SUMIFS(MALERE!C$7:C$18,MALERE!$A$7:$A$18,ÅRSTOT!$A9)+SUMIFS(TAKTEKKERE!C$7:C$18,TAKTEKKERE!$A$7:$A$18,ÅRSTOT!$A9) -> 0 | D9: =SUMIFS(BETONG!D$7:D$18,BETONG!$A$7:$A$18,ÅRSTOT!$A9)+SUMIFS(TØMRERE!D$7:D$18,TØMRERE!$A$7:$A$18,ÅRSTOT!$A9)+SUMIFS(RØRLEGGERE!D$7:D$18,RØRLEGGERE!$A$7:$A$18,ÅRSTOT!$A9)+SUMIFS(MURERE!D$7:D$18,MURERE!$A$7:$A$18,ÅRSTOT!$A9)+SUMIFS('BLIKK OG VENTILASJON'!D$7:D$18,'BLIKK OG VENTILASJON'!$A$7:$A$18,ÅRSTOT!$A9)+SUMIFS(ISOLATØR!D$7:D$18,ISOLATØR!$A$7:$A$18,ÅRSTOT!$A9)+SUMIFS(MALERE!D$7:D$18,MALERE!$A$7:$A$18,ÅRSTOT!$A9)+SUMIFS(TAKTEKKERE!D$7:D$18,TAKTEKKERE!$A$7:$A$18,ÅRSTOT!$A9) -> 0 | E9: =SUMIFS(BETONG!E$7:E$18,BETONG!$A$7:$A$18,ÅRSTOT!$A9)+SUMIFS(TØMRERE!E$7:E$18,TØMRERE!$A$7:$A$18,ÅRSTOT!$A9)+SUMIFS(RØRLEGGERE!E$7:E$18,RØRLEGGERE!$A$7:$A$18,ÅRSTOT!$A9)+SUMIFS(MURERE!E$7:E$18,MURERE!$A$7:$A$18,ÅRSTOT!$A9)+SUMIFS('BLIKK OG VENTILASJON'!E$7:E$18,'BLIKK OG VENTILASJON'!$A$7:$A$18,ÅRSTOT!$A9)+SUMIFS(ISOLATØR!E$7:E$18,ISOLATØR!$A$7:$A$18,ÅRSTOT!$A9)+SUMIFS(MALERE!E$7:E$18,MALERE!$A$7:$A$18,ÅRSTOT!$A9)+SUMIFS(TAKTEKKERE!E$7:E$18,TAKTEKKERE!$A$7:$A$18,ÅRSTOT!$A9) -> 0 | F9: =IF(D9=0,0,B9/D9) -> 0 | G9: =IF(E9=0,0,C9/E9) -> 0 | H9: =IF(D9+E9=0,0,(B9+C9)/(D9+E9)) -> 0 | I9: =SUMIFS(BETONG!I$7:I$18,BETONG!$A$7:$A$18,ÅRSTOT!$A9)+SUMIFS(TØMRERE!I$7:I$18,TØMRERE!$A$7:$A$18,ÅRSTOT!$A9)+SUMIFS(RØRLEGGERE!I$7:I$18,RØRLEGGERE!$A$7:$A$18,ÅRSTOT!$A9)+SUMIFS(MURERE!I$7:I$18,MURERE!$A$7:$A$18,ÅRSTOT!$A9)+SUMIFS('BLIKK OG VENTILASJON'!I$7:I$18,'BLIKK OG VENTILASJON'!$A$7:$A$18,ÅRSTOT!$A9)+SUMIFS(ISOLATØR!I$7:I$18,ISOLATØR!$A$7:$A$18,ÅRSTOT!$A9)+SUMIFS(MALERE!I$7:I$18,MALERE!$A$7:$A$18,ÅRSTOT!$A9)+SUMIFS(TAKTEKKERE!I$7:I$18,TAKTEKKERE!$A$7:$A$18,ÅRSTOT!$A9) -> 0 | J9: =SUMIFS(BETONG!J$7:J$18,BETONG!$A$7:$A$18,ÅRSTOT!$A9)+SUMIFS(TØMRERE!J$7:J$18,TØMRERE!$A$7:$A$18,ÅRSTOT!$A9)+SUMIFS(RØRLEGGERE!J$7:J$18,RØRLEGGERE!$A$7:$A$18,ÅRSTOT!$A9)+SUMIFS(MURERE!J$7:J$18,MURERE!$A$7:$A$18,ÅRSTOT!$A9)+SUMIFS('BLIKK OG VENTILASJON'!J$7:J$18,'BLIKK OG VENTILASJON'!$A$7:$A$18,ÅRSTOT!$A9)+SUMIFS(ISOLATØR!J$7:J$18,ISOLATØR!$A$7:$A$18,ÅRSTOT!$A9)+SUMIFS(MALERE!J$7:J$18,MALERE!$A$7:$A$18,ÅRSTOT!$A9)+SUMIFS(TAKTEKKERE!J$7:J$18,TAKTEKKERE!$A$7:$A$18,ÅRSTOT!$A9) -> 0 | L9: =IF(I9=0,0,(B9-I9)/I9) -> 0 | M9: =IF(K9=0,0,(H9-K9)/K9) -> 0
A10: Drammen - Bærum | B10: =SUMIFS(BETONG!B$7:B$18,BETONG!$A$7:$A$18,ÅRSTOT!$A10)+SUMIFS(TØMRERE!B$7:B$18,TØMRERE!$A$7:$A$18,ÅRSTOT!$A10)+SUMIFS(RØRLEGGERE!B$7:B$18,RØRLEGGERE!$A$7:$A$18,ÅRSTOT!$A10)+SUMIFS(MURERE!B$7:B$18,MURERE!$A$7:$A$18,ÅRSTOT!$A10)+SUMIFS('BLIKK OG VENTILASJON'!B$7:B$18,'BLIKK OG VENTILASJON'!$A$7:$A$18,ÅRSTOT!$A10)+SUMIFS(ISOLATØR!B$7:B$18,ISOLATØR!$A$7:$A$18,ÅRSTOT!$A10)+SUMIFS(MALERE!B$7:B$18,MALERE!$A$7:$A$18,ÅRSTOT!$A10)+SUMIFS(TAKTEKKERE!B$7:B$18,TAKTEKKERE!$A$7:$A$18,ÅRSTOT!$A10) -> 0 | C10: =SUMIFS(BETONG!C$7:C$18,BETONG!$A$7:$A$18,ÅRSTOT!$A10)+SUMIFS(TØMRERE!C$7:C$18,TØMRERE!$A$7:$A$18,ÅRSTOT!$A10)+SUMIFS(RØRLEGGERE!C$7:C$18,RØRLEGGERE!$A$7:$A$18,ÅRSTOT!$A10)+SUMIFS(MURERE!C$7:C$18,MURERE!$A$7:$A$18,ÅRSTOT!$A10)+SUMIFS('BLIKK OG VENTILASJON'!C$7:C$18,'BLIKK OG VENTILASJON'!$A$7:$A$18,ÅRSTOT!$A10)+SUMIFS(ISOLATØR!C$7:C$18,ISOLATØR!$A$7:$A$18,ÅRSTOT!$A10)+SUMIFS(MALERE!C$7:C$18,MALERE!$A$7:$A$18,ÅRSTOT!$A10)+SUMIFS(TAKTEKKERE!C$7:C$18,TAKTEKKERE!$A$7:$A$18,ÅRSTOT!$A10) -> 0 | D10: =SUMIFS(BETONG!D$7:D$18,BETONG!$A$7:$A$18,ÅRSTOT!$A10)+SUMIFS(TØMRERE!D$7:D$18,TØMRERE!$A$7:$A$18,ÅRSTOT!$A10)+SUMIFS(RØRLEGGERE!D$7:D$18,RØRLEGGERE!$A$7:$A$18,ÅRSTOT!$A10)+SUMIFS(MURERE!D$7:D$18,MURERE!$A$7:$A$18,ÅRSTOT!$A10)+SUMIFS('BLIKK OG VENTILASJON'!D$7:D$18,'BLIKK OG VENTILASJON'!$A$7:$A$18,ÅRSTOT!$A10)+SUMIFS(ISOLATØR!D$7:D$18,ISOLATØR!$A$7:$A$18,ÅRSTOT!$A10)+SUMIFS(MALERE!D$7:D$18,MALERE!$A$7:$A$18,ÅRSTOT!$A10)+SUMIFS(TAKTEKKERE!D$7:D$18,TAKTEKKERE!$A$7:$A$18,ÅRSTOT!$A10) -> 0 | E10: =SUMIFS(BETONG!E$7:E$18,BETONG!$A$7:$A$18,ÅRSTOT!$A10)+SUMIFS(TØMRERE!E$7:E$18,TØMRERE!$A$7:$A$18,ÅRSTOT!$A10)+SUMIFS(RØRLEGGERE!E$7:E$18,RØRLEGGERE!$A$7:$A$18,ÅRSTOT!$A10)+SUMIFS(MURERE!E$7:E$18,MURERE!$A$7:$A$18,ÅRSTOT!$A10)+SUMIFS('BLIKK OG VENTILASJON'!E$7:E$18,'BLIKK OG VENTILASJON'!$A$7:$A$18,ÅRSTOT!$A10)+SUMIFS(ISOLATØR!E$7:E$18,ISOLATØR!$A$7:$A$18,ÅRSTOT!$A10)+SUMIFS(MALERE!E$7:E$18,MALERE!$A$7:$A$18,ÅRSTOT!$A10)+SUMIFS(TAKTEKKERE!E$7:E$18,TAKTEKKERE!$A$7:$A$18,ÅRSTOT!$A10) -> 0 | F10: =IF(D10=0,0,B10/D10) -> 0 | G10: 0 | H10: =IF(D10+E10=0,0,(B10+C10)/(D10+E10)) -> 0 | I10: =SUMIFS(BETONG!I$7:I$18,BETONG!$A$7:$A$18,ÅRSTOT!$A10)+SUMIFS(TØMRERE!I$7:I$18,TØMRERE!$A$7:$A$18,ÅRSTOT!$A10)+SUMIFS(RØRLEGGERE!I$7:I$18,RØRLEGGERE!$A$7:$A$18,ÅRSTOT!$A10)+SUMIFS(MURERE!I$7:I$18,MURERE!$A$7:$A$18,ÅRSTOT!$A10)+SUMIFS('BLIKK OG VENTILASJON'!I$7:I$18,'BLIKK OG VENTILASJON'!$A$7:$A$18,ÅRSTOT!$A10)+SUMIFS(ISOLATØR!I$7:I$18,ISOLATØR!$A$7:$A$18,ÅRSTOT!$A10)+SUMIFS(MALERE!I$7:I$18,MALERE!$A$7:$A$18,ÅRSTOT!$A10)+SUMIFS(TAKTEKKERE!I$7:I$18,TAKTEKKERE!$A$7:$A$18,ÅRSTOT!$A10) -> 0 | J10: =SUMIFS(BETONG!J$7:J$18,BETONG!$A$7:$A$18,ÅRSTOT!$A10)+SUMIFS(TØMRERE!J$7:J$18,TØMRERE!$A$7:$A$18,ÅRSTOT!$A10)+SUMIFS(RØRLEGGERE!J$7:J$18,RØRLEGGERE!$A$7:$A$18,ÅRSTOT!$A10)+SUMIFS(MURERE!J$7:J$18,MURERE!$A$7:$A$18,ÅRSTOT!$A10)+SUMIFS('BLIKK OG VENTILASJON'!J$7:J$18,'BLIKK OG VENTILASJON'!$A$7:$A$18,ÅRSTOT!$A10)+SUMIFS(ISOLATØR!J$7:J$18,ISOLATØR!$A$7:$A$18,ÅRSTOT!$A10)+SUMIFS(MALERE!J$7:J$18,MALERE!$A$7:$A$18,ÅRSTOT!$A10)+SUMIFS(TAKTEKKERE!J$7:J$18,TAKTEKKERE!$A$7:$A$18,ÅRSTOT!$A10) -> 0 | L10: 0 | M10: 0
A11: Haugesund | B11: =SUMIFS(BETONG!B$7:B$18,BETONG!$A$7:$A$18,ÅRSTOT!$A11)+SUMIFS(TØMRERE!B$7:B$18,TØMRERE!$A$7:$A$18,ÅRSTOT!$A11)+SUMIFS(RØRLEGGERE!B$7:B$18,RØRLEGGERE!$A$7:$A$18,ÅRSTOT!$A11)+SUMIFS(MURERE!B$7:B$18,MURERE!$A$7:$A$18,ÅRSTOT!$A11)+SUMIFS('BLIKK OG VENTILASJON'!B$7:B$18,'BLIKK OG VENTILASJON'!$A$7:$A$18,ÅRSTOT!$A11)+SUMIFS(ISOLATØR!B$7:B$18,ISOLATØR!$A$7:$A$18,ÅRSTOT!$A11)+SUMIFS(MALERE!B$7:B$18,MALERE!$A$7:$A$18,ÅRSTOT!$A11)+SUMIFS(TAKTEKKERE!B$7:B$18,TAKTEKKERE!$A$7:$A$18,ÅRSTOT!$A11) -> 12167164 | C11: =SUMIFS(BETONG!C$7:C$18,BETONG!$A$7:$A$18,ÅRSTOT!$A11)+SUMIFS(TØMRERE!C$7:C$18,TØMRERE!$A$7:$A$18,ÅRSTOT!$A11)+SUMIFS(RØRLEGGERE!C$7:C$18,RØRLEGGERE!$A$7:$A$18,ÅRSTOT!$A11)+SUMIFS(MURERE!C$7:C$18,MURERE!$A$7:$A$18,ÅRSTOT!$A11)+SUMIFS('BLIKK OG VENTILASJON'!C$7:C$18,'BLIKK OG VENTILASJON'!$A$7:$A$18,ÅRSTOT!$A11)+SUMIFS(ISOLATØR!C$7:C$18,ISOLATØR!$A$7:$A$18,ÅRSTOT!$A11)+SUMIFS(MALERE!C$7:C$18,MALERE!$A$7:$A$18,ÅRSTOT!$A11)+SUMIFS(TAKTEKKERE!C$7:C$18,TAKTEKKERE!$A$7:$A$18,ÅRSTOT!$A11) -> 0 | D11: =SUMIFS(BETONG!D$7:D$18,BETONG!$A$7:$A$18,ÅRSTOT!$A11)+SUMIFS(TØMRERE!D$7:D$18,TØMRERE!$A$7:$A$18,ÅRSTOT!$A11)+SUMIFS(RØRLEGGERE!D$7:D$18,RØRLEGGERE!$A$7:$A$18,ÅRSTOT!$A11)+SUMIFS(MURERE!D$7:D$18,MURERE!$A$7:$A$18,ÅRSTOT!$A11)+SUMIFS('BLIKK OG VENTILASJON'!D$7:D$18,'BLIKK OG VENTILASJON'!$A$7:$A$18,ÅRSTOT!$A11)+SUMIFS(ISOLATØR!D$7:D$18,ISOLATØR!$A$7:$A$18,ÅRSTOT!$A11)+SUMIFS(MALERE!D$7:D$18,MALERE!$A$7:$A$18,ÅRSTOT!$A11)+SUMIFS(TAKTEKKERE!D$7:D$18,TAKTEKKERE!$A$7:$A$18,ÅRSTOT!$A11) -> 42803 | E11: =SUMIFS(BETONG!E$7:E$18,BETONG!$A$7:$A$18,ÅRSTOT!$A11)+SUMIFS(TØMRERE!E$7:E$18,TØMRERE!$A$7:$A$18,ÅRSTOT!$A11)+SUMIFS(RØRLEGGERE!E$7:E$18,RØRLEGGERE!$A$7:$A$18,ÅRSTOT!$A11)+SUMIFS(MURERE!E$7:E$18,MURERE!$A$7:$A$18,ÅRSTOT!$A11)+SUMIFS('BLIKK OG VENTILASJON'!E$7:E$18,'BLIKK OG VENTILASJON'!$A$7:$A$18,ÅRSTOT!$A11)+SUMIFS(ISOLATØR!E$7:E$18,ISOLATØR!$A$7:$A$18,ÅRSTOT!$A11)+SUMIFS(MALERE!E$7:E$18,MALERE!$A$7:$A$18,ÅRSTOT!$A11)+SUMIFS(TAKTEKKERE!E$7:E$18,TAKTEKKERE!$A$7:$A$18,ÅRSTOT!$A11) -> 0 | F11: 284.259608 | G11: 0 | H11: 284.259608 | I11: =SUMIFS(BETONG!I$7:I$18,BETONG!$A$7:$A$18,ÅRSTOT!$A11)+SUMIFS(TØMRERE!I$7:I$18,TØMRERE!$A$7:$A$18,ÅRSTOT!$A11)+SUMIFS(RØRLEGGERE!I$7:I$18,RØRLEGGERE!$A$7:$A$18,ÅRSTOT!$A11)+SUMIFS(MURERE!I$7:I$18,MURERE!$A$7:$A$18,ÅRSTOT!$A11)+SUMIFS('BLIKK OG VENTILASJON'!I$7:I$18,'BLIKK OG VENTILASJON'!$A$7:$A$18,ÅRSTOT!$A11)+SUMIFS(ISOLATØR!I$7:I$18,ISOLATØR!$A$7:$A$18,ÅRSTOT!$A11)+SUMIFS(MALERE!I$7:I$18,MALERE!$A$7:$A$18,ÅRSTOT!$A11)+SUMIFS(TAKTEKKERE!I$7:I$18,TAKTEKKERE!$A$7:$A$18,ÅRSTOT!$A11) -> 12693010 | J11: =SUMIFS(BETONG!J$7:J$18,BETONG!$A$7:$A$18,ÅRSTOT!$A11)+SUMIFS(TØMRERE!J$7:J$18,TØMRERE!$A$7:$A$18,ÅRSTOT!$A11)+SUMIFS(RØRLEGGERE!J$7:J$18,RØRLEGGERE!$A$7:$A$18,ÅRSTOT!$A11)+SUMIFS(MURERE!J$7:J$18,MURERE!$A$7:$A$18,ÅRSTOT!$A11)+SUMIFS('BLIKK OG VENTILASJON'!J$7:J$18,'BLIKK OG VENTILASJON'!$A$7:$A$18,ÅRSTOT!$A11)+SUMIFS(ISOLATØR!J$7:J$18,ISOLATØR!$A$7:$A$18,ÅRSTOT!$A11)+SUMIFS(MALERE!J$7:J$18,MALERE!$A$7:$A$18,ÅRSTOT!$A11)+SUMIFS(TAKTEKKERE!J$7:J$18,TAKTEKKERE!$A$7:$A$18,ÅRSTOT!$A11) -> 0 | K11: 274.88 | L11: -0.04142799856 | M11: 0.03412255519
A12: Hamar og Omegn | B12: =SUMIFS(BETONG!B$7:B$18,BETONG!$A$7:$A$18,ÅRSTOT!$A12)+SUMIFS(TØMRERE!B$7:B$18,TØMRERE!$A$7:$A$18,ÅRSTOT!$A12)+SUMIFS(RØRLEGGERE!B$7:B$18,RØRLEGGERE!$A$7:$A$18,ÅRSTOT!$A12)+SUMIFS(MURERE!B$7:B$18,MURERE!$A$7:$A$18,ÅRSTOT!$A12)+SUMIFS('BLIKK OG VENTILASJON'!B$7:B$18,'BLIKK OG VENTILASJON'!$A$7:$A$18,ÅRSTOT!$A12)+SUMIFS(ISOLATØR!B$7:B$18,ISOLATØR!$A$7:$A$18,ÅRSTOT!$A12)+SUMIFS(MALERE!B$7:B$18,MALERE!$A$7:$A$18,ÅRSTOT!$A12)+SUMIFS(TAKTEKKERE!B$7:B$18,TAKTEKKERE!$A$7:$A$18,ÅRSTOT!$A12) -> 15133578 | C12: =SUMIFS(BETONG!C$7:C$18,BETONG!$A$7:$A$18,ÅRSTOT!$A12)+SUMIFS(TØMRERE!C$7:C$18,TØMRERE!$A$7:$A$18,ÅRSTOT!$A12)+SUMIFS(RØRLEGGERE!C$7:C$18,RØRLEGGERE!$A$7:$A$18,ÅRSTOT!$A12)+SUMIFS(MURERE!C$7:C$18,MURERE!$A$7:$A$18,ÅRSTOT!$A12)+SUMIFS('BLIKK OG VENTILASJON'!C$7:C$18,'BLIKK OG VENTILASJON'!$A$7:$A$18,ÅRSTOT!$A12)+SUMIFS(ISOLATØR!C$7:C$18,ISOLATØR!$A$7:$A$18,ÅRSTOT!$A12)+SUMIFS(MALERE!C$7:C$18,MALERE!$A$7:$A$18,ÅRSTOT!$A12)+SUMIFS(TAKTEKKERE!C$7:C$18,TAKTEKKERE!$A$7:$A$18,ÅRSTOT!$A12) -> 629711 | D12: =SUMIFS(BETONG!D$7:D$18,BETONG!$A$7:$A$18,ÅRSTOT!$A12)+SUMIFS(TØMRERE!D$7:D$18,TØMRERE!$A$7:$A$18,ÅRSTOT!$A12)+SUMIFS(RØRLEGGERE!D$7:D$18,RØRLEGGERE!$A$7:$A$18,ÅRSTOT!$A12)+SUMIFS(MURERE!D$7:D$18,MURERE!$A$7:$A$18,ÅRSTOT!$A12)+SUMIFS('BLIKK OG VENTILASJON'!D$7:D$18,'BLIKK OG VENTILASJON'!$A$7:$A$18,ÅRSTOT!$A12)+SUMIFS(ISOLATØR!D$7:D$18,ISOLATØR!$A$7:$A$18,ÅRSTOT!$A12)+SUMIFS(MALERE!D$7:D$18,MALERE!$A$7:$A$18,ÅRSTOT!$A12)+SUMIFS(TAKTEKKERE!D$7:D$18,TAKTEKKERE!$A$7:$A$18,ÅRSTOT!$A12) -> 44574.42 | E12: =SUMIFS(BETONG!E$7:E$18,BETONG!$A$7:$A$18,ÅRSTOT!$A12)+SUMIFS(TØMRERE!E$7:E$18,TØMRERE!$A$7:$A$18,ÅRSTOT!$A12)+SUMIFS(RØRLEGGERE!E$7:E$18,RØRLEGGERE!$A$7:$A$18,ÅRSTOT!$A12)+SUMIFS(MURERE!E$7:E$18,MURERE!$A$7:$A$18,ÅRSTOT!$A12)+SUMIFS('BLIKK OG VENTILASJON'!E$7:E$18,'BLIKK OG VENTILASJON'!$A$7:$A$18,ÅRSTOT!$A12)+SUMIFS(ISOLATØR!E$7:E$18,ISOLATØR!$A$7:$A$18,ÅRSTOT!$A12)+SUMIFS(MALERE!E$7:E$18,MALERE!$A$7:$A$18,ÅRSTOT!$A12)+SUMIFS(TAKTEKKERE!E$7:E$18,TAKTEKKERE!$A$7:$A$18,ÅRSTOT!$A12) -> 2911.48 | F12: 339.5126173 | G12: 216.2855318 | H12: 331.9572547 | I12: =SUMIFS(BETONG!I$7:I$18,BETONG!$A$7:$A$18,ÅRSTOT!$A12)+SUMIFS(TØMRERE!I$7:I$18,TØMRERE!$A$7:$A$18,ÅRSTOT!$A12)+SUMIFS(RØRLEGGERE!I$7:I$18,RØRLEGGERE!$A$7:$A$18,ÅRSTOT!$A12)+SUMIFS(MURERE!I$7:I$18,MURERE!$A$7:$A$18,ÅRSTOT!$A12)+SUMIFS('BLIKK OG VENTILASJON'!I$7:I$18,'BLIKK OG VENTILASJON'!$A$7:$A$18,ÅRSTOT!$A12)+SUMIFS(ISOLATØR!I$7:I$18,ISOLATØR!$A$7:$A$18,ÅRSTOT!$A12)+SUMIFS(MALERE!I$7:I$18,MALERE!$A$7:$A$18,ÅRSTOT!$A12)+SUMIFS(TAKTEKKERE!I$7:I$18,TAKTEKKERE!$A$7:$A$18,ÅRSTOT!$A12) -> 16858994.52 | J12: =SUMIFS(BETONG!J$7:J$18,BETONG!$A$7:$A$18,ÅRSTOT!$A12)+SUMIFS(TØMRERE!J$7:J$18,TØMRERE!$A$7:$A$18,ÅRSTOT!$A12)+SUMIFS(RØRLEGGERE!J$7:J$18,RØRLEGGERE!$A$7:$A$18,ÅRSTOT!$A12)+SUMIFS(MURERE!J$7:J$18,MURERE!$A$7:$A$18,ÅRSTOT!$A12)+SUMIFS('BLIKK OG VENTILASJON'!J$7:J$18,'BLIKK OG VENTILASJON'!$A$7:$A$18,ÅRSTOT!$A12)+SUMIFS(ISOLATØR!J$7:J$18,ISOLATØR!$A$7:$A$18,ÅRSTOT!$A12)+SUMIFS(MALERE!J$7:J$18,MALERE!$A$7:$A$18,ÅRSTOT!$A12)+SUMIFS(TAKTEKKERE!J$7:J$18,TAKTEKKERE!$A$7:$A$18,ÅRSTOT!$A12) -> 0 | K12: 303.25 | L12: -0.1023439754 | M12: 0.0946653081
A13: Sandnes | B13: =SUMIFS(BETONG!B$7:B$18,BETONG!$A$7:$A$18,ÅRSTOT!$A13)+SUMIFS(TØMRERE!B$7:B$18,TØMRERE!$A$7:$A$18,ÅRSTOT!$A13)+SUMIFS(RØRLEGGERE!B$7:B$18,RØRLEGGERE!$A$7:$A$18,ÅRSTOT!$A13)+SUMIFS(MURERE!B$7:B$18,MURERE!$A$7:$A$18,ÅRSTOT!$A13)+SUMIFS('BLIKK OG VENTILASJON'!B$7:B$18,'BLIKK OG VENTILASJON'!$A$7:$A$18,ÅRSTOT!$A13)+SUMIFS(ISOLATØR!B$7:B$18,ISOLATØR!$A$7:$A$18,ÅRSTOT!$A13)+SUMIFS(MALERE!B$7:B$18,MALERE!$A$7:$A$18,ÅRSTOT!$A13)+SUMIFS(TAKTEKKERE!B$7:B$18,TAKTEKKERE!$A$7:$A$18,ÅRSTOT!$A13) -> 13507839.1 | C13: =SUMIFS(BETONG!C$7:C$18,BETONG!$A$7:$A$18,ÅRSTOT!$A13)+SUMIFS(TØMRERE!C$7:C$18,TØMRERE!$A$7:$A$18,ÅRSTOT!$A13)+SUMIFS(RØRLEGGERE!C$7:C$18,RØRLEGGERE!$A$7:$A$18,ÅRSTOT!$A13)+SUMIFS(MURERE!C$7:C$18,MURERE!$A$7:$A$18,ÅRSTOT!$A13)+SUMIFS('BLIKK OG VENTILASJON'!C$7:C$18,'BLIKK OG VENTILASJON'!$A$7:$A$18,ÅRSTOT!$A13)+SUMIFS(ISOLATØR!C$7:C$18,ISOLATØR!$A$7:$A$18,ÅRSTOT!$A13)+SUMIFS(MALERE!C$7:C$18,MALERE!$A$7:$A$18,ÅRSTOT!$A13)+SUMIFS(TAKTEKKERE!C$7:C$18,TAKTEKKERE!$A$7:$A$18,ÅRSTOT!$A13) -> 0 | D13: =SUMIFS(BETONG!D$7:D$18,BETONG!$A$7:$A$18,ÅRSTOT!$A13)+SUMIFS(TØMRERE!D$7:D$18,TØMRERE!$A$7:$A$18,ÅRSTOT!$A13)+SUMIFS(RØRLEGGERE!D$7:D$18,RØRLEGGERE!$A$7:$A$18,ÅRSTOT!$A13)+SUMIFS(MURERE!D$7:D$18,MURERE!$A$7:$A$18,ÅRSTOT!$A13)+SUMIFS('BLIKK OG VENTILASJON'!D$7:D$18,'BLIKK OG VENTILASJON'!$A$7:$A$18,ÅRSTOT!$A13)+SUMIFS(ISOLATØR!D$7:D$18,ISOLATØR!$A$7:$A$18,ÅRSTOT!$A13)+SUMIFS(MALERE!D$7:D$18,MALERE!$A$7:$A$18,ÅRSTOT!$A13)+SUMIFS(TAKTEKKERE!D$7:D$18,TAKTEKKERE!$A$7:$A$18,ÅRSTOT!$A13) -> 40521.46 | E13: =SUMIFS(BETONG!E$7:E$18,BETONG!$A$7:$A$18,ÅRSTOT!$A13)+SUMIFS(TØMRERE!E$7:E$18,TØMRERE!$A$7:$A$18,ÅRSTOT!$A13)+SUMIFS(RØRLEGGERE!E$7:E$18,RØRLEGGERE!$A$7:$A$18,ÅRSTOT!$A13)+SUMIFS(MURERE!E$7:E$18,MURERE!$A$7:$A$18,ÅRSTOT!$A13)+SUMIFS('BLIKK OG VENTILASJON'!E$7:E$18,'BLIKK OG VENTILASJON'!$A$7:$A$18,ÅRSTOT!$A13)+SUMIFS(ISOLATØR!E$7:E$18,ISOLATØR!$A$7:$A$18,ÅRSTOT!$A13)+SUMIFS(MALERE!E$7:E$18,MALERE!$A$7:$A$18,ÅRSTOT!$A13)+SUMIFS(TAKTEKKERE!E$7:E$18,TAKTEKKERE!$A$7:$A$18,ÅRSTOT!$A13) -> 0 | F13: 333.3502569 | G13: 0 | H13: 333.3502569 | I13: =SUMIFS(BETONG!I$7:I$18,BETONG!$A$7:$A$18,ÅRSTOT!$A13)+SUMIFS(TØMRERE!I$7:I$18,TØMRERE!$A$7:$A$18,ÅRSTOT!$A13)+SUMIFS(RØRLEGGERE!I$7:I$18,RØRLEGGERE!$A$7:$A$18,ÅRSTOT!$A13)+SUMIFS(MURERE!I$7:I$18,MURERE!$A$7:$A$18,ÅRSTOT!$A13)+SUMIFS('BLIKK OG VENTILASJON'!I$7:I$18,'BLIKK OG VENTILASJON'!$A$7:$A$18,ÅRSTOT!$A13)+SUMIFS(ISOLATØR!I$7:I$18,ISOLATØR!$A$7:$A$18,ÅRSTOT!$A13)+SUMIFS(MALERE!I$7:I$18,MALERE!$A$7:$A$18,ÅRSTOT!$A13)+SUMIFS(TAKTEKKERE!I$7:I$18,TAKTEKKERE!$A$7:$A$18,ÅRSTOT!$A13) -> 12109542.19 | J13: =SUMIFS(BETONG!J$7:J$18,BETONG!$A$7:$A$18,ÅRSTOT!$A13)+SUMIFS(TØMRERE!J$7:J$18,TØMRERE!$A$7:$A$18,ÅRSTOT!$A13)+SUMIFS(RØRLEGGERE!J$7:J$18,RØRLEGGERE!$A$7:$A$18,ÅRSTOT!$A13)+SUMIFS(MURERE!J$7:J$18,MURERE!$A$7:$A$18,ÅRSTOT!$A13)+SUMIFS('BLIKK OG VENTILASJON'!J$7:J$18,'BLIKK OG VENTILASJON'!$A$7:$A$18,ÅRSTOT!$A13)+SUMIFS(ISOLATØR!J$7:J$18,ISOLATØR!$A$7:$A$18,ÅRSTOT!$A13)+SUMIFS(MALERE!J$7:J$18,MALERE!$A$7:$A$18,ÅRSTOT!$A13)+SUMIFS(TAKTEKKERE!J$7:J$18,TAKTEKKERE!$A$7:$A$18,ÅRSTOT!$A13) -> 0 | K13: 319.32 | L13: 0.1154706667 | M13: 0.04393792082
A14: Stavanger | B14: =SUMIFS(BETONG!B$7:B$18,BETONG!$A$7:$A$18,ÅRSTOT!$A14)+SUMIFS(TØMRERE!B$7:B$18,TØMRERE!$A$7:$A$18,ÅRSTOT!$A14)+SUMIFS(RØRLEGGERE!B$7:B$18,RØRLEGGERE!$A$7:$A$18,ÅRSTOT!$A14)+SUMIFS(MURERE!B$7:B$18,MURERE!$A$7:$A$18,ÅRSTOT!$A14)+SUMIFS('BLIKK OG VENTILASJON'!B$7:B$18,'BLIKK OG VENTILASJON'!$A$7:$A$18,ÅRSTOT!$A14)+SUMIFS(ISOLATØR!B$7:B$18,ISOLATØR!$A$7:$A$18,ÅRSTOT!$A14)+SUMIFS(MALERE!B$7:B$18,MALERE!$A$7:$A$18,ÅRSTOT!$A14)+SUMIFS(TAKTEKKERE!B$7:B$18,TAKTEKKERE!$A$7:$A$18,ÅRSTOT!$A14) -> 5391913.65 | C14: =SUMIFS(BETONG!C$7:C$18,BETONG!$A$7:$A$18,ÅRSTOT!$A14)+SUMIFS(TØMRERE!C$7:C$18,TØMRERE!$A$7:$A$18,ÅRSTOT!$A14)+SUMIFS(RØRLEGGERE!C$7:C$18,RØRLEGGERE!$A$7:$A$18,ÅRSTOT!$A14)+SUMIFS(MURERE!C$7:C$18,MURERE!$A$7:$A$18,ÅRSTOT!$A14)+SUMIFS('BLIKK OG VENTILASJON'!C$7:C$18,'BLIKK OG VENTILASJON'!$A$7:$A$18,ÅRSTOT!$A14)+SUMIFS(ISOLATØR!C$7:C$18,ISOLATØR!$A$7:$A$18,ÅRSTOT!$A14)+SUMIFS(MALERE!C$7:C$18,MALERE!$A$7:$A$18,ÅRSTOT!$A14)+SUMIFS(TAKTEKKERE!C$7:C$18,TAKTEKKERE!$A$7:$A$18,ÅRSTOT!$A14) -> 0 | D14: =SUMIFS(BETONG!D$7:D$18,BETONG!$A$7:$A$18,ÅRSTOT!$A14)+SUMIFS(TØMRERE!D$7:D$18,TØMRERE!$A$7:$A$18,ÅRSTOT!$A14)+SUMIFS(RØRLEGGERE!D$7:D$18,RØRLEGGERE!$A$7:$A$18,ÅRSTOT!$A14)+SUMIFS(MURERE!D$7:D$18,MURERE!$A$7:$A$18,ÅRSTOT!$A14)+SUMIFS('BLIKK OG VENTILASJON'!D$7:D$18,'BLIKK OG VENTILASJON'!$A$7:$A$18,ÅRSTOT!$A14)+SUMIFS(ISOLATØR!D$7:D$18,ISOLATØR!$A$7:$A$18,ÅRSTOT!$A14)+SUMIFS(MALERE!D$7:D$18,MALERE!$A$7:$A$18,ÅRSTOT!$A14)+SUMIFS(TAKTEKKERE!D$7:D$18,TAKTEKKERE!$A$7:$A$18,ÅRSTOT!$A14) -> 18397.5 | E14: =SUMIFS(BETONG!E$7:E$18,BETONG!$A$7:$A$18,ÅRSTOT!$A14)+SUMIFS(TØMRERE!E$7:E$18,TØMRERE!$A$7:$A$18,ÅRSTOT!$A14)+SUMIFS(RØRLEGGERE!E$7:E$18,RØRLEGGERE!$A$7:$A$18,ÅRSTOT!$A14)+SUMIFS(MURERE!E$7:E$18,MURERE!$A$7:$A$18,ÅRSTOT!$A14)+SUMIFS('BLIKK OG VENTILASJON'!E$7:E$18,'BLIKK OG VENTILASJON'!$A$7:$A$18,ÅRSTOT!$A14)+SUMIFS(ISOLATØR!E$7:E$18,ISOLATØR!$A$7:$A$18,ÅRSTOT!$A14)+SUMIFS(MALERE!E$7:E$18,MALERE!$A$7:$A$18,ÅRSTOT!$A14)+SUMIFS(TAKTEKKERE!E$7:E$18,TAKTEKKERE!$A$7:$A$18,ÅRSTOT!$A14) -> 0 | F14: 293.0786058 | G14: 0 | H14: 293.0786058 | I14: =SUMIFS(BETONG!I$7:I$18,BETONG!$A$7:$A$18,ÅRSTOT!$A14)+SUMIFS(TØMRERE!I$7:I$18,TØMRERE!$A$7:$A$18,ÅRSTOT!$A14)+SUMIFS(RØRLEGGERE!I$7:I$18,RØRLEGGERE!$A$7:$A$18,ÅRSTOT!$A14)+SUMIFS(MURERE!I$7:I$18,MURERE!$A$7:$A$18,ÅRSTOT!$A14)+SUMIFS('BLIKK OG VENTILASJON'!I$7:I$18,'BLIKK OG VENTILASJON'!$A$7:$A$18,ÅRSTOT!$A14)+SUMIFS(ISOLATØR!I$7:I$18,ISOLATØR!$A$7:$A$18,ÅRSTOT!$A14)+SUMIFS(MALERE!I$7:I$18,MALERE!$A$7:$A$18,ÅRSTOT!$A14)+SUMIFS(TAKTEKKERE!I$7:I$18,TAKTEKKERE!$A$7:$A$18,ÅRSTOT!$A14) -> 6104845.09 | J14: =SUMIFS(BETONG!J$7:J$18,BETONG!$A$7:$A$18,ÅRSTOT!$A14)+SUMIFS(TØMRERE!J$7:J$18,TØMRERE!$A$7:$A$18,ÅRSTOT!$A14)+SUMIFS(RØRLEGGERE!J$7:J$18,RØRLEGGERE!$A$7:$A$18,ÅRSTOT!$A14)+SUMIFS(MURERE!J$7:J$18,MURERE!$A$7:$A$18,ÅRSTOT!$A14)+SUMIFS('BLIKK OG VENTILASJON'!J$7:J$18,'BLIKK OG VENTILASJON'!$A$7:$A$18,ÅRSTOT!$A14)+SUMIFS(ISOLATØR!J$7:J$18,ISOLATØR!$A$7:$A$18,ÅRSTOT!$A14)+SUMIFS(MALERE!J$7:J$18,MALERE!$A$7:$A$18,ÅRSTOT!$A14)+SUMIFS(TAKTEKKERE!J$7:J$18,TAKTEKKERE!$A$7:$A$18,ÅRSTOT!$A14) -> 582107 | K14: 317.44 | L14: -0.1167812499 | M14: -0.07674330334
A15: Telemark | B15: =SUMIFS(BETONG!B$7:B$18,BETONG!$A$7:$A$18,ÅRSTOT!$A15)+SUMIFS(TØMRERE!B$7:B$18,TØMRERE!$A$7:$A$18,ÅRSTOT!$A15)+SUMIFS(RØRLEGGERE!B$7:B$18,RØRLEGGERE!$A$7:$A$18,ÅRSTOT!$A15)+SUMIFS(MURERE!B$7:B$18,MURERE!$A$7:$A$18,ÅRSTOT!$A15)+SUMIFS('BLIKK OG VENTILASJON'!B$7:B$18,'BLIKK OG VENTILASJON'!$A$7:$A$18,ÅRSTOT!$A15)+SUMIFS(ISOLATØR!B$7:B$18,ISOLATØR!$A$7:$A$18,ÅRSTOT!$A15)+SUMIFS(MALERE!B$7:B$18,MALERE!$A$7:$A$18,ÅRSTOT!$A15)+SUMIFS(TAKTEKKERE!B$7:B$18,TAKTEKKERE!$A$7:$A$18,ÅRSTOT!$A15) -> 26445934.6 | C15: =SUMIFS(BETONG!C$7:C$18,BETONG!$A$7:$A$18,ÅRSTOT!$A15)+SUMIFS(TØMRERE!C$7:C$18,TØMRERE!$A$7:$A$18,ÅRSTOT!$A15)+SUMIFS(RØRLEGGERE!C$7:C$18,RØRLEGGERE!$A$7:$A$18,ÅRSTOT!$A15)+SUMIFS(MURERE!C$7:C$18,MURERE!$A$7:$A$18,ÅRSTOT!$A15)+SUMIFS('BLIKK OG VENTILASJON'!C$7:C$18,'BLIKK OG VENTILASJON'!$A$7:$A$18,ÅRSTOT!$A15)+SUMIFS(ISOLATØR!C$7:C$18,ISOLATØR!$A$7:$A$18,ÅRSTOT!$A15)+SUMIFS(MALERE!C$7:C$18,MALERE!$A$7:$A$18,ÅRSTOT!$A15)+SUMIFS(TAKTEKKERE!C$7:C$18,TAKTEKKERE!$A$7:$A$18,ÅRSTOT!$A15) -> 265600 | D15: =SUMIFS(BETONG!D$7:D$18,BETONG!$A$7:$A$18,ÅRSTOT!$A15)+SUMIFS(TØMRERE!D$7:D$18,TØMRERE!$A$7:$A$18,ÅRSTOT!$A15)+SUMIFS(RØRLEGGERE!D$7:D$18,RØRLEGGERE!$A$7:$A$18,ÅRSTOT!$A15)+SUMIFS(MURERE!D$7:D$18,MURERE!$A$7:$A$18,ÅRSTOT!$A15)+SUMIFS('BLIKK OG VENTILASJON'!D$7:D$18,'BLIKK OG VENTILASJON'!$A$7:$A$18,ÅRSTOT!$A15)+SUMIFS(ISOLATØR!D$7:D$18,ISOLATØR!$A$7:$A$18,ÅRSTOT!$A15)+SUMIFS(MALERE!D$7:D$18,MALERE!$A$7:$A$18,ÅRSTOT!$A15)+SUMIFS(TAKTEKKERE!D$7:D$18,TAKTEKKERE!$A$7:$A$18,ÅRSTOT!$A15) -> 86294.5 | E15: =SUMIFS(BETONG!E$7:E$18,BETONG!$A$7:$A$18,ÅRSTOT!$A15)+SUMIFS(TØMRERE!E$7:E$18,TØMRERE!$A$7:$A$18,ÅRSTOT!$A15)+SUMIFS(RØRLEGGERE!E$7:E$18,RØRLEGGERE!$A$7:$A$18,ÅRSTOT!$A15)+SUMIFS(MURERE!E$7:E$18,MURERE!$A$7:$A$18,ÅRSTOT!$A15)+SUMIFS('BLIKK OG VENTILASJON'!E$7:E$18,'BLIKK OG VENTILASJON'!$A$7:$A$18,ÅRSTOT!$A15)+SUMIFS(ISOLATØR!E$7:E$18,ISOLATØR!$A$7:$A$18,ÅRSTOT!$A15)+SUMIFS(MALERE!E$7:E$18,MALERE!$A$7:$A$18,ÅRSTOT!$A15)+SUMIFS(TAKTEKKERE!E$7:E$18,TAKTEKKERE!$A$7:$A$18,ÅRSTOT!$A15) -> 1270 | F15: 306.4614153 | G15: 209.1338583 | H15: 305.0498159 | I15: =SUMIFS(BETONG!I$7:I$18,BETONG!$A$7:$A$18,ÅRSTOT!$A15)+SUMIFS(TØMRERE!I$7:I$18,TØMRERE!$A$7:$A$18,ÅRSTOT!$A15)+SUMIFS(RØRLEGGERE!I$7:I$18,RØRLEGGERE!$A$7:$A$18,ÅRSTOT!$A15)+SUMIFS(MURERE!I$7:I$18,MURERE!$A$7:$A$18,ÅRSTOT!$A15)+SUMIFS('BLIKK OG VENTILASJON'!I$7:I$18,'BLIKK OG VENTILASJON'!$A$7:$A$18,ÅRSTOT!$A15)+SUMIFS(ISOLATØR!I$7:I$18,ISOLATØR!$A$7:$A$18,ÅRSTOT!$A15)+SUMIFS(MALERE!I$7:I$18,MALERE!$A$7:$A$18,ÅRSTOT!$A15)+SUMIFS(TAKTEKKERE!I$7:I$18,TAKTEKKERE!$A$7:$A$18,ÅRSTOT!$A15) -> 14191200 | J15: =SUMIFS(BETONG!J$7:J$18,BETONG!$A$7:$A$18,ÅRSTOT!$A15)+SUMIFS(TØMRERE!J$7:J$18,TØMRERE!$A$7:$A$18,ÅRSTOT!$A15)+SUMIFS(RØRLEGGERE!J$7:J$18,RØRLEGGERE!$A$7:$A$18,ÅRSTOT!$A15)+SUMIFS(MURERE!J$7:J$18,MURERE!$A$7:$A$18,ÅRSTOT!$A15)+SUMIFS('BLIKK OG VENTILASJON'!J$7:J$18,'BLIKK OG VENTILASJON'!$A$7:$A$18,ÅRSTOT!$A15)+SUMIFS(ISOLATØR!J$7:J$18,ISOLATØR!$A$7:$A$18,ÅRSTOT!$A15)+SUMIFS(MALERE!J$7:J$18,MALERE!$A$7:$A$18,ÅRSTOT!$A15)+SUMIFS(TAKTEKKERE!J$7:J$18,TAKTEKKERE!$A$7:$A$18,ÅRSTOT!$A15) -> 0 | K15: 306.23 | L15: 0.8635446333 | M15: -0.003853914215
A16: Trondheim | B16: =SUMIFS(BETONG!B$7:B$18,BETONG!$A$7:$A$18,ÅRSTOT!$A16)+SUMIFS(TØMRERE!B$7:B$18,TØMRERE!$A$7:$A$18,ÅRSTOT!$A16)+SUMIFS(RØRLEGGERE!B$7:B$18,RØRLEGGERE!$A$7:$A$18,ÅRSTOT!$A16)+SUMIFS(MURERE!B$7:B$18,MURERE!$A$7:$A$18,ÅRSTOT!$A16)+SUMIFS('BLIKK OG VENTILASJON'!B$7:B$18,'BLIKK OG VENTILASJON'!$A$7:$A$18,ÅRSTOT!$A16)+SUMIFS(ISOLATØR!B$7:B$18,ISOLATØR!$A$7:$A$18,ÅRSTOT!$A16)+SUMIFS(MALERE!B$7:B$18,MALERE!$A$7:$A$18,ÅRSTOT!$A16)+SUMIFS(TAKTEKKERE!B$7:B$18,TAKTEKKERE!$A$7:$A$18,ÅRSTOT!$A16) -> 124184190 | C16: =SUMIFS(BETONG!C$7:C$18,BETONG!$A$7:$A$18,ÅRSTOT!$A16)+SUMIFS(TØMRERE!C$7:C$18,TØMRERE!$A$7:$A$18,ÅRSTOT!$A16)+SUMIFS(RØRLEGGERE!C$7:C$18,RØRLEGGERE!$A$7:$A$18,ÅRSTOT!$A16)+SUMIFS(MURERE!C$7:C$18,MURERE!$A$7:$A$18,ÅRSTOT!$A16)+SUMIFS('BLIKK OG VENTILASJON'!C$7:C$18,'BLIKK OG VENTILASJON'!$A$7:$A$18,ÅRSTOT!$A16)+SUMIFS(ISOLATØR!C$7:C$18,ISOLATØR!$A$7:$A$18,ÅRSTOT!$A16)+SUMIFS(MALERE!C$7:C$18,MALERE!$A$7:$A$18,ÅRSTOT!$A16)+SUMIFS(TAKTEKKERE!C$7:C$18,TAKTEKKERE!$A$7:$A$18,ÅRSTOT!$A16) -> 12547056.78 | D16: =SUMIFS(BETONG!D$7:D$18,BETONG!$A$7:$A$18,ÅRSTOT!$A16)+SUMIFS(TØMRERE!D$7:D$18,TØMRERE!$A$7:$A$18,ÅRSTOT!$A16)+SUMIFS(RØRLEGGERE!D$7:D$18,RØRLEGGERE!$A$7:$A$18,ÅRSTOT!$A16)+SUMIFS(MURERE!D$7:D$18,MURERE!$A$7:$A$18,ÅRSTOT!$A16)+SUMIFS('BLIKK OG VENTILASJON'!D$7:D$18,'BLIKK OG VENTILASJON'!$A$7:$A$18,ÅRSTOT!$A16)+SUMIFS(ISOLATØR!D$7:D$18,ISOLATØR!$A$7:$A$18,ÅRSTOT!$A16)+SUMIFS(MALERE!D$7:D$18,MALERE!$A$7:$A$18,ÅRSTOT!$A16)+SUMIFS(TAKTEKKERE!D$7:D$18,TAKTEKKERE!$A$7:$A$18,ÅRSTOT!$A16) -> 393951.08 | E16: =SUMIFS(BETONG!E$7:E$18,BETONG!$A$7:$A$18,ÅRSTOT!$A16)+SUMIFS(TØMRERE!E$7:E$18,TØMRERE!$A$7:$A$18,ÅRSTOT!$A16)+SUMIFS(RØRLEGGERE!E$7:E$18,RØRLEGGERE!$A$7:$A$18,ÅRSTOT!$A16)+SUMIFS(MURERE!E$7:E$18,MURERE!$A$7:$A$18,ÅRSTOT!$A16)+SUMIFS('BLIKK OG VENTILASJON'!E$7:E$18,'BLIKK OG VENTILASJON'!$A$7:$A$18,ÅRSTOT!$A16)+SUMIFS(ISOLATØR!E$7:E$18,ISOLATØR!$A$7:$A$18,ÅRSTOT!$A16)+SUMIFS(MALERE!E$7:E$18,MALERE!$A$7:$A$18,ÅRSTOT!$A16)+SUMIFS(TAKTEKKERE!E$7:E$18,TAKTEKKERE!$A$7:$A$18,ÅRSTOT!$A16) -> 64069.08 | F16: =IF(D16=0,0,B16/D16) -> 315.2274389 | G16: 195.8363813 | H16: =IF(D16+E16=0,0,(B16+C16)/(D16+E16)) -> 298.5266997 | I16: =SUMIFS(BETONG!I$7:I$18,BETONG!$A$7:$A$18,ÅRSTOT!$A16)+SUMIFS(TØMRERE!I$7:I$18,TØMRERE!$A$7:$A$18,ÅRSTOT!$A16)+SUMIFS(RØRLEGGERE!I$7:I$18,RØRLEGGERE!$A$7:$A$18,ÅRSTOT!$A16)+SUMIFS(MURERE!I$7:I$18,MURERE!$A$7:$A$18,ÅRSTOT!$A16)+SUMIFS('BLIKK OG VENTILASJON'!I$7:I$18,'BLIKK OG VENTILASJON'!$A$7:$A$18,ÅRSTOT!$A16)+SUMIFS(ISOLATØR!I$7:I$18,ISOLATØR!$A$7:$A$18,ÅRSTOT!$A16)+SUMIFS(MALERE!I$7:I$18,MALERE!$A$7:$A$18,ÅRSTOT!$A16)+SUMIFS(TAKTEKKERE!I$7:I$18,TAKTEKKERE!$A$7:$A$18,ÅRSTOT!$A16) -> 162442110 | J16: =SUMIFS(BETONG!J$7:J$18,BETONG!$A$7:$A$18,ÅRSTOT!$A16)+SUMIFS(TØMRERE!J$7:J$18,TØMRERE!$A$7:$A$18,ÅRSTOT!$A16)+SUMIFS(RØRLEGGERE!J$7:J$18,RØRLEGGERE!$A$7:$A$18,ÅRSTOT!$A16)+SUMIFS(MURERE!J$7:J$18,MURERE!$A$7:$A$18,ÅRSTOT!$A16)+SUMIFS('BLIKK OG VENTILASJON'!J$7:J$18,'BLIKK OG VENTILASJON'!$A$7:$A$18,ÅRSTOT!$A16)+SUMIFS(ISOLATØR!J$7:J$18,ISOLATØR!$A$7:$A$18,ÅRSTOT!$A16)+SUMIFS(MALERE!J$7:J$18,MALERE!$A$7:$A$18,ÅRSTOT!$A16)+SUMIFS(TAKTEKKERE!J$7:J$18,TAKTEKKERE!$A$7:$A$18,ÅRSTOT!$A16) -> 13217204.33 | K16: 294.04 | L16: -0.2355172559 | M16: 0.01525880737
A17: Vestfold | B17: =SUMIFS(BETONG!B$7:B$18,BETONG!$A$7:$A$18,ÅRSTOT!$A17)+SUMIFS(TØMRERE!B$7:B$18,TØMRERE!$A$7:$A$18,ÅRSTOT!$A17)+SUMIFS(RØRLEGGERE!B$7:B$18,RØRLEGGERE!$A$7:$A$18,ÅRSTOT!$A17)+SUMIFS(MURERE!B$7:B$18,MURERE!$A$7:$A$18,ÅRSTOT!$A17)+SUMIFS('BLIKK OG VENTILASJON'!B$7:B$18,'BLIKK OG VENTILASJON'!$A$7:$A$18,ÅRSTOT!$A17)+SUMIFS(ISOLATØR!B$7:B$18,ISOLATØR!$A$7:$A$18,ÅRSTOT!$A17)+SUMIFS(MALERE!B$7:B$18,MALERE!$A$7:$A$18,ÅRSTOT!$A17)+SUMIFS(TAKTEKKERE!B$7:B$18,TAKTEKKERE!$A$7:$A$18,ÅRSTOT!$A17) -> 854436.06 | C17: =SUMIFS(BETONG!C$7:C$18,BETONG!$A$7:$A$18,ÅRSTOT!$A17)+SUMIFS(TØMRERE!C$7:C$18,TØMRERE!$A$7:$A$18,ÅRSTOT!$A17)+SUMIFS(RØRLEGGERE!C$7:C$18,RØRLEGGERE!$A$7:$A$18,ÅRSTOT!$A17)+SUMIFS(MURERE!C$7:C$18,MURERE!$A$7:$A$18,ÅRSTOT!$A17)+SUMIFS('BLIKK OG VENTILASJON'!C$7:C$18,'BLIKK OG VENTILASJON'!$A$7:$A$18,ÅRSTOT!$A17)+SUMIFS(ISOLATØR!C$7:C$18,ISOLATØR!$A$7:$A$18,ÅRSTOT!$A17)+SUMIFS(MALERE!C$7:C$18,MALERE!$A$7:$A$18,ÅRSTOT!$A17)+SUMIFS(TAKTEKKERE!C$7:C$18,TAKTEKKERE!$A$7:$A$18,ÅRSTOT!$A17) -> 0 | D17: =SUMIFS(BETONG!D$7:D$18,BETONG!$A$7:$A$18,ÅRSTOT!$A17)+SUMIFS(TØMRERE!D$7:D$18,TØMRERE!$A$7:$A$18,ÅRSTOT!$A17)+SUMIFS(RØRLEGGERE!D$7:D$18,RØRLEGGERE!$A$7:$A$18,ÅRSTOT!$A17)+SUMIFS(MURERE!D$7:D$18,MURERE!$A$7:$A$18,ÅRSTOT!$A17)+SUMIFS('BLIKK OG VENTILASJON'!D$7:D$18,'BLIKK OG VENTILASJON'!$A$7:$A$18,ÅRSTOT!$A17)+SUMIFS(ISOLATØR!D$7:D$18,ISOLATØR!$A$7:$A$18,ÅRSTOT!$A17)+SUMIFS(MALERE!D$7:D$18,MALERE!$A$7:$A$18,ÅRSTOT!$A17)+SUMIFS(TAKTEKKERE!D$7:D$18,TAKTEKKERE!$A$7:$A$18,ÅRSTOT!$A17) -> 1897 | E17: =SUMIFS(BETONG!E$7:E$18,BETONG!$A$7:$A$18,ÅRSTOT!$A17)+SUMIFS(TØMRERE!E$7:E$18,TØMRERE!$A$7:$A$18,ÅRSTOT!$A17)+SUMIFS(RØRLEGGERE!E$7:E$18,RØRLEGGERE!$A$7:$A$18,ÅRSTOT!$A17)+SUMIFS(MURERE!E$7:E$18,MURERE!$A$7:$A$18,ÅRSTOT!$A17)+SUMIFS('BLIKK OG VENTILASJON'!E$7:E$18,'BLIKK OG VENTILASJON'!$A$7:$A$18,ÅRSTOT!$A17)+SUMIFS(ISOLATØR!E$7:E$18,ISOLATØR!$A$7:$A$18,ÅRSTOT!$A17)+SUMIFS(MALERE!E$7:E$18,MALERE!$A$7:$A$18,ÅRSTOT!$A17)+SUMIFS(TAKTEKKERE!E$7:E$18,TAKTEKKERE!$A$7:$A$18,ÅRSTOT!$A17) -> 0 | F17: 450.4143701 | G17: 0 | H17: 450.4143701 | I17: =SUMIFS(BETONG!I$7:I$18,BETONG!$A$7:$A$18,ÅRSTOT!$A17)+SUMIFS(TØMRERE!I$7:I$18,TØMRERE!$A$7:$A$18,ÅRSTOT!$A17)+SUMIFS(RØRLEGGERE!I$7:I$18,RØRLEGGERE!$A$7:$A$18,ÅRSTOT!$A17)+SUMIFS(MURERE!I$7:I$18,MURERE!$A$7:$A$18,ÅRSTOT!$A17)+SUMIFS('BLIKK OG VENTILASJON'!I$7:I$18,'BLIKK OG VENTILASJON'!$A$7:$A$18,ÅRSTOT!$A17)+SUMIFS(ISOLATØR!I$7:I$18,ISOLATØR!$A$7:$A$18,ÅRSTOT!$A17)+SUMIFS(MALERE!I$7:I$18,MALERE!$A$7:$A$18,ÅRSTOT!$A17)+SUMIFS(TAKTEKKERE!I$7:I$18,TAKTEKKERE!$A$7:$A$18,ÅRSTOT!$A17) -> 955217.98 | J17: =SUMIFS(BETONG!J$7:J$18,BETONG!$A$7:$A$18,ÅRSTOT!$A17)+SUMIFS(TØMRERE!J$7:J$18,TØMRERE!$A$7:$A$18,ÅRSTOT!$A17)+SUMIFS(RØRLEGGERE!J$7:J$18,RØRLEGGERE!$A$7:$A$18,ÅRSTOT!$A17)+SUMIFS(MURERE!J$7:J$18,MURERE!$A$7:$A$18,ÅRSTOT!$A17)+SUMIFS('BLIKK OG VENTILASJON'!J$7:J$18,'BLIKK OG VENTILASJON'!$A$7:$A$18,ÅRSTOT!$A17)+SUMIFS(ISOLATØR!J$7:J$18,ISOLATØR!$A$7:$A$18,ÅRSTOT!$A17)+SUMIFS(MALERE!J$7:J$18,MALERE!$A$7:$A$18,ÅRSTOT!$A17)+SUMIFS(TAKTEKKERE!J$7:J$18,TAKTEKKERE!$A$7:$A$18,ÅRSTOT!$A17) -> 944328 | K17: 179.14 | L17: -0.1055067242 | M17: 1.514314894
A18: Østfold | B18: =SUMIFS(BETONG!B$7:B$18,BETONG!$A$7:$A$18,ÅRSTOT!$A18)+SUMIFS(TØMRERE!B$7:B$18,TØMRERE!$A$7:$A$18,ÅRSTOT!$A18)+SUMIFS(RØRLEGGERE!B$7:B$18,RØRLEGGERE!$A$7:$A$18,ÅRSTOT!$A18)+SUMIFS(MURERE!B$7:B$18,MURERE!$A$7:$A$18,ÅRSTOT!$A18)+SUMIFS('BLIKK OG VENTILASJON'!B$7:B$18,'BLIKK OG VENTILASJON'!$A$7:$A$18,ÅRSTOT!$A18)+SUMIFS(ISOLATØR!B$7:B$18,ISOLATØR!$A$7:$A$18,ÅRSTOT!$A18)+SUMIFS(MALERE!B$7:B$18,MALERE!$A$7:$A$18,ÅRSTOT!$A18)+SUMIFS(TAKTEKKERE!B$7:B$18,TAKTEKKERE!$A$7:$A$18,ÅRSTOT!$A18) -> 9501433 | C18: =SUMIFS(BETONG!C$7:C$18,BETONG!$A$7:$A$18,ÅRSTOT!$A18)+SUMIFS(TØMRERE!C$7:C$18,TØMRERE!$A$7:$A$18,ÅRSTOT!$A18)+SUMIFS(RØRLEGGERE!C$7:C$18,RØRLEGGERE!$A$7:$A$18,ÅRSTOT!$A18)+SUMIFS(MURERE!C$7:C$18,MURERE!$A$7:$A$18,ÅRSTOT!$A18)+SUMIFS('BLIKK OG VENTILASJON'!C$7:C$18,'BLIKK OG VENTILASJON'!$A$7:$A$18,ÅRSTOT!$A18)+SUMIFS(ISOLATØR!C$7:C$18,ISOLATØR!$A$7:$A$18,ÅRSTOT!$A18)+SUMIFS(MALERE!C$7:C$18,MALERE!$A$7:$A$18,ÅRSTOT!$A18)+SUMIFS(TAKTEKKERE!C$7:C$18,TAKTEKKERE!$A$7:$A$18,ÅRSTOT!$A18) -> 2279375 | D18: =SUMIFS(BETONG!D$7:D$18,BETONG!$A$7:$A$18,ÅRSTOT!$A18)+SUMIFS(TØMRERE!D$7:D$18,TØMRERE!$A$7:$A$18,ÅRSTOT!$A18)+SUMIFS(RØRLEGGERE!D$7:D$18,RØRLEGGERE!$A$7:$A$18,ÅRSTOT!$A18)+SUMIFS(MURERE!D$7:D$18,MURERE!$A$7:$A$18,ÅRSTOT!$A18)+SUMIFS('BLIKK OG VENTILASJON'!D$7:D$18,'BLIKK OG VENTILASJON'!$A$7:$A$18,ÅRSTOT!$A18)+SUMIFS(ISOLATØR!D$7:D$18,ISOLATØR!$A$7:$A$18,ÅRSTOT!$A18)+SUMIFS(MALERE!D$7:D$18,MALERE!$A$7:$A$18,ÅRSTOT!$A18)+SUMIFS(TAKTEKKERE!D$7:D$18,TAKTEKKERE!$A$7:$A$18,ÅRSTOT!$A18) -> 30747 | E18: =SUMIFS(BETONG!E$7:E$18,BETONG!$A$7:$A$18,ÅRSTOT!$A18)+SUMIFS(TØMRERE!E$7:E$18,TØMRERE!$A$7:$A$18,ÅRSTOT!$A18)+SUMIFS(RØRLEGGERE!E$7:E$18,RØRLEGGERE!$A$7:$A$18,ÅRSTOT!$A18)+SUMIFS(MURERE!E$7:E$18,MURERE!$A$7:$A$18,ÅRSTOT!$A18)+SUMIFS('BLIKK OG VENTILASJON'!E$7:E$18,'BLIKK OG VENTILASJON'!$A$7:$A$18,ÅRSTOT!$A18)+SUMIFS(ISOLATØR!E$7:E$18,ISOLATØR!$A$7:$A$18,ÅRSTOT!$A18)+SUMIFS(MALERE!E$7:E$18,MALERE!$A$7:$A$18,ÅRSTOT!$A18)+SUMIFS(TAKTEKKERE!E$7:E$18,TAKTEKKERE!$A$7:$A$18,ÅRSTOT!$A18) -> 10349.5 | F18: 309.0198393 | G18: 220.2401082 | H18: 286.6620758 | I18: =SUMIFS(BETONG!I$7:I$18,BETONG!$A$7:$A$18,ÅRSTOT!$A18)+SUMIFS(TØMRERE!I$7:I$18,TØMRERE!$A$7:$A$18,ÅRSTOT!$A18)+SUMIFS(RØRLEGGERE!I$7:I$18,RØRLEGGERE!$A$7:$A$18,ÅRSTOT!$A18)+SUMIFS(MURERE!I$7:I$18,MURERE!$A$7:$A$18,ÅRSTOT!$A18)+SUMIFS('BLIKK OG VENTILASJON'!I$7:I$18,'BLIKK OG VENTILASJON'!$A$7:$A$18,ÅRSTOT!$A18)+SUMIFS(ISOLATØR!I$7:I$18,ISOLATØR!$A$7:$A$18,ÅRSTOT!$A18)+SUMIFS(MALERE!I$7:I$18,MALERE!$A$7:$A$18,ÅRSTOT!$A18)+SUMIFS(TAKTEKKERE!I$7:I$18,TAKTEKKERE!$A$7:$A$18,ÅRSTOT!$A18) -> 9063849 | J18: =SUMIFS(BETONG!J$7:J$18,BETONG!$A$7:$A$18,ÅRSTOT!$A18)+SUMIFS(TØMRERE!J$7:J$18,TØMRERE!$A$7:$A$18,ÅRSTOT!$A18)+SUMIFS(RØRLEGGERE!J$7:J$18,RØRLEGGERE!$A$7:$A$18,ÅRSTOT!$A18)+SUMIFS(MURERE!J$7:J$18,MURERE!$A$7:$A$18,ÅRSTOT!$A18)+SUMIFS('BLIKK OG VENTILASJON'!J$7:J$18,'BLIKK OG VENTILASJON'!$A$7:$A$18,ÅRSTOT!$A18)+SUMIFS(ISOLATØR!J$7:J$18,ISOLATØR!$A$7:$A$18,ÅRSTOT!$A18)+SUMIFS(MALERE!J$7:J$18,MALERE!$A$7:$A$18,ÅRSTOT!$A18)+SUMIFS(TAKTEKKERE!J$7:J$18,TAKTEKKERE!$A$7:$A$18,ÅRSTOT!$A18) -> 6304938 | K18: 262.49 | L18: 0.04827794461 | M18: 0.09208760656
A19: Oslo | B19: =SUMIFS(BETONG!B$7:B$18,BETONG!$A$7:$A$18,ÅRSTOT!$A19)+SUMIFS(TØMRERE!B$7:B$18,TØMRERE!$A$7:$A$18,ÅRSTOT!$A19)+SUMIFS(RØRLEGGERE!B$7:B$18,RØRLEGGERE!$A$7:$A$18,ÅRSTOT!$A19)+SUMIFS(MURERE!B$7:B$18,MURERE!$A$7:$A$18,ÅRSTOT!$A19)+SUMIFS('BLIKK OG VENTILASJON'!B$7:B$18,'BLIKK OG VENTILASJON'!$A$7:$A$18,ÅRSTOT!$A19)+SUMIFS(ISOLATØR!B$7:B$18,ISOLATØR!$A$7:$A$18,ÅRSTOT!$A19)+SUMIFS(MALERE!B$7:B$18,MALERE!$A$7:$A$18,ÅRSTOT!$A19)+SUMIFS(TAKTEKKERE!B$7:B$18,TAKTEKKERE!$A$7:$A$18,ÅRSTOT!$A19) -> 105329865.8 | C19: =SUMIFS(BETONG!C$7:C$18,BETONG!$A$7:$A$18,ÅRSTOT!$A19)+SUMIFS(TØMRERE!C$7:C$18,TØMRERE!$A$7:$A$18,ÅRSTOT!$A19)+SUMIFS(RØRLEGGERE!C$7:C$18,RØRLEGGERE!$A$7:$A$18,ÅRSTOT!$A19)+SUMIFS(MURERE!C$7:C$18,MURERE!$A$7:$A$18,ÅRSTOT!$A19)+SUMIFS('BLIKK OG VENTILASJON'!C$7:C$18,'BLIKK OG VENTILASJON'!$A$7:$A$18,ÅRSTOT!$A19)+SUMIFS(ISOLATØR!C$7:C$18,ISOLATØR!$A$7:$A$18,ÅRSTOT!$A19)+SUMIFS(MALERE!C$7:C$18,MALERE!$A$7:$A$18,ÅRSTOT!$A19)+SUMIFS(TAKTEKKERE!C$7:C$18,TAKTEKKERE!$A$7:$A$18,ÅRSTOT!$A19) -> 2745163.03 | D19: =SUMIFS(BETONG!D$7:D$18,BETONG!$A$7:$A$18,ÅRSTOT!$A19)+SUMIFS(TØMRERE!D$7:D$18,TØMRERE!$A$7:$A$18,ÅRSTOT!$A19)+SUMIFS(RØRLEGGERE!D$7:D$18,RØRLEGGERE!$A$7:$A$18,ÅRSTOT!$A19)+SUMIFS(MURERE!D$7:D$18,MURERE!$A$7:$A$18,ÅRSTOT!$A19)+SUMIFS('BLIKK OG VENTILASJON'!D$7:D$18,'BLIKK OG VENTILASJON'!$A$7:$A$18,ÅRSTOT!$A19)+SUMIFS(ISOLATØR!D$7:D$18,ISOLATØR!$A$7:$A$18,ÅRSTOT!$A19)+SUMIFS(MALERE!D$7:D$18,MALERE!$A$7:$A$18,ÅRSTOT!$A19)+SUMIFS(TAKTEKKERE!D$7:D$18,TAKTEKKERE!$A$7:$A$18,ÅRSTOT!$A19) -> 312700.4 | E19: =SUMIFS(BETONG!E$7:E$18,BETONG!$A$7:$A$18,ÅRSTOT!$A19)+SUMIFS(TØMRERE!E$7:E$18,TØMRERE!$A$7:$A$18,ÅRSTOT!$A19)+SUMIFS(RØRLEGGERE!E$7:E$18,RØRLEGGERE!$A$7:$A$18,ÅRSTOT!$A19)+SUMIFS(MURERE!E$7:E$18,MURERE!$A$7:$A$18,ÅRSTOT!$A19)+SUMIFS('BLIKK OG VENTILASJON'!E$7:E$18,'BLIKK OG VENTILASJON'!$A$7:$A$18,ÅRSTOT!$A19)+SUMIFS(ISOLATØR!E$7:E$18,ISOLATØR!$A$7:$A$18,ÅRSTOT!$A19)+SUMIFS(MALERE!E$7:E$18,MALERE!$A$7:$A$18,ÅRSTOT!$A19)+SUMIFS(TAKTEKKERE!E$7:E$18,TAKTEKKERE!$A$7:$A$18,ÅRSTOT!$A19) -> 12826.7 | F19: 336.839562 | G19: 214.0194306 | H19: 332.000097 | I19: =SUMIFS(BETONG!I$7:I$18,BETONG!$A$7:$A$18,ÅRSTOT!$A19)+SUMIFS(TØMRERE!I$7:I$18,TØMRERE!$A$7:$A$18,ÅRSTOT!$A19)+SUMIFS(RØRLEGGERE!I$7:I$18,RØRLEGGERE!$A$7:$A$18,ÅRSTOT!$A19)+SUMIFS(MURERE!I$7:I$18,MURERE!$A$7:$A$18,ÅRSTOT!$A19)+SUMIFS('BLIKK OG VENTILASJON'!I$7:I$18,'BLIKK OG VENTILASJON'!$A$7:$A$18,ÅRSTOT!$A19)+SUMIFS(ISOLATØR!I$7:I$18,ISOLATØR!$A$7:$A$18,ÅRSTOT!$A19)+SUMIFS(MALERE!I$7:I$18,MALERE!$A$7:$A$18,ÅRSTOT!$A19)+SUMIFS(TAKTEKKERE!I$7:I$18,TAKTEKKERE!$A$7:$A$18,ÅRSTOT!$A19) -> 96996939.17 | J19: =SUMIFS(BETONG!J$7:J$18,BETONG!$A$7:$A$18,ÅRSTOT!$A19)+SUMIFS(TØMRERE!J$7:J$18,TØMRERE!$A$7:$A$18,ÅRSTOT!$A19)+SUMIFS(RØRLEGGERE!J$7:J$18,RØRLEGGERE!$A$7:$A$18,ÅRSTOT!$A19)+SUMIFS(MURERE!J$7:J$18,MURERE!$A$7:$A$18,ÅRSTOT!$A19)+SUMIFS('BLIKK OG VENTILASJON'!J$7:J$18,'BLIKK OG VENTILASJON'!$A$7:$A$18,ÅRSTOT!$A19)+SUMIFS(ISOLATØR!J$7:J$18,ISOLATØR!$A$7:$A$18,ÅRSTOT!$A19)+SUMIFS(MALERE!J$7:J$18,MALERE!$A$7:$A$18,ÅRSTOT!$A19)+SUMIFS(TAKTEKKERE!J$7:J$18,TAKTEKKERE!$A$7:$A$18,ÅRSTOT!$A19) -> 8481271.41 | K19: 306.61 | L19: 0.08590917055 | M19: 0.08280909639
A20: Landet i alt | B20: =SUM(B7:B19) -> 351250038.1 | C20: =SUM(C7:C19) -> 18797135.81 | D20: =SUM(D7:D19) -> 1101539.22 | E20: =SUM(E7:E19) -> 92937.76 | F20: =IF(D20=0,0,B20/D20) -> 318.8720217 | G20: =IF(E20=0,0,C20/E20) -> 202.2550986 | H20: =IF(D20+E20=0,0,(B20+C20)/(D20+E20)) -> 309.7984977 | I20: =SUM(I7:I19) -> 370597268.4 | J20: =SUM(J7:J19) -> 29529848.74 | K20: 294.65 | L20: =IF(I20=0,0,(B20-I20)/I20) -> -0.05220553939 | M20: =IF(K20=0,0,(H20-K20)/K20) -> 0.05141183661
A23: ="MÅLESTATISTIKK FOR ALLE BYGGFAG - 2. HALVÅR "&FORS!$A$14 -> MÅLESTATISTIKK FOR ALLE BYGGFAG - 2. HALVÅR 2020
B25: Målesum i kroner | D25: Timer | F25: ="Fortjeneste 2. halvår "&FORS!$A$14-0 -> Fortjeneste 2. halvår 2020 | I25: =" 2. halvår "&FORS!$A$14-1 -> 2. halvår 2019 | L25: Endringer i %
B26: Innmålt m/ | C26: Innmålt m/ | D26: Innmålt m/ | E26: Innmålt m/ | F26: Innmålt m/ | G26: Innmålt m/ | H26: Gjennom- | I26: Innmålt m/ | J26: Innmålt m/ | K26: Gjen.snitt | L26: Innmålt m/ | M26: Gjen.snitt
B27: overskudd | C27: underskudd | D27: overskudd | E27: underskudd | F27: overskudd | G27: underskudd | H27: snitt | I27: overskudd | J27: underskudd | K27: fortjeneste | L27: overskudd | M27: fortjeneste
A28: Agder | B28: =SUMIFS(BETONG!B$27:B$38,BETONG!$A$27:$A$38,ÅRSTOT!$A28)+SUMIFS(TØMRERE!B$27:B$38,TØMRERE!$A$27:$A$38,ÅRSTOT!$A28)+SUMIFS(RØRLEGGERE!B$27:B$38,RØRLEGGERE!$A$27:$A$38,ÅRSTOT!$A28)+SUMIFS(MURERE!B$27:B$38,MURERE!$A$27:$A$38,ÅRSTOT!$A28)+SUMIFS('BLIKK OG VENTILASJON'!B$27:B$38,'BLIKK OG VENTILASJON'!$A$27:$A$38,ÅRSTOT!$A28)+SUMIFS(ISOLATØR!B$27:B$38,ISOLATØR!$A$27:$A$38,ÅRSTOT!$A28)+SUMIFS(MALERE!B$27:B$38,MALERE!$A$27:$A$38,ÅRSTOT!$A28)+SUMIFS(TAKTEKKERE!B$27:B$38,TAKTEKKERE!$A$27:$A$38,ÅRSTOT!$A28) -> 11804988 | C28: =SUMIFS(BETONG!C$27:C$38,BETONG!$A$27:$A$38,ÅRSTOT!$A28)+SUMIFS(TØMRERE!C$27:C$38,TØMRERE!$A$27:$A$38,ÅRSTOT!$A28)+SUMIFS(RØRLEGGERE!C$27:C$38,RØRLEGGERE!$A$27:$A$38,ÅRSTOT!$A28)+SUMIFS(MURERE!C$27:C$38,MURERE!$A$27:$A$38,ÅRSTOT!$A28)+SUMIFS('BLIKK OG VENTILASJON'!C$27:C$38,'BLIKK OG VENTILASJON'!$A$27:$A$38,ÅRSTOT!$A28)+SUMIFS(ISOLATØR!C$27:C$38,ISOLATØR!$A$27:$A$38,ÅRSTOT!$A28)+SUMIFS(MALERE!C$27:C$38,MALERE!$A$27:$A$38,ÅRSTOT!$A28)+SUMIFS(TAKTEKKERE!C$27:C$38,TAKTEKKERE!$A$27:$A$38,ÅRSTOT!$A28) -> 0 | D28: =SUMIFS(BETONG!D$27:D$38,BETONG!$A$27:$A$38,ÅRSTOT!$A28)+SUMIFS(TØMRERE!D$27:D$38,TØMRERE!$A$27:$A$38,ÅRSTOT!$A28)+SUMIFS(RØRLEGGERE!D$27:D$38,RØRLEGGERE!$A$27:$A$38,ÅRSTOT!$A28)+SUMIFS(MURERE!D$27:D$38,MURERE!$A$27:$A$38,ÅRSTOT!$A28)+SUMIFS('BLIKK OG VENTILASJON'!D$27:D$38,'BLIKK OG VENTILASJON'!$A$27:$A$38,ÅRSTOT!$A28)+SUMIFS(ISOLATØR!D$27:D$38,ISOLATØR!$A$27:$A$38,ÅRSTOT!$A28)+SUMIFS(MALERE!D$27:D$38,MALERE!$A$27:$A$38,ÅRSTOT!$A28)+SUMIFS(TAKTEKKERE!D$27:D$38,TAKTEKKERE!$A$27:$A$38,ÅRSTOT!$A28) -> 38347 | E28: =SUMIFS(BETONG!E$27:E$38,BETONG!$A$27:$A$38,ÅRSTOT!$A28)+SUMIFS(TØMRERE!E$27:E$38,TØMRERE!$A$27:$A$38,ÅRSTOT!$A28)+SUMIFS(RØRLEGGERE!E$27:E$38,RØRLEGGERE!$A$27:$A$38,ÅRSTOT!$A28)+SUMIFS(MURERE!E$27:E$38,MURERE!$A$27:$A$38,ÅRSTOT!$A28)+SUMIFS('BLIKK OG VENTILASJON'!E$27:E$38,'BLIKK OG VENTILASJON'!$A$27:$A$38,ÅRSTOT!$A28)+SUMIFS(ISOLATØR!E$27:E$38,ISOLATØR!$A$27:$A$38,ÅRSTOT!$A28)+SUMIFS(MALERE!E$27:E$38,MALERE!$A$27:$A$38,ÅRSTOT!$A28)+SUMIFS(TAKTEKKERE!E$27:E$38,TAKTEKKERE!$A$27:$A$38,ÅRSTOT!$A28) -> 0 | F28: =IF(D28=0,0,B28/D28) -> 307.8464547 | G28: =IF(E28=0,0,C28/E28) -> 0 | H28: =IF(D28+E28=0,0,(B28+C28)/(D28+E28)) -> 307.8464547 | I28: =SUMIFS(BETONG!I$27:I$38,BETONG!$A$27:$A$38,ÅRSTOT!$A28)+SUMIFS(TØMRERE!I$27:I$38,TØMRERE!$A$27:$A$38,ÅRSTOT!$A28)+SUMIFS(RØRLEGGERE!I$27:I$38,RØRLEGGERE!$A$27:$A$38,ÅRSTOT!$A28)+SUMIFS(MURERE!I$27:I$38,MURERE!$A$27:$A$38,ÅRSTOT!$A28)+SUMIFS('BLIKK OG VENTILASJON'!I$27:I$38,'BLIKK OG VENTILASJON'!$A$27:$A$38,ÅRSTOT!$A28)+SUMIFS(ISOLATØR!I$27:I$38,ISOLATØR!$A$27:$A$38,ÅRSTOT!$A28)+SUMIFS(MALERE!I$27:I$38,MALERE!$A$27:$A$38,ÅRSTOT!$A28)+SUMIFS(TAKTEKKERE!I$27:I$38,TAKTEKKERE!$A$27:$A$38,ÅRSTOT!$A28) -> 4983250 | J28: =SUMIFS(BETONG!J$27:J$38,BETONG!$A$27:$A$38,ÅRSTOT!$A28)+SUMIFS(TØMRERE!J$27:J$38,TØMRERE!$A$27:$A$38,ÅRSTOT!$A28)+SUMIFS(RØRLEGGERE!J$27:J$38,RØRLEGGERE!$A$27:$A$38,ÅRSTOT!$A28)+SUMIFS(MURERE!J$27:J$38,MURERE!$A$27:$A$38,ÅRSTOT!$A28)+SUMIFS('BLIKK OG VENTILASJON'!J$27:J$38,'BLIKK OG VENTILASJON'!$A$27:$A$38,ÅRSTOT!$A28)+SUMIFS(ISOLATØR!J$27:J$38,ISOLATØR!$A$27:$A$38,ÅRSTOT!$A28)+SUMIFS(MALERE!J$27:J$38,MALERE!$A$27:$A$38,ÅRSTOT!$A28)+SUMIFS(TAKTEKKERE!J$27:J$38,TAKTEKKERE!$A$27:$A$38,ÅRSTOT!$A28) -> 277034 | K28: 287.75 | L28: =IF(I28=0,0,(B28-I28)/I28) -> 1.368933527 | M28: =IF(K28=0,0,(H28-K28)/K28) -> 0.06983998173
A29: Bergen | B29: =SUMIFS(BETONG!B$27:B$38,BETONG!$A$27:$A$38,ÅRSTOT!$A29)+SUMIFS(TØMRERE!B$27:B$38,TØMRERE!$A$27:$A$38,ÅRSTOT!$A29)+SUMIFS(RØRLEGGERE!B$27:B$38,RØRLEGGERE!$A$27:$A$38,ÅRSTOT!$A29)+SUMIFS(MURERE!B$27:B$38,MURERE!$A$27:$A$38,ÅRSTOT!$A29)+SUMIFS('BLIKK OG VENTILASJON'!B$27:B$38,'BLIKK OG VENTILASJON'!$A$27:$A$38,ÅRSTOT!$A29)+SUMIFS(ISOLATØR!B$27:B$38,ISOLATØR!$A$27:$A$38,ÅRSTOT!$A29)+SUMIFS(MALERE!B$27:B$38,MALERE!$A$27:$A$38,ÅRSTOT!$A29)+SUMIFS(TAKTEKKERE!B$27:B$38,TAKTEKKERE!$A$27:$A$38,ÅRSTOT!$A29) -> 38863806.78 | C29: =SUMIFS(BETONG!C$27:C$38,BETONG!$A$27:$A$38,ÅRSTOT!$A29)+SUMIFS(TØMRERE!C$27:C$38,TØMRERE!$A$27:$A$38,ÅRSTOT!$A29)+SUMIFS(RØRLEGGERE!C$27:C$38,RØRLEGGERE!$A$27:$A$38,ÅRSTOT!$A29)+SUMIFS(MURERE!C$27:C$38,MURERE!$A$27:$A$38,ÅRSTOT!$A29)+SUMIFS('BLIKK OG VENTILASJON'!C$27:C$38,'BLIKK OG VENTILASJON'!$A$27:$A$38,ÅRSTOT!$A29)+SUMIFS(ISOLATØR!C$27:C$38,ISOLATØR!$A$27:$A$38,ÅRSTOT!$A29)+SUMIFS(MALERE!C$27:C$38,MALERE!$A$27:$A$38,ÅRSTOT!$A29)+SUMIFS(TAKTEKKERE!C$27:C$38,TAKTEKKERE!$A$27:$A$38,ÅRSTOT!$A29) -> 0 | D29: =SUMIFS(BETONG!D$27:D$38,BETONG!$A$27:$A$38,ÅRSTOT!$A29)+SUMIFS(TØMRERE!D$27:D$38,TØMRERE!$A$27:$A$38,ÅRSTOT!$A29)+SUMIFS(RØRLEGGERE!D$27:D$38,RØRLEGGERE!$A$27:$A$38,ÅRSTOT!$A29)+SUMIFS(MURERE!D$27:D$38,MURERE!$A$27:$A$38,ÅRSTOT!$A29)+SUMIFS('BLIKK OG VENTILASJON'!D$27:D$38,'BLIKK OG VENTILASJON'!$A$27:$A$38,ÅRSTOT!$A29)+SUMIFS(ISOLATØR!D$27:D$38,ISOLATØR!$A$27:$A$38,ÅRSTOT!$A29)+SUMIFS(MALERE!D$27:D$38,MALERE!$A$27:$A$38,ÅRSTOT!$A29)+SUMIFS(TAKTEKKERE!D$27:D$38,TAKTEKKERE!$A$27:$A$38,ÅRSTOT!$A29) -> 135363.47 | E29: =SUMIFS(BETONG!E$27:E$38,BETONG!$A$27:$A$38,ÅRSTOT!$A29)+SUMIFS(TØMRERE!E$27:E$38,TØMRERE!$A$27:$A$38,ÅRSTOT!$A29)+SUMIFS(RØRLEGGERE!E$27:E$38,RØRLEGGERE!$A$27:$A$38,ÅRSTOT!$A29)+SUMIFS(MURERE!E$27:E$38,MURERE!$A$27:$A$38,ÅRSTOT!$A29)+SUMIFS('BLIKK OG VENTILASJON'!E$27:E$38,'BLIKK OG VENTILASJON'!$A$27:$A$38,ÅRSTOT!$A29)+SUMIFS(ISOLATØR!E$27:E$38,ISOLATØR!$A$27:$A$38,ÅRSTOT!$A29)+SUMIFS(MALERE!E$27:E$38,MALERE!$A$27:$A$38,ÅRSTOT!$A29)+SUMIFS(TAKTEKKERE!E$27:E$38,TAKTEKKERE!$A$27:$A$38,ÅRSTOT!$A29) -> 0 | F29: 287.1070517 | G29: 0 | H29: 287.1070517 | I29: =SUMIFS(BETONG!I$27:I$38,BETONG!$A$27:$A$38,ÅRSTOT!$A29)+SUMIFS(TØMRERE!I$27:I$38,TØMRERE!$A$27:$A$38,ÅRSTOT!$A29)+SUMIFS(RØRLEGGERE!I$27:I$38,RØRLEGGERE!$A$27:$A$38,ÅRSTOT!$A29)+SUMIFS(MURERE!I$27:I$38,MURERE!$A$27:$A$38,ÅRSTOT!$A29)+SUMIFS('BLIKK OG VENTILASJON'!I$27:I$38,'BLIKK OG VENTILASJON'!$A$27:$A$38,ÅRSTOT!$A29)+SUMIFS(ISOLATØR!I$27:I$38,ISOLATØR!$A$27:$A$38,ÅRSTOT!$A29)+SUMIFS(MALERE!I$27:I$38,MALERE!$A$27:$A$38,ÅRSTOT!$A29)+SUMIFS(TAKTEKKERE!I$27:I$38,TAKTEKKERE!$A$27:$A$38,ÅRSTOT!$A29) -> 20959880.15 | J29: =SUMIFS(BETONG!J$27:J$38,BETONG!$A$27:$A$38,ÅRSTOT!$A29)+SUMIFS(TØMRERE!J$27:J$38,TØMRERE!$A$27:$A$38,ÅRSTOT!$A29)+SUMIFS(RØRLEGGERE!J$27:J$38,RØRLEGGERE!$A$27:$A$38,ÅRSTOT!$A29)+SUMIFS(MURERE!J$27:J$38,MURERE!$A$27:$A$38,ÅRSTOT!$A29)+SUMIFS('BLIKK OG VENTILASJON'!J$27:J$38,'BLIKK OG VENTILASJON'!$A$27:$A$38,ÅRSTOT!$A29)+SUMIFS(ISOLATØR!J$27:J$38,ISOLATØR!$A$27:$A$38,ÅRSTOT!$A29)+SUMIFS(MALERE!J$27:J$38,MALERE!$A$27:$A$38,ÅRSTOT!$A29)+SUMIFS(TAKTEKKERE!J$27:J$38,TAKTEKKERE!$A$27:$A$38,ÅRSTOT!$A29) -> 0 | K29: 290.69 | L29: =IF(I29=0,0,(B29-I29)/I29) -> 0.8541998571 | M29: -0.01232566754
A30: Nordland | B30: =SUMIFS(BETONG!B$27:B$38,BETONG!$A$27:$A$38,ÅRSTOT!$A30)+SUMIFS(TØMRERE!B$27:B$38,TØMRERE!$A$27:$A$38,ÅRSTOT!$A30)+SUMIFS(RØRLEGGERE!B$27:B$38,RØRLEGGERE!$A$27:$A$38,ÅRSTOT!$A30)+SUMIFS(MURERE!B$27:B$38,MURERE!$A$27:$A$38,ÅRSTOT!$A30)+SUMIFS('BLIKK OG VENTILASJON'!B$27:B$38,'BLIKK OG VENTILASJON'!$A$27:$A$38,ÅRSTOT!$A30)+SUMIFS(ISOLATØR!B$27:B$38,ISOLATØR!$A$27:$A$38,ÅRSTOT!$A30)+SUMIFS(MALERE!B$27:B$38,MALERE!$A$27:$A$38,ÅRSTOT!$A30)+SUMIFS(TAKTEKKERE!B$27:B$38,TAKTEKKERE!$A$27:$A$38,ÅRSTOT!$A30) -> 0 | C30: =SUMIFS(BETONG!C$27:C$38,BETONG!$A$27:$A$38,ÅRSTOT!$A30)+SUMIFS(TØMRERE!C$27:C$38,TØMRERE!$A$27:$A$38,ÅRSTOT!$A30)+SUMIFS(RØRLEGGERE!C$27:C$38,RØRLEGGERE!$A$27:$A$38,ÅRSTOT!$A30)+SUMIFS(MURERE!C$27:C$38,MURERE!$A$27:$A$38,ÅRSTOT!$A30)+SUMIFS('BLIKK OG VENTILASJON'!C$27:C$38,'BLIKK OG VENTILASJON'!$A$27:$A$38,ÅRSTOT!$A30)+SUMIFS(ISOLATØR!C$27:C$38,ISOLATØR!$A$27:$A$38,ÅRSTOT!$A30)+SUMIFS(MALERE!C$27:C$38,MALERE!$A$27:$A$38,ÅRSTOT!$A30)+SUMIFS(TAKTEKKERE!C$27:C$38,TAKTEKKERE!$A$27:$A$38,ÅRSTOT!$A30) -> 424816.48 | D30: =SUMIFS(BETONG!D$27:D$38,BETONG!$A$27:$A$38,ÅRSTOT!$A30)+SUMIFS(TØMRERE!D$27:D$38,TØMRERE!$A$27:$A$38,ÅRSTOT!$A30)+SUMIFS(RØRLEGGERE!D$27:D$38,RØRLEGGERE!$A$27:$A$38,ÅRSTOT!$A30)+SUMIFS(MURERE!D$27:D$38,MURERE!$A$27:$A$38,ÅRSTOT!$A30)+SUMIFS('BLIKK OG VENTILASJON'!D$27:D$38,'BLIKK OG VENTILASJON'!$A$27:$A$38,ÅRSTOT!$A30)+SUMIFS(ISOLATØR!D$27:D$38,ISOLATØR!$A$27:$A$38,ÅRSTOT!$A30)+SUMIFS(MALERE!D$27:D$38,MALERE!$A$27:$A$38,ÅRSTOT!$A30)+SUMIFS(TAKTEKKERE!D$27:D$38,TAKTEKKERE!$A$27:$A$38,ÅRSTOT!$A30) -> 0 | E30: =SUMIFS(BETONG!E$27:E$38,BETONG!$A$27:$A$38,ÅRSTOT!$A30)+SUMIFS(TØMRERE!E$27:E$38,TØMRERE!$A$27:$A$38,ÅRSTOT!$A30)+SUMIFS(RØRLEGGERE!E$27:E$38,RØRLEGGERE!$A$27:$A$38,ÅRSTOT!$A30)+SUMIFS(MURERE!E$27:E$38,MURERE!$A$27:$A$38,ÅRSTOT!$A30)+SUMIFS('BLIKK OG VENTILASJON'!E$27:E$38,'BLIKK OG VENTILASJON'!$A$27:$A$38,ÅRSTOT!$A30)+SUMIFS(ISOLATØR!E$27:E$38,ISOLATØR!$A$27:$A$38,ÅRSTOT!$A30)+SUMIFS(MALERE!E$27:E$38,MALERE!$A$27:$A$38,ÅRSTOT!$A30)+SUMIFS(TAKTEKKERE!E$27:E$38,TAKTEKKERE!$A$27:$A$38,ÅRSTOT!$A30) -> 2105.5 | F30: 0 | G30: 201.7651294 | H30: 201.7651294 | I30: =SUMIFS(BETONG!I$27:I$38,BETONG!$A$27:$A$38,ÅRSTOT!$A30)+SUMIFS(TØMRERE!I$27:I$38,TØMRERE!$A$27:$A$38,ÅRSTOT!$A30)+SUMIFS(RØRLEGGERE!I$27:I$38,RØRLEGGERE!$A$27:$A$38,ÅRSTOT!$A30)+SUMIFS(MURERE!I$27:I$38,MURERE!$A$27:$A$38,ÅRSTOT!$A30)+SUMIFS('BLIKK OG VENTILASJON'!I$27:I$38,'BLIKK OG VENTILASJON'!$A$27:$A$38,ÅRSTOT!$A30)+SUMIFS(ISOLATØR!I$27:I$38,ISOLATØR!$A$27:$A$38,ÅRSTOT!$A30)+SUMIFS(MALERE!I$27:I$38,MALERE!$A$27:$A$38,ÅRSTOT!$A30)+SUMIFS(TAKTEKKERE!I$27:I$38,TAKTEKKERE!$A$27:$A$38,ÅRSTOT!$A30) -> 0 | J30: =SUMIFS(BETONG!J$27:J$38,BETONG!$A$27:$A$38,ÅRSTOT!$A30)+SUMIFS(TØMRERE!J$27:J$38,TØMRERE!$A$27:$A$38,ÅRSTOT!$A30)+SUMIFS(RØRLEGGERE!J$27:J$38,RØRLEGGERE!$A$27:$A$38,ÅRSTOT!$A30)+SUMIFS(MURERE!J$27:J$38,MURERE!$A$27:$A$38,ÅRSTOT!$A30)+SUMIFS('BLIKK OG VENTILASJON'!J$27:J$38,'BLIKK OG VENTILASJON'!$A$27:$A$38,ÅRSTOT!$A30)+SUMIFS(ISOLATØR!J$27:J$38,ISOLATØR!$A$27:$A$38,ÅRSTOT!$A30)+SUMIFS(MALERE!J$27:J$38,MALERE!$A$27:$A$38,ÅRSTOT!$A30)+SUMIFS(TAKTEKKERE!J$27:J$38,TAKTEKKERE!$A$27:$A$38,ÅRSTOT!$A30) -> 0 | K30: =IF(G30+H30=0,0,(E30+F30)/(G30+H30)) -> 5.217700417 | L30: 0 | M30: 37.66935878
A31: Drammen - Bærum | B31: =SUMIFS(BETONG!B$27:B$38,BETONG!$A$27:$A$38,ÅRSTOT!$A31)+SUMIFS(TØMRERE!B$27:B$38,TØMRERE!$A$27:$A$38,ÅRSTOT!$A31)+SUMIFS(RØRLEGGERE!B$27:B$38,RØRLEGGERE!$A$27:$A$38,ÅRSTOT!$A31)+SUMIFS(MURERE!B$27:B$38,MURERE!$A$27:$A$38,ÅRSTOT!$A31)+SUMIFS('BLIKK OG VENTILASJON'!B$27:B$38,'BLIKK OG VENTILASJON'!$A$27:$A$38,ÅRSTOT!$A31)+SUMIFS(ISOLATØR!B$27:B$38,ISOLATØR!$A$27:$A$38,ÅRSTOT!$A31)+SUMIFS(MALERE!B$27:B$38,MALERE!$A$27:$A$38,ÅRSTOT!$A31)+SUMIFS(TAKTEKKERE!B$27:B$38,TAKTEKKERE!$A$27:$A$38,ÅRSTOT!$A31) -> 0 | C31: =SUMIFS(BETONG!C$27:C$38,BETONG!$A$27:$A$38,ÅRSTOT!$A31)+SUMIFS(TØMRERE!C$27:C$38,TØMRERE!$A$27:$A$38,ÅRSTOT!$A31)+SUMIFS(RØRLEGGERE!C$27:C$38,RØRLEGGERE!$A$27:$A$38,ÅRSTOT!$A31)+SUMIFS(MURERE!C$27:C$38,MURERE!$A$27:$A$38,ÅRSTOT!$A31)+SUMIFS('BLIKK OG VENTILASJON'!C$27:C$38,'BLIKK OG VENTILASJON'!$A$27:$A$38,ÅRSTOT!$A31)+SUMIFS(ISOLATØR!C$27:C$38,ISOLATØR!$A$27:$A$38,ÅRSTOT!$A31)+SUMIFS(MALERE!C$27:C$38,MALERE!$A$27:$A$38,ÅRSTOT!$A31)+SUMIFS(TAKTEKKERE!C$27:C$38,TAKTEKKERE!$A$27:$A$38,ÅRSTOT!$A31) -> 0 | D31: =SUMIFS(BETONG!D$27:D$38,BETONG!$A$27:$A$38,ÅRSTOT!$A31)+SUMIFS(TØMRERE!D$27:D$38,TØMRERE!$A$27:$A$38,ÅRSTOT!$A31)+SUMIFS(RØRLEGGERE!D$27:D$38,RØRLEGGERE!$A$27:$A$38,ÅRSTOT!$A31)+SUMIFS(MURERE!D$27:D$38,MURERE!$A$27:$A$38,ÅRSTOT!$A31)+SUMIFS('BLIKK OG VENTILASJON'!D$27:D$38,'BLIKK OG VENTILASJON'!$A$27:$A$38,ÅRSTOT!$A31)+SUMIFS(ISOLATØR!D$27:D$38,ISOLATØR!$A$27:$A$38,ÅRSTOT!$A31)+SUMIFS(MALERE!D$27:D$38,MALERE!$A$27:$A$38,ÅRSTOT!$A31)+SUMIFS(TAKTEKKERE!D$27:D$38,TAKTEKKERE!$A$27:$A$38,ÅRSTOT!$A31) -> 0 | E31: =SUMIFS(BETONG!E$27:E$38,BETONG!$A$27:$A$38,ÅRSTOT!$A31)+SUMIFS(TØMRERE!E$27:E$38,TØMRERE!$A$27:$A$38,ÅRSTOT!$A31)+SUMIFS(RØRLEGGERE!E$27:E$38,RØRLEGGERE!$A$27:$A$38,ÅRSTOT!$A31)+SUMIFS(MURERE!E$27:E$38,MURERE!$A$27:$A$38,ÅRSTOT!$A31)+SUMIFS('BLIKK OG VENTILASJON'!E$27:E$38,'BLIKK OG VENTILASJON'!$A$27:$A$38,ÅRSTOT!$A31)+SUMIFS(ISOLATØR!E$27:E$38,ISOLATØR!$A$27:$A$38,ÅRSTOT!$A31)+SUMIFS(MALERE!E$27:E$38,MALERE!$A$27:$A$38,ÅRSTOT!$A31)+SUMIFS(TAKTEKKERE!E$27:E$38,TAKTEKKERE!$A$27:$A$38,ÅRSTOT!$A31) -> 0 | F31: 0 | G31: 0 | H31: 0 | I31: =SUMIFS(BETONG!I$27:I$38,BETONG!$A$27:$A$38,ÅRSTOT!$A31)+SUMIFS(TØMRERE!I$27:I$38,TØMRERE!$A$27:$A$38,ÅRSTOT!$A31)+SUMIFS(RØRLEGGERE!I$27:I$38,RØRLEGGERE!$A$27:$A$38,ÅRSTOT!$A31)+SUMIFS(MURERE!I$27:I$38,MURERE!$A$27:$A$38,ÅRSTOT!$A31)+SUMIFS('BLIKK OG VENTILASJON'!I$27:I$38,'BLIKK OG VENTILASJON'!$A$27:$A$38,ÅRSTOT!$A31)+SUMIFS(ISOLATØR!I$27:I$38,ISOLATØR!$A$27:$A$38,ÅRSTOT!$A31)+SUMIFS(MALERE!I$27:I$38,MALERE!$A$27:$A$38,ÅRSTOT!$A31)+SUMIFS(TAKTEKKERE!I$27:I$38,TAKTEKKERE!$A$27:$A$38,ÅRSTOT!$A31) -> 0 | J31: =SUMIFS(BETONG!J$27:J$38,BETONG!$A$27:$A$38,ÅRSTOT!$A31)+SUMIFS(TØMRERE!J$27:J$38,TØMRERE!$A$27:$A$38,ÅRSTOT!$A31)+SUMIFS(RØRLEGGERE!J$27:J$38,RØRLEGGERE!$A$27:$A$38,ÅRSTOT!$A31)+SUMIFS(MURERE!J$27:J$38,MURERE!$A$27:$A$38,ÅRSTOT!$A31)+SUMIFS('BLIKK OG VENTILASJON'!J$27:J$38,'BLIKK OG VENTILASJON'!$A$27:$A$38,ÅRSTOT!$A31)+SUMIFS(ISOLATØR!J$27:J$38,ISOLATØR!$A$27:$A$38,ÅRSTOT!$A31)+SUMIFS(MALERE!J$27:J$38,MALERE!$A$27:$A$38,ÅRSTOT!$A31)+SUMIFS(TAKTEKKERE!J$27:J$38,TAKTEKKERE!$A$27:$A$38,ÅRSTOT!$A31) -> 0 | K31: 0 | L31: 0 | M31: 0
A32: Haugesund | B32: =SUMIFS(BETONG!B$27:B$38,BETONG!$A$27:$A$38,ÅRSTOT!$A32)+SUMIFS(TØMRERE!B$27:B$38,TØMRERE!$A$27:$A$38,ÅRSTOT!$A32)+SUMIFS(RØRLEGGERE!B$27:B$38,RØRLEGGERE!$A$27:$A$38,ÅRSTOT!$A32)+SUMIFS(MURERE!B$27:B$38,MURERE!$A$27:$A$38,ÅRSTOT!$A32)+SUMIFS('BLIKK OG VENTILASJON'!B$27:B$38,'BLIKK OG VENTILASJON'!$A$27:$A$38,ÅRSTOT!$A32)+SUMIFS(ISOLATØR!B$27:B$38,ISOLATØR!$A$27:$A$38,ÅRSTOT!$A32)+SUMIFS(MALERE!B$27:B$38,MALERE!$A$27:$A$38,ÅRSTOT!$A32)+SUMIFS(TAKTEKKERE!B$27:B$38,TAKTEKKERE!$A$27:$A$38,ÅRSTOT!$A32) -> 5537155 | C32: =SUMIFS(BETONG!C$27:C$38,BETONG!$A$27:$A$38,ÅRSTOT!$A32)+SUMIFS(TØMRERE!C$27:C$38,TØMRERE!$A$27:$A$38,ÅRSTOT!$A32)+SUMIFS(RØRLEGGERE!C$27:C$38,RØRLEGGERE!$A$27:$A$38,ÅRSTOT!$A32)+SUMIFS(MURERE!C$27:C$38,MURERE!$A$27:$A$38,ÅRSTOT!$A32)+SUMIFS('BLIKK OG VENTILASJON'!C$27:C$38,'BLIKK OG VENTILASJON'!$A$27:$A$38,ÅRSTOT!$A32)+SUMIFS(ISOLATØR!C$27:C$38,ISOLATØR!$A$27:$A$38,ÅRSTOT!$A32)+SUMIFS(MALERE!C$27:C$38,MALERE!$A$27:$A$38,ÅRSTOT!$A32)+SUMIFS(TAKTEKKERE!C$27:C$38,TAKTEKKERE!$A$27:$A$38,ÅRSTOT!$A32) -> 0 | D32: =SUMIFS(BETONG!D$27:D$38,BETONG!$A$27:$A$38,ÅRSTOT!$A32)+SUMIFS(TØMRERE!D$27:D$38,TØMRERE!$A$27:$A$38,ÅRSTOT!$A32)+SUMIFS(RØRLEGGERE!D$27:D$38,RØRLEGGERE!$A$27:$A$38,ÅRSTOT!$A32)+SUMIFS(MURERE!D$27:D$38,MURERE!$A$27:$A$38,ÅRSTOT!$A32)+SUMIFS('BLIKK OG VENTILASJON'!D$27:D$38,'BLIKK OG VENTILASJON'!$A$27:$A$38,ÅRSTOT!$A32)+SUMIFS(ISOLATØR!D$27:D$38,ISOLATØR!$A$27:$A$38,ÅRSTOT!$A32)+SUMIFS(MALERE!D$27:D$38,MALERE!$A$27:$A$38,ÅRSTOT!$A32)+SUMIFS(TAKTEKKERE!D$27:D$38,TAKTEKKERE!$A$27:$A$38,ÅRSTOT!$A32) -> 19727.61 | E32: =SUMIFS(BETONG!E$27:E$38,BETONG!$A$27:$A$38,ÅRSTOT!$A32)+SUMIFS(TØMRERE!E$27:E$38,TØMRERE!$A$27:$A$38,ÅRSTOT!$A32)+SUMIFS(RØRLEGGERE!E$27:E$38,RØRLEGGERE!$A$27:$A$38,ÅRSTOT!$A32)+SUMIFS(MURERE!E$27:E$38,MURERE!$A$27:$A$38,ÅRSTOT!$A32)+SUMIFS('BLIKK OG VENTILASJON'!E$27:E$38,'BLIKK OG VENTILASJON'!$A$27:$A$38,ÅRSTOT!$A32)+SUMIFS(ISOLATØR!E$27:E$38,ISOLATØR!$A$27:$A$38,ÅRSTOT!$A32)+SUMIFS(MALERE!E$27:E$38,MALERE!$A$27:$A$38,ÅRSTOT!$A32)+SUMIFS(TAKTEKKERE!E$27:E$38,TAKTEKKERE!$A$27:$A$38,ÅRSTOT!$A32) -> 0 | F32: 280.6804778 | G32: 0 | H32: 280.6804778 | I32: =SUMIFS(BETONG!I$27:I$38,BETONG!$A$27:$A$38,ÅRSTOT!$A32)+SUMIFS(TØMRERE!I$27:I$38,TØMRERE!$A$27:$A$38,ÅRSTOT!$A32)+SUMIFS(RØRLEGGERE!I$27:I$38,RØRLEGGERE!$A$27:$A$38,ÅRSTOT!$A32)+SUMIFS(MURERE!I$27:I$38,MURERE!$A$27:$A$38,ÅRSTOT!$A32)+SUMIFS('BLIKK OG VENTILASJON'!I$27:I$38,'BLIKK OG VENTILASJON'!$A$27:$A$38,ÅRSTOT!$A32)+SUMIFS(ISOLATØR!I$27:I$38,ISOLATØR!$A$27:$A$38,ÅRSTOT!$A32)+SUMIFS(MALERE!I$27:I$38,MALERE!$A$27:$A$38,ÅRSTOT!$A32)+SUMIFS(TAKTEKKERE!I$27:I$38,TAKTEKKERE!$A$27:$A$38,ÅRSTOT!$A32) -> 15659939 | J32: =SUMIFS(BETONG!J$27:J$38,BETONG!$A$27:$A$38,ÅRSTOT!$A32)+SUMIFS(TØMRERE!J$27:J$38,TØMRERE!$A$27:$A$38,ÅRSTOT!$A32)+SUMIFS(RØRLEGGERE!J$27:J$38,RØRLEGGERE!$A$27:$A$38,ÅRSTOT!$A32)+SUMIFS(MURERE!J$27:J$38,MURERE!$A$27:$A$38,ÅRSTOT!$A32)+SUMIFS('BLIKK OG VENTILASJON'!J$27:J$38,'BLIKK OG VENTILASJON'!$A$27:$A$38,ÅRSTOT!$A32)+SUMIFS(ISOLATØR!J$27:J$38,ISOLATØR!$A$27:$A$38,ÅRSTOT!$A32)+SUMIFS(MALERE!J$27:J$38,MALERE!$A$27:$A$38,ÅRSTOT!$A32)+SUMIFS(TAKTEKKERE!J$27:J$38,TAKTEKKERE!$A$27:$A$38,ÅRSTOT!$A32) -> 0 | K32: 272.31 | L32: -0.6464127351 | M32: 0.03073878215
A33: Hamar og Omegn | B33: =SUMIFS(BETONG!B$27:B$38,BETONG!$A$27:$A$38,ÅRSTOT!$A33)+SUMIFS(TØMRERE!B$27:B$38,TØMRERE!$A$27:$A$38,ÅRSTOT!$A33)+SUMIFS(RØRLEGGERE!B$27:B$38,RØRLEGGERE!$A$27:$A$38,ÅRSTOT!$A33)+SUMIFS(MURERE!B$27:B$38,MURERE!$A$27:$A$38,ÅRSTOT!$A33)+SUMIFS('BLIKK OG VENTILASJON'!B$27:B$38,'BLIKK OG VENTILASJON'!$A$27:$A$38,ÅRSTOT!$A33)+SUMIFS(ISOLATØR!B$27:B$38,ISOLATØR!$A$27:$A$38,ÅRSTOT!$A33)+SUMIFS(MALERE!B$27:B$38,MALERE!$A$27:$A$38,ÅRSTOT!$A33)+SUMIFS(TAKTEKKERE!B$27:B$38,TAKTEKKERE!$A$27:$A$38,ÅRSTOT!$A33) -> 22236041 | C33: =SUMIFS(BETONG!C$27:C$38,BETONG!$A$27:$A$38,ÅRSTOT!$A33)+SUMIFS(TØMRERE!C$27:C$38,TØMRERE!$A$27:$A$38,ÅRSTOT!$A33)+SUMIFS(RØRLEGGERE!C$27:C$38,RØRLEGGERE!$A$27:$A$38,ÅRSTOT!$A33)+SUMIFS(MURERE!C$27:C$38,MURERE!$A$27:$A$38,ÅRSTOT!$A33)+SUMIFS('BLIKK OG VENTILASJON'!C$27:C$38,'BLIKK OG VENTILASJON'!$A$27:$A$38,ÅRSTOT!$A33)+SUMIFS(ISOLATØR!C$27:C$38,ISOLATØR!$A$27:$A$38,ÅRSTOT!$A33)+SUMIFS(MALERE!C$27:C$38,MALERE!$A$27:$A$38,ÅRSTOT!$A33)+SUMIFS(TAKTEKKERE!C$27:C$38,TAKTEKKERE!$A$27:$A$38,ÅRSTOT!$A33) -> 388790 | D33: =SUMIFS(BETONG!D$27:D$38,BETONG!$A$27:$A$38,ÅRSTOT!$A33)+SUMIFS(TØMRERE!D$27:D$38,TØMRERE!$A$27:$A$38,ÅRSTOT!$A33)+SUMIFS(RØRLEGGERE!D$27:D$38,RØRLEGGERE!$A$27:$A$38,ÅRSTOT!$A33)+SUMIFS(MURERE!D$27:D$38,MURERE!$A$27:$A$38,ÅRSTOT!$A33)+SUMIFS('BLIKK OG VENTILASJON'!D$27:D$38,'BLIKK OG VENTILASJON'!$A$27:$A$38,ÅRSTOT!$A33)+SUMIFS(ISOLATØR!D$27:D$38,ISOLATØR!$A$27:$A$38,ÅRSTOT!$A33)+SUMIFS(MALERE!D$27:D$38,MALERE!$A$27:$A$38,ÅRSTOT!$A33)+SUMIFS(TAKTEKKERE!D$27:D$38,TAKTEKKERE!$A$27:$A$38,ÅRSTOT!$A33) -> 72497.66 | E33: =SUMIFS(BETONG!E$27:E$38,BETONG!$A$27:$A$38,ÅRSTOT!$A33)+SUMIFS(TØMRERE!E$27:E$38,TØMRERE!$A$27:$A$38,ÅRSTOT!$A33)+SUMIFS(RØRLEGGERE!E$27:E$38,RØRLEGGERE!$A$27:$A$38,ÅRSTOT!$A33)+SUMIFS(MURERE!E$27:E$38,MURERE!$A$27:$A$38,ÅRSTOT!$A33)+SUMIFS('BLIKK OG VENTILASJON'!E$27:E$38,'BLIKK OG VENTILASJON'!$A$27:$A$38,ÅRSTOT!$A33)+SUMIFS(ISOLATØR!E$27:E$38,ISOLATØR!$A$27:$A$38,ÅRSTOT!$A33)+SUMIFS(MALERE!E$27:E$38,MALERE!$A$27:$A$38,ÅRSTOT!$A33)+SUMIFS(TAKTEKKERE!E$27:E$38,TAKTEKKERE!$A$27:$A$38,ÅRSTOT!$A33) -> 2098.4 | F33: 306.7139132 | G33: 185.2792604 | H33: 303.2979356 | I33: =SUMIFS(BETONG!I$27:I$38,BETONG!$A$27:$A$38,ÅRSTOT!$A33)+SUMIFS(TØMRERE!I$27:I$38,TØMRERE!$A$27:$A$38,ÅRSTOT!$A33)+SUMIFS(RØRLEGGERE!I$27:I$38,RØRLEGGERE!$A$27:$A$38,ÅRSTOT!$A33)+SUMIFS(MURERE!I$27:I$38,MURERE!$A$27:$A$38,ÅRSTOT!$A33)+SUMIFS('BLIKK OG VENTILASJON'!I$27:I$38,'BLIKK OG VENTILASJON'!$A$27:$A$38,ÅRSTOT!$A33)+SUMIFS(ISOLATØR!I$27:I$38,ISOLATØR!$A$27:$A$38,ÅRSTOT!$A33)+SUMIFS(MALERE!I$27:I$38,MALERE!$A$27:$A$38,ÅRSTOT!$A33)+SUMIFS(TAKTEKKERE!I$27:I$38,TAKTEKKERE!$A$27:$A$38,ÅRSTOT!$A33) -> 8301724 | J33: =SUMIFS(BETONG!J$27:J$38,BETONG!$A$27:$A$38,ÅRSTOT!$A33)+SUMIFS(TØMRERE!J$27:J$38,TØMRERE!$A$27:$A$38,ÅRSTOT!$A33)+SUMIFS(RØRLEGGERE!J$27:J$38,RØRLEGGERE!$A$27:$A$38,ÅRSTOT!$A33)+SUMIFS(MURERE!J$27:J$38,MURERE!$A$27:$A$38,ÅRSTOT!$A33)+SUMIFS('BLIKK OG VENTILASJON'!J$27:J$38,'BLIKK OG VENTILASJON'!$A$27:$A$38,ÅRSTOT!$A33)+SUMIFS(ISOLATØR!J$27:J$38,ISOLATØR!$A$27:$A$38,ÅRSTOT!$A33)+SUMIFS(MALERE!J$27:J$38,MALERE!$A$27:$A$38,ÅRSTOT!$A33)+SUMIFS(TAKTEKKERE!J$27:J$38,TAKTEKKERE!$A$27:$A$38,ÅRSTOT!$A33) -> 337597 | K33: 288.08 | L33: 1.678484734 | M33: 0.05282538036
A34: Sandnes | B34: =SUMIFS(BETONG!B$27:B$38,BETONG!$A$27:$A$38,ÅRSTOT!$A34)+SUMIFS(TØMRERE!B$27:B$38,TØMRERE!$A$27:$A$38,ÅRSTOT!$A34)+SUMIFS(RØRLEGGERE!B$27:B$38,RØRLEGGERE!$A$27:$A$38,ÅRSTOT!$A34)+SUMIFS(MURERE!B$27:B$38,MURERE!$A$27:$A$38,ÅRSTOT!$A34)+SUMIFS('BLIKK OG VENTILASJON'!B$27:B$38,'BLIKK OG VENTILASJON'!$A$27:$A$38,ÅRSTOT!$A34)+SUMIFS(ISOLATØR!B$27:B$38,ISOLATØR!$A$27:$A$38,ÅRSTOT!$A34)+SUMIFS(MALERE!B$27:B$38,MALERE!$A$27:$A$38,ÅRSTOT!$A34)+SUMIFS(TAKTEKKERE!B$27:B$38,TAKTEKKERE!$A$27:$A$38,ÅRSTOT!$A34) -> 31744816.84 | C34: =SUMIFS(BETONG!C$27:C$38,BETONG!$A$27:$A$38,ÅRSTOT!$A34)+SUMIFS(TØMRERE!C$27:C$38,TØMRERE!$A$27:$A$38,ÅRSTOT!$A34)+SUMIFS(RØRLEGGERE!C$27:C$38,RØRLEGGERE!$A$27:$A$38,ÅRSTOT!$A34)+SUMIFS(MURERE!C$27:C$38,MURERE!$A$27:$A$38,ÅRSTOT!$A34)+SUMIFS('BLIKK OG VENTILASJON'!C$27:C$38,'BLIKK OG VENTILASJON'!$A$27:$A$38,ÅRSTOT!$A34)+SUMIFS(ISOLATØR!C$27:C$38,ISOLATØR!$A$27:$A$38,ÅRSTOT!$A34)+SUMIFS(MALERE!C$27:C$38,MALERE!$A$27:$A$38,ÅRSTOT!$A34)+SUMIFS(TAKTEKKERE!C$27:C$38,TAKTEKKERE!$A$27:$A$38,ÅRSTOT!$A34) -> 0 | D34: =SUMIFS(BETONG!D$27:D$38,BETONG!$A$27:$A$38,ÅRSTOT!$A34)+SUMIFS(TØMRERE!D$27:D$38,TØMRERE!$A$27:$A$38,ÅRSTOT!$A34)+SUMIFS(RØRLEGGERE!D$27:D$38,RØRLEGGERE!$A$27:$A$38,ÅRSTOT!$A34)+SUMIFS(MURERE!D$27:D$38,MURERE!$A$27:$A$38,ÅRSTOT!$A34)+SUMIFS('BLIKK OG VENTILASJON'!D$27:D$38,'BLIKK OG VENTILASJON'!$A$27:$A$38,ÅRSTOT!$A34)+SUMIFS(ISOLATØR!D$27:D$38,ISOLATØR!$A$27:$A$38,ÅRSTOT!$A34)+SUMIFS(MALERE!D$27:D$38,MALERE!$A$27:$A$38,ÅRSTOT!$A34)+SUMIFS(TAKTEKKERE!D$27:D$38,TAKTEKKERE!$A$27:$A$38,ÅRSTOT!$A34) -> 96720.36 | E34: =SUMIFS(BETONG!E$27:E$38,BETONG!$A$27:$A$38,ÅRSTOT!$A34)+SUMIFS(TØMRERE!E$27:E$38,TØMRERE!$A$27:$A$38,ÅRSTOT!$A34)+SUMIFS(RØRLEGGERE!E$27:E$38,RØRLEGGERE!$A$27:$A$38,ÅRSTOT!$A34)+SUMIFS(MURERE!E$27:E$38,MURERE!$A$27:$A$38,ÅRSTOT!$A34)+SUMIFS('BLIKK OG VENTILASJON'!E$27:E$38,'BLIKK OG VENTILASJON'!$A$27:$A$38,ÅRSTOT!$A34)+SUMIFS(ISOLATØR!E$27:E$38,ISOLATØR!$A$27:$A$38,ÅRSTOT!$A34)+SUMIFS(MALERE!E$27:E$38,MALERE!$A$27:$A$38,ÅRSTOT!$A34)+SUMIFS(TAKTEKKERE!E$27:E$38,TAKTEKKERE!$A$27:$A$38,ÅRSTOT!$A34) -> 0 | F34: 328.212352 | G34: 0 | H34: 328.212352 | I34: =SUMIFS(BETONG!I$27:I$38,BETONG!$A$27:$A$38,ÅRSTOT!$A34)+SUMIFS(TØMRERE!I$27:I$38,TØMRERE!$A$27:$A$38,ÅRSTOT!$A34)+SUMIFS(RØRLEGGERE!I$27:I$38,RØRLEGGERE!$A$27:$A$38,ÅRSTOT!$A34)+SUMIFS(MURERE!I$27:I$38,MURERE!$A$27:$A$38,ÅRSTOT!$A34)+SUMIFS('BLIKK OG VENTILASJON'!I$27:I$38,'BLIKK OG VENTILASJON'!$A$27:$A$38,ÅRSTOT!$A34)+SUMIFS(ISOLATØR!I$27:I$38,ISOLATØR!$A$27:$A$38,ÅRSTOT!$A34)+SUMIFS(MALERE!I$27:I$38,MALERE!$A$27:$A$38,ÅRSTOT!$A34)+SUMIFS(TAKTEKKERE!I$27:I$38,TAKTEKKERE!$A$27:$A$38,ÅRSTOT!$A34) -> 8190668.98 | J34: =SUMIFS(BETONG!J$27:J$38,BETONG!$A$27:$A$38,ÅRSTOT!$A34)+SUMIFS(TØMRERE!J$27:J$38,TØMRERE!$A$27:$A$38,ÅRSTOT!$A34)+SUMIFS(RØRLEGGERE!J$27:J$38,RØRLEGGERE!$A$27:$A$38,ÅRSTOT!$A34)+SUMIFS(MURERE!J$27:J$38,MURERE!$A$27:$A$38,ÅRSTOT!$A34)+SUMIFS('BLIKK OG VENTILASJON'!J$27:J$38,'BLIKK OG VENTILASJON'!$A$27:$A$38,ÅRSTOT!$A34)+SUMIFS(ISOLATØR!J$27:J$38,ISOLATØR!$A$27:$A$38,ÅRSTOT!$A34)+SUMIFS(MALERE!J$27:J$38,MALERE!$A$27:$A$38,ÅRSTOT!$A34)+SUMIFS(TAKTEKKERE!J$27:J$38,TAKTEKKERE!$A$27:$A$38,ÅRSTOT!$A34) -> 0 | K34: 325.06 | L34: 2.875729433 | M34: 0.009697754201
A35: Stavanger | B35: =SUMIFS(BETONG!B$27:B$38,BETONG!$A$27:$A$38,ÅRSTOT!$A35)+SUMIFS(TØMRERE!B$27:B$38,TØMRERE!$A$27:$A$38,ÅRSTOT!$A35)+SUMIFS(RØRLEGGERE!B$27:B$38,RØRLEGGERE!$A$27:$A$38,ÅRSTOT!$A35)+SUMIFS(MURERE!B$27:B$38,MURERE!$A$27:$A$38,ÅRSTOT!$A35)+SUMIFS('BLIKK OG VENTILASJON'!B$27:B$38,'BLIKK OG VENTILASJON'!$A$27:$A$38,ÅRSTOT!$A35)+SUMIFS(ISOLATØR!B$27:B$38,ISOLATØR!$A$27:$A$38,ÅRSTOT!$A35)+SUMIFS(MALERE!B$27:B$38,MALERE!$A$27:$A$38,ÅRSTOT!$A35)+SUMIFS(TAKTEKKERE!B$27:B$38,TAKTEKKERE!$A$27:$A$38,ÅRSTOT!$A35) -> 4132135.43 | C35: =SUMIFS(BETONG!C$27:C$38,BETONG!$A$27:$A$38,ÅRSTOT!$A35)+SUMIFS(TØMRERE!C$27:C$38,TØMRERE!$A$27:$A$38,ÅRSTOT!$A35)+SUMIFS(RØRLEGGERE!C$27:C$38,RØRLEGGERE!$A$27:$A$38,ÅRSTOT!$A35)+SUMIFS(MURERE!C$27:C$38,MURERE!$A$27:$A$38,ÅRSTOT!$A35)+SUMIFS('BLIKK OG VENTILASJON'!C$27:C$38,'BLIKK OG VENTILASJON'!$A$27:$A$38,ÅRSTOT!$A35)+SUMIFS(ISOLATØR!C$27:C$38,ISOLATØR!$A$27:$A$38,ÅRSTOT!$A35)+SUMIFS(MALERE!C$27:C$38,MALERE!$A$27:$A$38,ÅRSTOT!$A35)+SUMIFS(TAKTEKKERE!C$27:C$38,TAKTEKKERE!$A$27:$A$38,ÅRSTOT!$A35) -> 0 | D35: =SUMIFS(BETONG!D$27:D$38,BETONG!$A$27:$A$38,ÅRSTOT!$A35)+SUMIFS(TØMRERE!D$27:D$38,TØMRERE!$A$27:$A$38,ÅRSTOT!$A35)+SUMIFS(RØRLEGGERE!D$27:D$38,RØRLEGGERE!$A$27:$A$38,ÅRSTOT!$A35)+SUMIFS(MURERE!D$27:D$38,MURERE!$A$27:$A$38,ÅRSTOT!$A35)+SUMIFS('BLIKK OG VENTILASJON'!D$27:D$38,'BLIKK OG VENTILASJON'!$A$27:$A$38,ÅRSTOT!$A35)+SUMIFS(ISOLATØR!D$27:D$38,ISOLATØR!$A$27:$A$38,ÅRSTOT!$A35)+SUMIFS(MALERE!D$27:D$38,MALERE!$A$27:$A$38,ÅRSTOT!$A35)+SUMIFS(TAKTEKKERE!D$27:D$38,TAKTEKKERE!$A$27:$A$38,ÅRSTOT!$A35) -> 13268.5 | E35: =SUMIFS(BETONG!E$27:E$38,BETONG!$A$27:$A$38,ÅRSTOT!$A35)+SUMIFS(TØMRERE!E$27:E$38,TØMRERE!$A$27:$A$38,ÅRSTOT!$A35)+SUMIFS(RØRLEGGERE!E$27:E$38,RØRLEGGERE!$A$27:$A$38,ÅRSTOT!$A35)+SUMIFS(MURERE!E$27:E$38,MURERE!$A$27:$A$38,ÅRSTOT!$A35)+SUMIFS('BLIKK OG VENTILASJON'!E$27:E$38,'BLIKK OG VENTILASJON'!$A$27:$A$38,ÅRSTOT!$A35)+SUMIFS(ISOLATØR!E$27:E$38,ISOLATØR!$A$27:$A$38,ÅRSTOT!$A35)+SUMIFS(MALERE!E$27:E$38,MALERE!$A$27:$A$38,ÅRSTOT!$A35)+SUMIFS(TAKTEKKERE!E$27:E$38,TAKTEKKERE!$A$27:$A$38,ÅRSTOT!$A35) -> 0 | F35: 311.4244587 | G35: 0 | H35: 311.4244587 | I35: =SUMIFS(BETONG!I$27:I$38,BETONG!$A$27:$A$38,ÅRSTOT!$A35)+SUMIFS(TØMRERE!I$27:I$38,TØMRERE!$A$27:$A$38,ÅRSTOT!$A35)+SUMIFS(RØRLEGGERE!I$27:I$38,RØRLEGGERE!$A$27:$A$38,ÅRSTOT!$A35)+SUMIFS(MURERE!I$27:I$38,MURERE!$A$27:$A$38,ÅRSTOT!$A35)+SUMIFS('BLIKK OG VENTILASJON'!I$27:I$38,'BLIKK OG VENTILASJON'!$A$27:$A$38,ÅRSTOT!$A35)+SUMIFS(ISOLATØR!I$27:I$38,ISOLATØR!$A$27:$A$38,ÅRSTOT!$A35)+SUMIFS(MALERE!I$27:I$38,MALERE!$A$27:$A$38,ÅRSTOT!$A35)+SUMIFS(TAKTEKKERE!I$27:I$38,TAKTEKKERE!$A$27:$A$38,ÅRSTOT!$A35) -> 4087320 | J35: =SUMIFS(BETONG!J$27:J$38,BETONG!$A$27:$A$38,ÅRSTOT!$A35)+SUMIFS(TØMRERE!J$27:J$38,TØMRERE!$A$27:$A$38,ÅRSTOT!$A35)+SUMIFS(RØRLEGGERE!J$27:J$38,RØRLEGGERE!$A$27:$A$38,ÅRSTOT!$A35)+SUMIFS(MURERE!J$27:J$38,MURERE!$A$27:$A$38,ÅRSTOT!$A35)+SUMIFS('BLIKK OG VENTILASJON'!J$27:J$38,'BLIKK OG VENTILASJON'!$A$27:$A$38,ÅRSTOT!$A35)+SUMIFS(ISOLATØR!J$27:J$38,ISOLATØR!$A$27:$A$38,ÅRSTOT!$A35)+SUMIFS(MALERE!J$27:J$38,MALERE!$A$27:$A$38,ÅRSTOT!$A35)+SUMIFS(TAKTEKKERE!J$27:J$38,TAKTEKKERE!$A$27:$A$38,ÅRSTOT!$A35) -> 579766 | K35: 287.19 | L35: 0.01096450241 | M35: 0.08438475811
A36: Telemark | B36: =SUMIFS(BETONG!B$27:B$38,BETONG!$A$27:$A$38,ÅRSTOT!$A36)+SUMIFS(TØMRERE!B$27:B$38,TØMRERE!$A$27:$A$38,ÅRSTOT!$A36)+SUMIFS(RØRLEGGERE!B$27:B$38,RØRLEGGERE!$A$27:$A$38,ÅRSTOT!$A36)+SUMIFS(MURERE!B$27:B$38,MURERE!$A$27:$A$38,ÅRSTOT!$A36)+SUMIFS('BLIKK OG VENTILASJON'!B$27:B$38,'BLIKK OG VENTILASJON'!$A$27:$A$38,ÅRSTOT!$A36)+SUMIFS(ISOLATØR!B$27:B$38,ISOLATØR!$A$27:$A$38,ÅRSTOT!$A36)+SUMIFS(MALERE!B$27:B$38,MALERE!$A$27:$A$38,ÅRSTOT!$A36)+SUMIFS(TAKTEKKERE!B$27:B$38,TAKTEKKERE!$A$27:$A$38,ÅRSTOT!$A36) -> 12895111 | C36: =SUMIFS(BETONG!C$27:C$38,BETONG!$A$27:$A$38,ÅRSTOT!$A36)+SUMIFS(TØMRERE!C$27:C$38,TØMRERE!$A$27:$A$38,ÅRSTOT!$A36)+SUMIFS(RØRLEGGERE!C$27:C$38,RØRLEGGERE!$A$27:$A$38,ÅRSTOT!$A36)+SUMIFS(MURERE!C$27:C$38,MURERE!$A$27:$A$38,ÅRSTOT!$A36)+SUMIFS('BLIKK OG VENTILASJON'!C$27:C$38,'BLIKK OG VENTILASJON'!$A$27:$A$38,ÅRSTOT!$A36)+SUMIFS(ISOLATØR!C$27:C$38,ISOLATØR!$A$27:$A$38,ÅRSTOT!$A36)+SUMIFS(MALERE!C$27:C$38,MALERE!$A$27:$A$38,ÅRSTOT!$A36)+SUMIFS(TAKTEKKERE!C$27:C$38,TAKTEKKERE!$A$27:$A$38,ÅRSTOT!$A36) -> 2000000 | D36: =SUMIFS(BETONG!D$27:D$38,BETONG!$A$27:$A$38,ÅRSTOT!$A36)+SUMIFS(TØMRERE!D$27:D$38,TØMRERE!$A$27:$A$38,ÅRSTOT!$A36)+SUMIFS(RØRLEGGERE!D$27:D$38,RØRLEGGERE!$A$27:$A$38,ÅRSTOT!$A36)+SUMIFS(MURERE!D$27:D$38,MURERE!$A$27:$A$38,ÅRSTOT!$A36)+SUMIFS('BLIKK OG VENTILASJON'!D$27:D$38,'BLIKK OG VENTILASJON'!$A$27:$A$38,ÅRSTOT!$A36)+SUMIFS(ISOLATØR!D$27:D$38,ISOLATØR!$A$27:$A$38,ÅRSTOT!$A36)+SUMIFS(MALERE!D$27:D$38,MALERE!$A$27:$A$38,ÅRSTOT!$A36)+SUMIFS(TAKTEKKERE!D$27:D$38,TAKTEKKERE!$A$27:$A$38,ÅRSTOT!$A36) -> 37800.5 | E36: =SUMIFS(BETONG!E$27:E$38,BETONG!$A$27:$A$38,ÅRSTOT!$A36)+SUMIFS(TØMRERE!E$27:E$38,TØMRERE!$A$27:$A$38,ÅRSTOT!$A36)+SUMIFS(RØRLEGGERE!E$27:E$38,RØRLEGGERE!$A$27:$A$38,ÅRSTOT!$A36)+SUMIFS(MURERE!E$27:E$38,MURERE!$A$27:$A$38,ÅRSTOT!$A36)+SUMIFS('BLIKK OG VENTILASJON'!E$27:E$38,'BLIKK OG VENTILASJON'!$A$27:$A$38,ÅRSTOT!$A36)+SUMIFS(ISOLATØR!E$27:E$38,ISOLATØR!$A$27:$A$38,ÅRSTOT!$A36)+SUMIFS(MALERE!E$27:E$38,MALERE!$A$27:$A$38,ÅRSTOT!$A36)+SUMIFS(TAKTEKKERE!E$27:E$38,TAKTEKKERE!$A$27:$A$38,ÅRSTOT!$A36) -> 8500 | F36: =IF(D36=0,0,B36/D36) -> 341.1359903 | G36: 235.2941176 | H36: 321.7051868 | I36: =SUMIFS(BETONG!I$27:I$38,BETONG!$A$27:$A$38,ÅRSTOT!$A36)+SUMIFS(TØMRERE!I$27:I$38,TØMRERE!$A$27:$A$38,ÅRSTOT!$A36)+SUMIFS(RØRLEGGERE!I$27:I$38,RØRLEGGERE!$A$27:$A$38,ÅRSTOT!$A36)+SUMIFS(MURERE!I$27:I$38,MURERE!$A$27:$A$38,ÅRSTOT!$A36)+SUMIFS('BLIKK OG VENTILASJON'!I$27:I$38,'BLIKK OG VENTILASJON'!$A$27:$A$38,ÅRSTOT!$A36)+SUMIFS(ISOLATØR!I$27:I$38,ISOLATØR!$A$27:$A$38,ÅRSTOT!$A36)+SUMIFS(MALERE!I$27:I$38,MALERE!$A$27:$A$38,ÅRSTOT!$A36)+SUMIFS(TAKTEKKERE!I$27:I$38,TAKTEKKERE!$A$27:$A$38,ÅRSTOT!$A36) -> 17494668 | J36: =SUMIFS(BETONG!J$27:J$38,BETONG!$A$27:$A$38,ÅRSTOT!$A36)+SUMIFS(TØMRERE!J$27:J$38,TØMRERE!$A$27:$A$38,ÅRSTOT!$A36)+SUMIFS(RØRLEGGERE!J$27:J$38,RØRLEGGERE!$A$27:$A$38,ÅRSTOT!$A36)+SUMIFS(MURERE!J$27:J$38,MURERE!$A$27:$A$38,ÅRSTOT!$A36)+SUMIFS('BLIKK OG VENTILASJON'!J$27:J$38,'BLIKK OG VENTILASJON'!$A$27:$A$38,ÅRSTOT!$A36)+SUMIFS(ISOLATØR!J$27:J$38,ISOLATØR!$A$27:$A$38,ÅRSTOT!$A36)+SUMIFS(MALERE!J$27:J$38,MALERE!$A$27:$A$38,ÅRSTOT!$A36)+SUMIFS(TAKTEKKERE!J$27:J$38,TAKTEKKERE!$A$27:$A$38,ÅRSTOT!$A36) -> 500000 | K36: 303.95 | L36: -0.2629119341 | M36: 0.05841482734
A37: Trondheim | B37: =SUMIFS(BETONG!B$27:B$38,BETONG!$A$27:$A$38,ÅRSTOT!$A37)+SUMIFS(TØMRERE!B$27:B$38,TØMRERE!$A$27:$A$38,ÅRSTOT!$A37)+SUMIFS(RØRLEGGERE!B$27:B$38,RØRLEGGERE!$A$27:$A$38,ÅRSTOT!$A37)+SUMIFS(MURERE!B$27:B$38,MURERE!$A$27:$A$38,ÅRSTOT!$A37)+SUMIFS('BLIKK OG VENTILASJON'!B$27:B$38,'BLIKK OG VENTILASJON'!$A$27:$A$38,ÅRSTOT!$A37)+SUMIFS(ISOLATØR!B$27:B$38,ISOLATØR!$A$27:$A$38,ÅRSTOT!$A37)+SUMIFS(MALERE!B$27:B$38,MALERE!$A$27:$A$38,ÅRSTOT!$A37)+SUMIFS(TAKTEKKERE!B$27:B$38,TAKTEKKERE!$A$27:$A$38,ÅRSTOT!$A37) -> 135011761 | C37: =SUMIFS(BETONG!C$27:C$38,BETONG!$A$27:$A$38,ÅRSTOT!$A37)+SUMIFS(TØMRERE!C$27:C$38,TØMRERE!$A$27:$A$38,ÅRSTOT!$A37)+SUMIFS(RØRLEGGERE!C$27:C$38,RØRLEGGERE!$A$27:$A$38,ÅRSTOT!$A37)+SUMIFS(MURERE!C$27:C$38,MURERE!$A$27:$A$38,ÅRSTOT!$A37)+SUMIFS('BLIKK OG VENTILASJON'!C$27:C$38,'BLIKK OG VENTILASJON'!$A$27:$A$38,ÅRSTOT!$A37)+SUMIFS(ISOLATØR!C$27:C$38,ISOLATØR!$A$27:$A$38,ÅRSTOT!$A37)+SUMIFS(MALERE!C$27:C$38,MALERE!$A$27:$A$38,ÅRSTOT!$A37)+SUMIFS(TAKTEKKERE!C$27:C$38,TAKTEKKERE!$A$27:$A$38,ÅRSTOT!$A37) -> 15532124.66 | D37: =SUMIFS(BETONG!D$27:D$38,BETONG!$A$27:$A$38,ÅRSTOT!$A37)+SUMIFS(TØMRERE!D$27:D$38,TØMRERE!$A$27:$A$38,ÅRSTOT!$A37)+SUMIFS(RØRLEGGERE!D$27:D$38,RØRLEGGERE!$A$27:$A$38,ÅRSTOT!$A37)+SUMIFS(MURERE!D$27:D$38,MURERE!$A$27:$A$38,ÅRSTOT!$A37)+SUMIFS('BLIKK OG VENTILASJON'!D$27:D$38,'BLIKK OG VENTILASJON'!$A$27:$A$38,ÅRSTOT!$A37)+SUMIFS(ISOLATØR!D$27:D$38,ISOLATØR!$A$27:$A$38,ÅRSTOT!$A37)+SUMIFS(MALERE!D$27:D$38,MALERE!$A$27:$A$38,ÅRSTOT!$A37)+SUMIFS(TAKTEKKERE!D$27:D$38,TAKTEKKERE!$A$27:$A$38,ÅRSTOT!$A37) -> 423789 | E37: =SUMIFS(BETONG!E$27:E$38,BETONG!$A$27:$A$38,ÅRSTOT!$A37)+SUMIFS(TØMRERE!E$27:E$38,TØMRERE!$A$27:$A$38,ÅRSTOT!$A37)+SUMIFS(RØRLEGGERE!E$27:E$38,RØRLEGGERE!$A$27:$A$38,ÅRSTOT!$A37)+SUMIFS(MURERE!E$27:E$38,MURERE!$A$27:$A$38,ÅRSTOT!$A37)+SUMIFS('BLIKK OG VENTILASJON'!E$27:E$38,'BLIKK OG VENTILASJON'!$A$27:$A$38,ÅRSTOT!$A37)+SUMIFS(ISOLATØR!E$27:E$38,ISOLATØR!$A$27:$A$38,ÅRSTOT!$A37)+SUMIFS(MALERE!E$27:E$38,MALERE!$A$27:$A$38,ÅRSTOT!$A37)+SUMIFS(TAKTEKKERE!E$27:E$38,TAKTEKKERE!$A$27:$A$38,ÅRSTOT!$A37) -> 84450.02 | F37: =IF(B37=0,0,B37/D37) -> 318.5825046 | G37: =IF(E37=0,0,C37/E37) -> 183.9209116 | H37: 296.2068629 | I37: =SUMIFS(BETONG!I$27:I$38,BETONG!$A$27:$A$38,ÅRSTOT!$A37)+SUMIFS(TØMRERE!I$27:I$38,TØMRERE!$A$27:$A$38,ÅRSTOT!$A37)+SUMIFS(RØRLEGGERE!I$27:I$38,RØRLEGGERE!$A$27:$A$38,ÅRSTOT!$A37)+SUMIFS(MURERE!I$27:I$38,MURERE!$A$27:$A$38,ÅRSTOT!$A37)+SUMIFS('BLIKK OG VENTILASJON'!I$27:I$38,'BLIKK OG VENTILASJON'!$A$27:$A$38,ÅRSTOT!$A37)+SUMIFS(ISOLATØR!I$27:I$38,ISOLATØR!$A$27:$A$38,ÅRSTOT!$A37)+SUMIFS(MALERE!I$27:I$38,MALERE!$A$27:$A$38,ÅRSTOT!$A37)+SUMIFS(TAKTEKKERE!I$27:I$38,TAKTEKKERE!$A$27:$A$38,ÅRSTOT!$A37) -> 148082191.7 | J37: =SUMIFS(BETONG!J$27:J$38,BETONG!$A$27:$A$38,ÅRSTOT!$A37)+SUMIFS(TØMRERE!J$27:J$38,TØMRERE!$A$27:$A$38,ÅRSTOT!$A37)+SUMIFS(RØRLEGGERE!J$27:J$38,RØRLEGGERE!$A$27:$A$38,ÅRSTOT!$A37)+SUMIFS(MURERE!J$27:J$38,MURERE!$A$27:$A$38,ÅRSTOT!$A37)+SUMIFS('BLIKK OG VENTILASJON'!J$27:J$38,'BLIKK OG VENTILASJON'!$A$27:$A$38,ÅRSTOT!$A37)+SUMIFS(ISOLATØR!J$27:J$38,ISOLATØR!$A$27:$A$38,ÅRSTOT!$A37)+SUMIFS(MALERE!J$27:J$38,MALERE!$A$27:$A$38,ÅRSTOT!$A37)+SUMIFS(TAKTEKKERE!J$27:J$38,TAKTEKKERE!$A$27:$A$38,ÅRSTOT!$A37) -> 8930640.1 | K37: 298.78 | L37: -0.08826470293 | M37: -0.008612146511
A38: Vestfold | B38: =SUMIFS(BETONG!B$27:B$38,BETONG!$A$27:$A$38,ÅRSTOT!$A38)+SUMIFS(TØMRERE!B$27:B$38,TØMRERE!$A$27:$A$38,ÅRSTOT!$A38)+SUMIFS(RØRLEGGERE!B$27:B$38,RØRLEGGERE!$A$27:$A$38,ÅRSTOT!$A38)+SUMIFS(MURERE!B$27:B$38,MURERE!$A$27:$A$38,ÅRSTOT!$A38)+SUMIFS('BLIKK OG VENTILASJON'!B$27:B$38,'BLIKK OG VENTILASJON'!$A$27:$A$38,ÅRSTOT!$A38)+SUMIFS(ISOLATØR!B$27:B$38,ISOLATØR!$A$27:$A$38,ÅRSTOT!$A38)+SUMIFS(MALERE!B$27:B$38,MALERE!$A$27:$A$38,ÅRSTOT!$A38)+SUMIFS(TAKTEKKERE!B$27:B$38,TAKTEKKERE!$A$27:$A$38,ÅRSTOT!$A38) -> 328413 | C38: =SUMIFS(BETONG!C$27:C$38,BETONG!$A$27:$A$38,ÅRSTOT!$A38)+SUMIFS(TØMRERE!C$27:C$38,TØMRERE!$A$27:$A$38,ÅRSTOT!$A38)+SUMIFS(RØRLEGGERE!C$27:C$38,RØRLEGGERE!$A$27:$A$38,ÅRSTOT!$A38)+SUMIFS(MURERE!C$27:C$38,MURERE!$A$27:$A$38,ÅRSTOT!$A38)+SUMIFS('BLIKK OG VENTILASJON'!C$27:C$38,'BLIKK OG VENTILASJON'!$A$27:$A$38,ÅRSTOT!$A38)+SUMIFS(ISOLATØR!C$27:C$38,ISOLATØR!$A$27:$A$38,ÅRSTOT!$A38)+SUMIFS(MALERE!C$27:C$38,MALERE!$A$27:$A$38,ÅRSTOT!$A38)+SUMIFS(TAKTEKKERE!C$27:C$38,TAKTEKKERE!$A$27:$A$38,ÅRSTOT!$A38) -> 0 | D38: =SUMIFS(BETONG!D$27:D$38,BETONG!$A$27:$A$38,ÅRSTOT!$A38)+SUMIFS(TØMRERE!D$27:D$38,TØMRERE!$A$27:$A$38,ÅRSTOT!$A38)+SUMIFS(RØRLEGGERE!D$27:D$38,RØRLEGGERE!$A$27:$A$38,ÅRSTOT!$A38)+SUMIFS(MURERE!D$27:D$38,MURERE!$A$27:$A$38,ÅRSTOT!$A38)+SUMIFS('BLIKK OG VENTILASJON'!D$27:D$38,'BLIKK OG VENTILASJON'!$A$27:$A$38,ÅRSTOT!$A38)+SUMIFS(ISOLATØR!D$27:D$38,ISOLATØR!$A$27:$A$38,ÅRSTOT!$A38)+SUMIFS(MALERE!D$27:D$38,MALERE!$A$27:$A$38,ÅRSTOT!$A38)+SUMIFS(TAKTEKKERE!D$27:D$38,TAKTEKKERE!$A$27:$A$38,ÅRSTOT!$A38) -> 834 | E38: =SUMIFS(BETONG!E$27:E$38,BETONG!$A$27:$A$38,ÅRSTOT!$A38)+SUMIFS(TØMRERE!E$27:E$38,TØMRERE!$A$27:$A$38,ÅRSTOT!$A38)+SUMIFS(RØRLEGGERE!E$27:E$38,RØRLEGGERE!$A$27:$A$38,ÅRSTOT!$A38)+SUMIFS(MURERE!E$27:E$38,MURERE!$A$27:$A$38,ÅRSTOT!$A38)+SUMIFS('BLIKK OG VENTILASJON'!E$27:E$38,'BLIKK OG VENTILASJON'!$A$27:$A$38,ÅRSTOT!$A38)+SUMIFS(ISOLATØR!E$27:E$38,ISOLATØR!$A$27:$A$38,ÅRSTOT!$A38)+SUMIFS(MALERE!E$27:E$38,MALERE!$A$27:$A$38,ÅRSTOT!$A38)+SUMIFS(TAKTEKKERE!E$27:E$38,TAKTEKKERE!$A$27:$A$38,ÅRSTOT!$A38) -> 0 | F38: =IF(D38=0,0,B38/D38) -> 393.7805755 | G38: 0 | H38: 393.7805755 | I38: =SUMIFS(BETONG!I$27:I$38,BETONG!$A$27:$A$38,ÅRSTOT!$A38)+SUMIFS(TØMRERE!I$27:I$38,TØMRERE!$A$27:$A$38,ÅRSTOT!$A38)+SUMIFS(RØRLEGGERE!I$27:I$38,RØRLEGGERE!$A$27:$A$38,ÅRSTOT!$A38)+SUMIFS(MURERE!I$27:I$38,MURERE!$A$27:$A$38,ÅRSTOT!$A38)+SUMIFS('BLIKK OG VENTILASJON'!I$27:I$38,'BLIKK OG VENTILASJON'!$A$27:$A$38,ÅRSTOT!$A38)+SUMIFS(ISOLATØR!I$27:I$38,ISOLATØR!$A$27:$A$38,ÅRSTOT!$A38)+SUMIFS(MALERE!I$27:I$38,MALERE!$A$27:$A$38,ÅRSTOT!$A38)+SUMIFS(TAKTEKKERE!I$27:I$38,TAKTEKKERE!$A$27:$A$38,ÅRSTOT!$A38) -> 3289787.8 | J38: =SUMIFS(BETONG!J$27:J$38,BETONG!$A$27:$A$38,ÅRSTOT!$A38)+SUMIFS(TØMRERE!J$27:J$38,TØMRERE!$A$27:$A$38,ÅRSTOT!$A38)+SUMIFS(RØRLEGGERE!J$27:J$38,RØRLEGGERE!$A$27:$A$38,ÅRSTOT!$A38)+SUMIFS(MURERE!J$27:J$38,MURERE!$A$27:$A$38,ÅRSTOT!$A38)+SUMIFS('BLIKK OG VENTILASJON'!J$27:J$38,'BLIKK OG VENTILASJON'!$A$27:$A$38,ÅRSTOT!$A38)+SUMIFS(ISOLATØR!J$27:J$38,ISOLATØR!$A$27:$A$38,ÅRSTOT!$A38)+SUMIFS(MALERE!J$27:J$38,MALERE!$A$27:$A$38,ÅRSTOT!$A38)+SUMIFS(TAKTEKKERE!J$27:J$38,TAKTEKKERE!$A$27:$A$38,ÅRSTOT!$A38) -> 397062.27 | K38: 265.8 | L38: -0.9001719807 | M38: 0.4814920073
A39: Østfold | B39: =SUMIFS(BETONG!B$27:B$38,BETONG!$A$27:$A$38,ÅRSTOT!$A39)+SUMIFS(TØMRERE!B$27:B$38,TØMRERE!$A$27:$A$38,ÅRSTOT!$A39)+SUMIFS(RØRLEGGERE!B$27:B$38,RØRLEGGERE!$A$27:$A$38,ÅRSTOT!$A39)+SUMIFS(MURERE!B$27:B$38,MURERE!$A$27:$A$38,ÅRSTOT!$A39)+SUMIFS('BLIKK OG VENTILASJON'!B$27:B$38,'BLIKK OG VENTILASJON'!$A$27:$A$38,ÅRSTOT!$A39)+SUMIFS(ISOLATØR!B$27:B$38,ISOLATØR!$A$27:$A$38,ÅRSTOT!$A39)+SUMIFS(MALERE!B$27:B$38,MALERE!$A$27:$A$38,ÅRSTOT!$A39)+SUMIFS(TAKTEKKERE!B$27:B$38,TAKTEKKERE!$A$27:$A$38,ÅRSTOT!$A39) -> 17242127 | C39: =SUMIFS(BETONG!C$27:C$38,BETONG!$A$27:$A$38,ÅRSTOT!$A39)+SUMIFS(TØMRERE!C$27:C$38,TØMRERE!$A$27:$A$38,ÅRSTOT!$A39)+SUMIFS(RØRLEGGERE!C$27:C$38,RØRLEGGERE!$A$27:$A$38,ÅRSTOT!$A39)+SUMIFS(MURERE!C$27:C$38,MURERE!$A$27:$A$38,ÅRSTOT!$A39)+SUMIFS('BLIKK OG VENTILASJON'!C$27:C$38,'BLIKK OG VENTILASJON'!$A$27:$A$38,ÅRSTOT!$A39)+SUMIFS(ISOLATØR!C$27:C$38,ISOLATØR!$A$27:$A$38,ÅRSTOT!$A39)+SUMIFS(MALERE!C$27:C$38,MALERE!$A$27:$A$38,ÅRSTOT!$A39)+SUMIFS(TAKTEKKERE!C$27:C$38,TAKTEKKERE!$A$27:$A$38,ÅRSTOT!$A39) -> 96089 | D39: =SUMIFS(BETONG!D$27:D$38,BETONG!$A$27:$A$38,ÅRSTOT!$A39)+SUMIFS(TØMRERE!D$27:D$38,TØMRERE!$A$27:$A$38,ÅRSTOT!$A39)+SUMIFS(RØRLEGGERE!D$27:D$38,RØRLEGGERE!$A$27:$A$38,ÅRSTOT!$A39)+SUMIFS(MURERE!D$27:D$38,MURERE!$A$27:$A$38,ÅRSTOT!$A39)+SUMIFS('BLIKK OG VENTILASJON'!D$27:D$38,'BLIKK OG VENTILASJON'!$A$27:$A$38,ÅRSTOT!$A39)+SUMIFS(ISOLATØR!D$27:D$38,ISOLATØR!$A$27:$A$38,ÅRSTOT!$A39)+SUMIFS(MALERE!D$27:D$38,MALERE!$A$27:$A$38,ÅRSTOT!$A39)+SUMIFS(TAKTEKKERE!D$27:D$38,TAKTEKKERE!$A$27:$A$38,ÅRSTOT!$A39) -> 55826.5 | E39: =SUMIFS(BETONG!E$27:E$38,BETONG!$A$27:$A$38,ÅRSTOT!$A39)+SUMIFS(TØMRERE!E$27:E$38,TØMRERE!$A$27:$A$38,ÅRSTOT!$A39)+SUMIFS(RØRLEGGERE!E$27:E$38,RØRLEGGERE!$A$27:$A$38,ÅRSTOT!$A39)+SUMIFS(MURERE!E$27:E$38,MURERE!$A$27:$A$38,ÅRSTOT!$A39)+SUMIFS('BLIKK OG VENTILASJON'!E$27:E$38,'BLIKK OG VENTILASJON'!$A$27:$A$38,ÅRSTOT!$A39)+SUMIFS(ISOLATØR!E$27:E$38,ISOLATØR!$A$27:$A$38,ÅRSTOT!$A39)+SUMIFS(MALERE!E$27:E$38,MALERE!$A$27:$A$38,ÅRSTOT!$A39)+SUMIFS(TAKTEKKERE!E$27:E$38,TAKTEKKERE!$A$27:$A$38,ÅRSTOT!$A39) -> 441 | F39: 308.8520147 | G39: 217.8888889 | H39: 308.1390856 | I39: =SUMIFS(BETONG!I$27:I$38,BETONG!$A$27:$A$38,ÅRSTOT!$A39)+SUMIFS(TØMRERE!I$27:I$38,TØMRERE!$A$27:$A$38,ÅRSTOT!$A39)+SUMIFS(RØRLEGGERE!I$27:I$38,RØRLEGGERE!$A$27:$A$38,ÅRSTOT!$A39)+SUMIFS(MURERE!I$27:I$38,MURERE!$A$27:$A$38,ÅRSTOT!$A39)+SUMIFS('BLIKK OG VENTILASJON'!I$27:I$38,'BLIKK OG VENTILASJON'!$A$27:$A$38,ÅRSTOT!$A39)+SUMIFS(ISOLATØR!I$27:I$38,ISOLATØR!$A$27:$A$38,ÅRSTOT!$A39)+SUMIFS(MALERE!I$27:I$38,MALERE!$A$27:$A$38,ÅRSTOT!$A39)+SUMIFS(TAKTEKKERE!I$27:I$38,TAKTEKKERE!$A$27:$A$38,ÅRSTOT!$A39) -> 16069396 | J39: =SUMIFS(BETONG!J$27:J$38,BETONG!$A$27:$A$38,ÅRSTOT!$A39)+SUMIFS(TØMRERE!J$27:J$38,TØMRERE!$A$27:$A$38,ÅRSTOT!$A39)+SUMIFS(RØRLEGGERE!J$27:J$38,RØRLEGGERE!$A$27:$A$38,ÅRSTOT!$A39)+SUMIFS(MURERE!J$27:J$38,MURERE!$A$27:$A$38,ÅRSTOT!$A39)+SUMIFS('BLIKK OG VENTILASJON'!J$27:J$38,'BLIKK OG VENTILASJON'!$A$27:$A$38,ÅRSTOT!$A39)+SUMIFS(ISOLATØR!J$27:J$38,ISOLATØR!$A$27:$A$38,ÅRSTOT!$A39)+SUMIFS(MALERE!J$27:J$38,MALERE!$A$27:$A$38,ÅRSTOT!$A39)+SUMIFS(TAKTEKKERE!J$27:J$38,TAKTEKKERE!$A$27:$A$38,ÅRSTOT!$A39) -> 776008 | K39: 291.1 | L39: 0.07297915864 | M39: 0.05853344424
A40: Oslo | B40: =SUMIFS(BETONG!B$27:B$38,BETONG!$A$27:$A$38,ÅRSTOT!$A40)+SUMIFS(TØMRERE!B$27:B$38,TØMRERE!$A$27:$A$38,ÅRSTOT!$A40)+SUMIFS(RØRLEGGERE!B$27:B$38,RØRLEGGERE!$A$27:$A$38,ÅRSTOT!$A40)+SUMIFS(MURERE!B$27:B$38,MURERE!$A$27:$A$38,ÅRSTOT!$A40)+SUMIFS('BLIKK OG VENTILASJON'!B$27:B$38,'BLIKK OG VENTILASJON'!$A$27:$A$38,ÅRSTOT!$A40)+SUMIFS(ISOLATØR!B$27:B$38,ISOLATØR!$A$27:$A$38,ÅRSTOT!$A40)+SUMIFS(MALERE!B$27:B$38,MALERE!$A$27:$A$38,ÅRSTOT!$A40)+SUMIFS(TAKTEKKERE!B$27:B$38,TAKTEKKERE!$A$27:$A$38,ÅRSTOT!$A40) -> 132928385.6 | C40: =SUMIFS(BETONG!C$27:C$38,BETONG!$A$27:$A$38,ÅRSTOT!$A40)+SUMIFS(TØMRERE!C$27:C$38,TØMRERE!$A$27:$A$38,ÅRSTOT!$A40)+SUMIFS(RØRLEGGERE!C$27:C$38,RØRLEGGERE!$A$27:$A$38,ÅRSTOT!$A40)+SUMIFS(MURERE!C$27:C$38,MURERE!$A$27:$A$38,ÅRSTOT!$A40)+SUMIFS('BLIKK OG VENTILASJON'!C$27:C$38,'BLIKK OG VENTILASJON'!$A$27:$A$38,ÅRSTOT!$A40)+SUMIFS(ISOLATØR!C$27:C$38,ISOLATØR!$A$27:$A$38,ÅRSTOT!$A40)+SUMIFS(MALERE!C$27:C$38,MALERE!$A$27:$A$38,ÅRSTOT!$A40)+SUMIFS(TAKTEKKERE!C$27:C$38,TAKTEKKERE!$A$27:$A$38,ÅRSTOT!$A40) -> 10551383.85 | D40: =SUMIFS(BETONG!D$27:D$38,BETONG!$A$27:$A$38,ÅRSTOT!$A40)+SUMIFS(TØMRERE!D$27:D$38,TØMRERE!$A$27:$A$38,ÅRSTOT!$A40)+SUMIFS(RØRLEGGERE!D$27:D$38,RØRLEGGERE!$A$27:$A$38,ÅRSTOT!$A40)+SUMIFS(MURERE!D$27:D$38,MURERE!$A$27:$A$38,ÅRSTOT!$A40)+SUMIFS('BLIKK OG VENTILASJON'!D$27:D$38,'BLIKK OG VENTILASJON'!$A$27:$A$38,ÅRSTOT!$A40)+SUMIFS(ISOLATØR!D$27:D$38,ISOLATØR!$A$27:$A$38,ÅRSTOT!$A40)+SUMIFS(MALERE!D$27:D$38,MALERE!$A$27:$A$38,ÅRSTOT!$A40)+SUMIFS(TAKTEKKERE!D$27:D$38,TAKTEKKERE!$A$27:$A$38,ÅRSTOT!$A40) -> 381283.1 | E40: =SUMIFS(BETONG!E$27:E$38,BETONG!$A$27:$A$38,ÅRSTOT!$A40)+SUMIFS(TØMRERE!E$27:E$38,TØMRERE!$A$27:$A$38,ÅRSTOT!$A40)+SUMIFS(RØRLEGGERE!E$27:E$38,RØRLEGGERE!$A$27:$A$38,ÅRSTOT!$A40)+SUMIFS(MURERE!E$27:E$38,MURERE!$A$27:$A$38,ÅRSTOT!$A40)+SUMIFS('BLIKK OG VENTILASJON'!E$27:E$38,'BLIKK OG VENTILASJON'!$A$27:$A$38,ÅRSTOT!$A40)+SUMIFS(ISOLATØR!E$27:E$38,ISOLATØR!$A$27:$A$38,ÅRSTOT!$A40)+SUMIFS(MALERE!E$27:E$38,MALERE!$A$27:$A$38,ÅRSTOT!$A40)+SUMIFS(TAKTEKKERE!E$27:E$38,TAKTEKKERE!$A$27:$A$38,ÅRSTOT!$A40) -> 48312.53 | F40: 348.6343497 | G40: 218.3984952 | H40: 333.9879632 | I40: =SUMIFS(BETONG!I$27:I$38,BETONG!$A$27:$A$38,ÅRSTOT!$A40)+SUMIFS(TØMRERE!I$27:I$38,TØMRERE!$A$27:$A$38,ÅRSTOT!$A40)+SUMIFS(RØRLEGGERE!I$27:I$38,RØRLEGGERE!$A$27:$A$38,ÅRSTOT!$A40)+SUMIFS(MURERE!I$27:I$38,MURERE!$A$27:$A$38,ÅRSTOT!$A40)+SUMIFS('BLIKK OG VENTILASJON'!I$27:I$38,'BLIKK OG VENTILASJON'!$A$27:$A$38,ÅRSTOT!$A40)+SUMIFS(ISOLATØR!I$27:I$38,ISOLATØR!$A$27:$A$38,ÅRSTOT!$A40)+SUMIFS(MALERE!I$27:I$38,MALERE!$A$27:$A$38,ÅRSTOT!$A40)+SUMIFS(TAKTEKKERE!I$27:I$38,TAKTEKKERE!$A$27:$A$38,ÅRSTOT!$A40) -> 137059242 | J40: =SUMIFS(BETONG!J$27:J$38,BETONG!$A$27:$A$38,ÅRSTOT!$A40)+SUMIFS(TØMRERE!J$27:J$38,TØMRERE!$A$27:$A$38,ÅRSTOT!$A40)+SUMIFS(RØRLEGGERE!J$27:J$38,RØRLEGGERE!$A$27:$A$38,ÅRSTOT!$A40)+SUMIFS(MURERE!J$27:J$38,MURERE!$A$27:$A$38,ÅRSTOT!$A40)+SUMIFS('BLIKK OG VENTILASJON'!J$27:J$38,'BLIKK OG VENTILASJON'!$A$27:$A$38,ÅRSTOT!$A40)+SUMIFS(ISOLATØR!J$27:J$38,ISOLATØR!$A$27:$A$38,ÅRSTOT!$A40)+SUMIFS(MALERE!J$27:J$38,MALERE!$A$27:$A$38,ÅRSTOT!$A40)+SUMIFS(TAKTEKKERE!J$27:J$38,TAKTEKKERE!$A$27:$A$38,ÅRSTOT!$A40) -> 549713.38 | K40: 340.4 | L40: -0.03013920338 | M40: -0.01883677074
A41: Landet i alt | B41: =SUM(B28:B40) -> 412724740.7 | C41: =SUM(C28:C40) -> 28993203.99 | D41: =SUM(D28:D40) -> 1275457.7 | E41: =SUM(E28:E40) -> 145907.45 | F41: =IF(D41=0,0,B41/D41) -> 323.5895167 | G41: 198.7095518 | H41: 310.770209 | I41: =SUM(I28:I40) -> 384178067.6 | J41: =SUM(J28:J40) -> 12347820.75 | K41: 309.78 | L41: 0.07430583757
A44: ="MÅLESTATISTIKK FOR ALLE BYGGFAG - GJENNOMSNITT HELE ÅRET "&FORS!$A$14 -> MÅLESTATISTIKK FOR ALLE BYGGFAG - GJENNOMSNITT HELE ÅRET 2020
B46: Målesum i kroner | D46: Timer | F46: ="Fortjeneste hele "&FORS!$A$14-0 -> Fortjeneste hele 2020 | I46: =" Hele året "&FORS!$A$14-1 -> Hele året 2019 | L46: Endringer i %
B47: Innmålt m/ | C47: Innmålt m/ | D47: Innmålt m/ | E47: Innmålt m/ | F47: Innmålt m/ | G47: Innmålt m/ | H47: Gjennom- | I47: Innmålt m/ | J47: Innmålt m/ | K47: Gjen.snitt | L47: Innmålt m/ | M47: Gjen.snitt
B48: overskudd | C48: underskudd | D48: overskudd | E48: underskudd | F48: overskudd | G48: underskudd | H48: snitt | I48: overskudd | J48: underskudd | K48: fortjeneste | L48: overskudd | M48: fortjeneste
A49: Agder | B49: =SUMIFS(B$7:B$19,$A$7:$A$19,$A49)+SUMIFS(B$28:B$40,$A$28:$A$40,$A49) -> 22425687 | C49: =SUMIFS(C$7:C$19,$A$7:$A$19,$A49)+SUMIFS(C$28:C$40,$A$28:$A$40,$A49) -> 330230 | D49: 74238 | E49: 1511 | F49: =IF(D49=0,0,B49/D49) -> 302.0782753 | G49: =IF(E49=0,0,C49/E49) -> 218.5506287 | H49: =IF(D49+E49=0,0,(B49+C49)/(D49+E49)) -> 300.4121111 | I49: =SUMIFS(I$7:I$19,$A$7:$A$19,$A49)+SUMIFS(I$28:I$40,$A$28:$A$40,$A49) -> 17788849 | J49: 277034 | K49: 295.23 | L49: =IF(I49=0,0,(B49-I49)/I49) -> 0.26065981 | M49: =IF(K49=0,0,(H49-K49)/K49) -> 0.01755279291
A50: Bergen | B50: =SUMIFS(B$7:B$19,$A$7:$A$19,$A50)+SUMIFS(B$28:B$40,$A$28:$A$40,$A50) -> 66976791.7 | C50: 0 | D50: 229125.33 | E50: 0 | F50: 292.315091 | G50: 0 | H50: 292.315091 | I50: 47335841.6 | J50: 0 | K50: 279.25 | L50: 0.4149276623 | M50: 0.04678636006
A51: Nordland | B51: 0 | C51: 424816.48 | D51: 0 | E51: 2105.5 | F51: =IF(D51=0,0,B51/D51) -> 0 | G51: =IF(E51=0,0,C51/E51) -> 201.7651294 | H51: =IF(D51+E51=0,0,(B51+C51)/(D51+E51)) -> 201.7651294 | I51: 0 | J51: 0 | K51: =IF(G51+H51=0,0,(E51+F51)/(G51+H51)) -> 5.217700417 | L51: 0 | M51: 37.66935878
A52: Drammen - Bærum | B52: 0 | C52: 0 | D52: 0 | E52: 0 | F52: 0 | G52: 0 | H52: 0 | I52: 0 | J52: 0 | K52: 0 | L52: 0 | M52: 0
A53: Haugesund | B53: 17704319 | C53: 0 | D53: 62530.61 | E53: 0 | F53: 283.130438 | G53: 0 | H53: 283.130438 | I53: 28352949 | J53: 0 | K53: 273.46 | L53: -0.3755739835 | M53: 0.0353632635
A54: Hamar og Omegn | B54: 37369619 | C54: 1018501 | D54: 117072.08 | E54: 5009.88 | F54: 319.2018029 | G54: 203.2984822 | H54: 314.4454758 | I54: 25160718.52 | J54: 337597 | K54: 297.94 | L54: 0.4852365591 | M54: 0.05539865681
A55: Sandnes | B55: 45252655.94 | C55: 0 | D55: 137241.82 | E55: 0 | F55: 329.7293488 | G55: 0 | H55: 329.7293488 | I55: 20300211.17 | J55: 0 | K55: 321.61 | L55: 1.229171685 | M55: 0.02524594641
A56: Stavanger | B56: 9524049.08 | C56: 0 | D56: 31666 | E56: 0 | F56: 300.7657765 | G56: 0 | H56: 300.7657765 | I56: 10192165.09 | J56: 1161873 | K56: 304.27 | L56: -0.0655519219 | M56: -0.01151682209
A57: Telemark | B57: 39341045.6 | C57: 2265600 | D57: 124095 | E57: 9770 | F57: 317.0236158 | G57: 231.8935517 | H57: 310.8104852 | I57: 31685868 | J57: 500000 | K57: 304.95 | L57: 0.2415959569 | M57: 0.01921785601
A58: Trondheim | B58: 259195951 | C58: 28079181.44 | D58: 817740.08 | E58: 148519.1 | F58: 316.966182 | G58: 189.06108 | H58: 297.3064975 | I58: 310524301.7 | J58: 22147844.43 | K58: 296.26 | L58: -0.1652957606 | M58: 0.003532361731
A59: Vestfold | B59: 1182849.06 | C59: 0 | D59: 2731 | E59: 0 | F59: =IF(D59=0,0,B59/D59) -> 433.1193922 | G59: =IF(E59=0,0,C59/E59) -> 0 | H59: 433.1193922 | I59: 4245005.78 | J59: 1341390.27 | K59: 228.25 | L59: -0.7213551356 | M59: 0.8975657926
A60: Østfold | B60: 26743560 | C60: 2375464 | D60: 86573.5 | E60: 10790.5 | F60: 308.9116185 | G60: 220.1440156 | H60: 299.0738261 | I60: 25133245 | J60: 7080946 | K60: 276.71 | L60: 0.06407111378 | M60: 0.0808204476
A61: Oslo | B61: 238258251.4 | C61: 13296546.88 | D61: 693983.5 | E61: 61139.23 | F61: 343.3197639 | G61: 217.4797897 | H61: =IF(D61+E61=0,0,(B61+C61)/(D61+E61)) -> 333.1310107 | I61: 234056181.2 | J61: 9030984.79 | K61: 324.86 | L61: 0.01795325464 | M61: 0.02546023127
A62: Landet i alt | B62: =SUM(B49:B61) -> 763974778.8 | C62: =SUM(C49:C61) -> 47790339.8 | D62: =SUM(D49:D61) -> 2376996.92 | E62: =SUM(E49:E61) -> 238845.21 | F62: =IF(D62=0,0,B62/D62) -> 321.4033524 | G62: 200.0891699 | H62: =IF(D62+E62=0,0,(B62+C62)/(D62+E62)) -> 310.3264946 | I62: =SUM(I49:I61) -> 754775336 | J62: =SUM(J49:J61) -> 41877669.49 | K62: 301.99 | L62: 0.01218831931 | M62: 0.0276052008

Sheet BETONG
A2: ="MÅLESTATISTIKK FOR BETONGFAGENE - 1. HALVÅR "&FORS!$A$14 -> MÅLESTATISTIKK FOR BETONGFAGENE - 1. HALVÅR 2020
B4: Målesum i kroner | D4: Timer | F4: ="Fortjeneste 1. halvår "&FORS!$A$14-0 -> Fortjeneste 1. halvår 2020 | I4: =" 1. halvår "&FORS!$A$14-1 -> 1. halvår 2019 | L4: Endringer i %
B5: Innmålt m/ | C5: Innmålt m/ | D5: Innmålt m/ | E5: Innmålt m/ | F5: Innmålt m/ | G5: Innmålt m/ | H5: Gjennom- | I5: Innmålt m/ | J5: Innmålt m/ | K5: Gjen.snitt | L5: Innmålt m/ | M5: Gjen.snitt
B6: overskudd | C6: underskudd | D6: overskudd | E6: underskudd | F6: overskudd | G6: underskudd | H6: snitt | I6: overskudd | J6: underskudd | K6: fortjeneste | L6: overskudd | M6: fortjeneste
A7: Agder | B7: 5285873 | C7: 330230 | D7: 17502 | E7: 1511 | F7: =IF(D7=0,0,B7/D7) -> 302.0153697 | G7: =IF(E7=0,0,C7/E7) -> 218.5506287 | H7: =IF(D7+E7=0,0,(B7+C7)/(D7+E7)) -> 295.3822648 | I7: 3336295 | K7: 300.38 | L7: =IF(I7=0,0,(B7-I7)/I7) -> 0.5843542013 | M7: =IF(K7=0,0,(H7-K7)/K7) -> -0.01663804259
A8: Bergen | B8: 25422200.28 | D8: 83380.48 | F8: =IF(D8=0,0,B8/D8) -> 304.8939066 | G8: =IF(E8=0,0,C8/E8) -> 0 | H8: =IF(D8+E8=0,0,(B8+C8)/(D8+E8)) -> 304.8939066 | I8: 21090345.7 | K8: 274.43 | L8: =IF(I8=0,0,(B8-I8)/I8) -> 0.2053951434 | M8: =IF(K8=0,0,(H8-K8)/K8) -> 0.1110079313
A9: Drammen - Bærum | F9: =IF(D9=0,0,B9/D9) -> 0 | G9: =IF(E9=0,0,C9/E9) -> 0 | H9: =IF(D9+E9=0,0,(B9+C9)/(D9+E9)) -> 0 | L9: =IF(I9=0,0,(B9-I9)/I9) -> 0 | M9: =IF(K9=0,0,(H9-K9)/K9) -> 0
A10: Haugesund | B10: 12167164 | D10: 42803 | F10: 284.259608 | G10: 0 | H10: 284.259608 | I10: 12693010 | K10: 274.88 | L10: -0.04142799856 | M10: 0.03412255519
A11: Hamar og Omegn | B11: 5400384 | D11: 13867.92 | F11: 389.4155721 | G11: 0 | H11: 389.4155721 | I11: 5355170 | K11: 320.89 | L11: 0.008443055963 | M11: 0.213548481
A12: Sandnes | B12: 13507839.1 | D12: 40521.46 | F12: 333.3502569 | G12: 0 | H12: 333.3502569 | I12: 12109542.19 | K12: 319.32 | L12: 0.1154706667 | M12: 0.04393792082
A13: Stavanger | F13: 0 | G13: 0 | H13: 0 | L13: 0 | M13: 0
A14: Telemark | B14: 9041294 | D14: 32245 | F14: 280.3936734 | G14: 0 | H14: 280.3936734 | I14: 4818868 | K14: 322.96 | L14: 0.876227778 | M14: -0.1318006148
A15: Trondheim | B15: 35742579 | D15: 106185.89 | F15: 336.6038463 | G15: 0 | H15: 336.6038463 | I15: 41401768.43 | K15: 340.62 | L15: -0.1366895581 | M15: =IF(K15=0,0,(H15-K15)/K15) -> -0.01179071596
A16: Vestfold | F16: 0 | G16: 0 | H16: 0 | L16: 0 | M16: 0
A17: Østfold | B17: 4907563 | D17: 16324 | F17: 300.6348321 | G17: 0 | H17: 300.6348321 | I17: 5653147 | J17: 4707718 | K17: 258.4 | L17: -0.1318883093 | M17: 0.1634474928
A18: Oslo | B18: 26191837 | C18: 602075 | D18: 71697 | E18: 2815 | F18: 365.3128722 | G18: 213.8809947 | H18: 359.5919047 | I18: 24142657 | K18: 308.96 | L18: 0.08487798174 | M18: 0.1638785107
A19: Landet i alt | B19: =SUM(B7:B18) -> 137666733.4 | C19: =SUM(C7:C18) -> 932305 | D19: =SUM(D7:D18) -> 424526.75 | E19: =SUM(E7:E18) -> 4326 | F19: =IF(D19=0,0,B19/D19) -> 324.2828241 | G19: =IF(E19=0,0,C19/E19) -> 215.5120203 | H19: =IF(D19+E19=0,0,(B19+C19)/(D19+E19)) -> 323.1856118 | I19: =SUM(I7:I18) -> 130600803.3 | J19: =SUM(J7:J18) -> 4707718 | K19: 313.54 | L19: =IF(I19=0,0,(B19-I19)/I19) -> 0.05410326645 | M19: =IF(K19=0,0,(H19-K19)/K19) -> 0.03076357657
A22: ="MÅLESTATISTIKK FOR BETONGFAGENE - 2. HALVÅR "&FORS!$A$14 -> MÅLESTATISTIKK FOR BETONGFAGENE - 2. HALVÅR 2020
B24: Målesum i kroner | D24: Timer | F24: ="Fortjeneste 2. halvår "&FORS!$A$14-0 -> Fortjeneste 2. halvår 2020 | I24: =" 2. halvår "&FORS!$A$14-1 -> 2. halvår 2019 | L24: Endringer i %
B25: Innmålt m/ | C25: Innmålt m/ | D25: Innmålt m/ | E25: Innmålt m/ | F25: Innmålt m/ | G25: Innmålt m/ | H25: Gjennom- | I25: Innmålt m/ | J25: Innmålt m/ | K25: Gjen.snitt | L25: Innmålt m/ | M25: Gjen.snitt
B26: overskudd | C26: underskudd | D26: overskudd | E26: underskudd | F26: overskudd | G26: underskudd | H26: snitt | I26: overskudd | J26: underskudd | K26: fortjeneste | L26: overskudd | M26: fortjeneste
A27: Agder | B27: 7913531 | D27: 25367 | F27: =IF(D27=0,0,B27/D27) -> 311.9616431 | G27: =IF(E27=0,0,C27/E27) -> 0 | H27: =IF(D27+E27=0,0,(B27+C27)/(D27+E27)) -> 311.9616431 | I27: 2192463 | J27: 277034 | K27: 281.52 | L27: =IF(I27=0,0,(B27-I27)/I27) -> 2.609425108 | M27: =IF(K27=0,0,(H27-K27)/K27) -> 0.1081331454
A28: Bergen | B28: 33342487.23 | D28: 113917.77 | F28: 292.6890794 | G28: 0 | H28: =IF(D28+E28=0,0,(B28+C28)/(D28+E28)) -> 292.6890794 | I28: 15609510.62 | K28: 296.27 | L28: =IF(I28=0,0,(B28-I28)/I28) -> 1.136036679 | M28: =IF(K28=0,0,(H28-K28)/K28) -> -0.01208667968
A29: Drammen - Bærum | F29: 0 | G29: 0 | H29: 0 | L29: 0 | M29: 0
A30: Haugesund | B30: 5537155 | D30: 19727.61 | F30: 280.6804778 | G30: 0 | H30: 280.6804778 | I30: 15659939 | K30: 272.31 | L30: -0.6464127351 | M30: 0.03073878215
A31: Hamar og Omegn | B31: 3452479 | C31: 0 | D31: 10426.43 | E31: 0 | F31: 331.1276247 | G31: 0 | H31: 331.1276247 | I31: 341197 | J31: 321430 | K31: 262.52 | L31: 9.118726132 | M31: 0.261342468
A32: Sandnes | B32: 30178354.46 | D32: 91191.56 | F32: 330.9336353 | G32: 0 | H32: 330.9336353 | I32: 8190668.98 | K32: 325.06 | L32: 2.684479807 | M32: 0.01806938813
A33: Stavanger | F33: 0 | G33: 0 | H33: 0 | L33: 0 | M33: 0
A34: Telemark | B34: 2401103 | D34: 6350 | F34: 378.1264567 | G34: 0 | H34: 378.1264567 | I34: 4294393 | K34: 353.71 | L34: -0.4408748803 | M34: 0.06902959117
A35: Trondheim | B35: 36178457.68 | D35: 101639.84 | F35: 355.9476056 | G35: 0 | H35: 355.9476056 | I35: 33527468.25 | J35: 54669.59 | K35: 331.15 | L35: 0.07906918024 | M35: 0.07488330238
A36: Vestfold | F36: 0 | G36: 0 | H36: 0 | L36: 0 | M36: 0
A37: Østfold | B37: 4557897 | C37: 58589 | D37: 14921.5 | E37: 274 | F37: 305.4583654 | G37: 213.8284672 | H37: 303.8061268 | I37: 4660926 | K37: 290.82 | L37: -0.02210483496 | M37: 0.04465348605
A38: Oslo | B38: 32598530 | D38: 88662 | F38: 367.6719451 | G38: 0 | H38: 367.6719451 | I38: 25726128 | K38: 358.5 | L38: 0.2671370523 | M38: 0.02558422633
A39: Landet i alt | B39: =SUM(B27:B38) -> 156159994.4 | C39: =SUM(C27:C38) -> 58589 | D39: =SUM(D27:D38) -> 472203.71 | E39: =SUM(E27:E38) -> 274 | F39: =IF(D39=0,0,B39/D39) -> 330.7047172 | G39: =IF(E39=0,0,C39/E39) -> 213.8284672 | H39: =IF(D39+E39=0,0,(B39+C39)/(D39+E39)) -> 330.6369381 | I39: =SUM(I27:I38) -> 110202693.8 | J39: =SUM(J27:J38) -> 653133.59 | K39: 318.53 | L39: =IF(I39=0,0,(B39-I39)/I39) -> 0.4170252007 | M39: =IF(K39=0,0,(H39-K39)/K39) -> 0.03800878452
A42: ="MÅLESTATISTIKK FOR BETONGFAGENE - GJENNOMSNITT HELE ÅRET "&FORS!$A$14 -> MÅLESTATISTIKK FOR BETONGFAGENE - GJENNOMSNITT HELE ÅRET 2020
B44: Målesum i kroner | D44: Timer | F44: ="Fortjeneste hele "&FORS!$A$14-0 -> Fortjeneste hele 2020 | I44: =" Hele året "&FORS!$A$14-1 -> Hele året 2019 | L44: Endringer i %
B45: Innmålt m/ | C45: Innmålt m/ | D45: Innmålt m/ | E45: Innmålt m/ | F45: Innmålt m/ | G45: Innmålt m/ | H45: Gjennom- | I45: Innmålt m/ | J45: Innmålt m/ | K45: Gjen.snitt | L45: Innmålt m/ | M45: Gjen.snitt
B46: overskudd | C46: underskudd | D46: overskudd | E46: underskudd | F46: overskudd | G46: underskudd | H46: snitt | I46: overskudd | J46: underskudd | K46: fortjeneste | L46: overskudd | M46: fortjeneste
A47: Agder | B47: =SUMIFS(B$7:B$19,$A$7:$A$19,$A47)+SUMIFS(B$27:B$39,$A$27:$A$39,$A47) -> 13199404 | C47: =SUMIFS(C$7:C$19,$A$7:$A$19,$A47)+SUMIFS(C$27:C$39,$A$27:$A$39,$A47) -> 330230 | D47: 42869 | E47: 1511 | F47: =IF(D47=0,0,B47/D47) -> 307.9009074 | G47: =IF(E47=0,0,C27/E47) -> 0 | H47: =IF(D47+E47=0,0,(B47+C47)/(D47+E47)) -> 304.8588103 | I47: =SUMIFS(I$7:I$19,$A$7:$A$19,$A47)+SUMIFS(I$27:I$39,$A$27:$A$39,$A47) -> 5528758 | J47: =SUMIFS(J$7:J$19,$A$7:$A$19,$A47)+SUMIFS(J$27:J$39,$A$27:$A$39,$A47) -> 277034 | K47: 292.06 | L47: =IF(I47=0,0,(B47-I47)/I47) -> 1.387408528 | M47: =IF(K47=0,0,(H47-K47)/K47) -> 0.04382253741
A48: Bergen | B48: =SUMIFS($B$7:$B$19,$A$7:$A$19,A48)+SUMIFS($B$27:$B$39,$A$27:$A$39,A48) -> 58764687.51 | C48: 0 | D48: 197298.25 | E48: 0 | F48: =IF(D48=0,0,B48/D48) -> 297.8469779 | G48: =IF(E48=0,0,C48/E48) -> 0 | H48: =IF(D48+E48=0,0,(B48+C48)/(D48+E48)) -> 297.8469779 | I48: =SUMIFS(I$7:I$19,$A$7:$A$19,$A48)+SUMIFS(I$27:I$39,$A$27:$A$39,$A48) -> 36699856.32 | J48: 0 | K48: 283.31 | L48: =IF(I48=0,0,(B48-I48)/I48) -> 0.6012239121 | M48: =IF(K48=0,0,(H48-K48)/K48) -> 0.0513112065
A49: Drammen - Bærum | B49: 0 | C49: 0 | D49: 0 | E49: 0 | F49: 0 | G49: 0 | H49: 0 | I49: 0 | J49: 0 | L49: 0 | M49: 0
A50: Haugesund | B50: 17704319 | C50: 0 | D50: 62530.61 | E50: 0 | F50: 283.130438 | G50: 0 | H50: 283.130438 | I50: 28352949 | J50: 0 | K50: 273.46 | L50: -0.3755739835 | M50: 0.0353632635
A51: Hamar og Omegn | B51: 8852863 | C51: 0 | D51: 24294.35 | E51: 0 | F51: 364.4000766 | G51: 0 | H51: 364.4000766 | I51: 5696367 | J51: 321430 | K51: 313.22 | L51: 0.5541244095 | M51: 0.1633997719
A52: Sandnes | B52: 43686193.56 | C52: 0 | D52: 131713.02 | E52: 0 | F52: =IF(D52=0,0,B52/D52) -> 331.677108 | G52: 0 | H52: =IF(D52+E52=0,0,(B52+C52)/(D52+E52)) -> 331.677108 | I52: 20300211.17 | J52: 0 | K52: 321.61 | L52: 1.152006853 | M52: 0.0313022232
A53: Stavanger | B53: 0 | C53: 0 | D53: 0 | E53: 0 | F53: 0 | G53: 0 | H53: 0 | I53: 0 | J53: 0 | L53: 0 | M53: 0
A54: Telemark | B54: 11442397 | C54: 0 | D54: 38595 | E54: 0 | F54: 296.4735588 | G54: 0 | H54: 296.4735588 | I54: 9113261 | J54: 0 | K54: 336.75 | L54: 0.2555765713 | M54: -0.119603389
A55: Trondheim | B55: 71921036.68 | C55: 0 | D55: 207825.73 | E55: 0 | F55: 346.06416 | G55: 0 | H55: 346.06416 | I55: 74929236.68 | J55: 54669.59 | K55: 336.31 | L55: -0.04014721267 | M55: 0.02900347895
A56: Vestfold | B56: 0 | C56: 0 | D56: 0 | E56: 0 | F56: =IF(D56=0,0,B56/D56) -> 0 | G56: 0 | H56: 0 | I56: 0 | J56: 0 | L56: 0 | M56: 0
A57: Østfold | B57: 9465460 | C57: 58589 | D57: 31245.5 | E57: =SUMIFS(E$7:E$19,$A$7:$A$19,$A57)+SUMIFS(E$27:E$39,$A$27:$A$39,$A57) -> 274 | F57: =IF(D57=0,0,B57/D57) -> 302.9383431 | G57: 213.8284672 | H57: 302.1637082 | I57: 10314073 | J57: 4707718 | K57: 267.66 | L57: -0.08227719544 | M57: 0.1289087207
A58: Oslo | B58: 58790367 | C58: 602075 | D58: 160359 | E58: 2815 | F58: 366.6171964 | G58: 213.8809947 | H58: 363.9822643 | I58: 49868785 | J58: 0 | K58: 332.68 | L58: 0.1789011302 | M58: 0.09409121177
A59: Landet i alt | B59: =SUM(B47:B58) -> 293826727.8 | C59: =SUM(C47:C58) -> 990894 | D59: =SUM(D47:D58) -> 896730.46 | E59: =SUM(E47:E58) -> 4600 | F59: =IF(D59=0,0,B59/D59) -> 327.6644888 | G59: =IF(E59=0,0,C59/E59) -> 215.4117391 | H59: =IF(D59+E59=0,0,(B59+C59)/(D59+E59)) -> 327.0915994 | I59: =SUM(I47:I58) -> 240803497.2 | J59: =SUM(J47:J58) -> 5360851.59 | K59: 311.02 | L59: =IF(I59=0,0,(B59-I59)/I59) -> 0.2201929424 | M59: =IF(K59=0,0,(H59-K59)/K59) -> 0.05167384541

Sheet TØMRERE
A2: ="MÅLESTATISTIKK FOR TØMRERE - 1. HALVÅR "&FORS!$A$14 -> MÅLESTATISTIKK FOR TØMRERE - 1. HALVÅR 2020
B4: Målesum i kroner | D4: Timer | F4: ="Fortjeneste 1. halvår "&FORS!$A$14-0 -> Fortjeneste 1. halvår 2020 | I4: =" 1. halvår "&FORS!$A$14-1 -> 1. halvår 2019 | L4: Endringer i %
B5: Innmålt m/ | C5: Innmålt m/ | D5: Innmålt m/ | E5: Innmålt m/ | F5: Innmålt m/ | G5: Innmålt m/ | H5: Gjennom- | I5: Innmålt m/ | J5: Innmålt m/ | K5: Gjen.snitt | L5: Innmålt m/ | M5: Gjen.snitt
B6: overskudd | C6: underskudd | D6: overskudd | E6: underskudd | F6: overskudd | G6: underskudd | H6: snitt | I6: overskudd | J6: underskudd | K6: fortjeneste | L6: overskudd | M6: fortjeneste
A7: Agder | B7: 5334826 | D7: 18389 | F7: =IF(D7=0,0,B7/D7) -> 290.1096308 | G7: =IF(E7=0,0,C7/E7) -> 0 | H7: =IF(D7+E7=0,0,(B7+C7)/(D7+E7)) -> 290.1096308 | I7: 9438252 | K7: 297.74 | L7: =IF(I7=0,0,(B7-I7)/I7) -> -0.4347654629 | M7: =IF(K7=0,0,(H7-K7)/K7) -> -0.02562762559
A8: Bergen | F8: =IF(D8=0,0,B8/D8) -> 0 | G8: 0 | H8: =IF(D8+E8=0,0,(B8+C8)/(D8+E8)) -> 0 | I8: 2660016.2 | K8: 275.35 | L8: =IF(I8=0,0,(B8-I8)/I8) -> -1 | M8: =IF(K8=0,0,(H8-K8)/K8) -> -1
A9: Drammen - Bærum | F9: 0 | G9: 0 | H9: 0 | L9: 0 | M9: 0
A10: Haugesund | F10: 0 | G10: 0 | H10: 0 | L10: 0 | M10: 0
A11: Hamar og Omegn | B11: 7624460 | C11: 492756 | D11: 25292 | E11: 2252.98 | F11: 301.4573778 | G11: 218.7129935 | H11: 294.6894861 | I11: 8030815.05 | K11: 280.92 | L11: -0.05059947807 | M11: 0.04901568443
A12: Sandnes | F12: 0 | G12: 0 | H12: 0 | L12: 0 | M12: 0
A13: Stavanger | F13: 0 | G13: 0 | H13: 0 | L13: 0 | M13: 0
A14: Telemark | B14: 15925174.6 | D14: 50414 | F14: 315.8879399 | G14: 0 | H14: 315.8879399 | I14: 8607471 | K14: 293.58 | L14: 0.8501572181 | M14: 0.07598589774
A15: Trondheim | B15: 63067911.13 | C15: 2445001 | D15: 203543.22 | E15: 11948.44 | F15: 309.8502182 | G15: 204.6293073 | H15: 304.0159983 | I15: 72830750.96 | J15: 7115635.26 | K15: 287.05 | L15: -0.1340483203 | M15: 0.05910467951
A16: Vestfold | B16: 755762 | D16: 1650 | F16: 458.0375758 | G16: 0 | H16: 458.0375758 | I16: 531902 | J16: 944328 | K16: 155.29 | L16: 0.4208670018 | M16: 1.949562597
A17: Østfold | B17: 3160630 | C17: 2279375 | D17: 10032 | E17: 10349.5 | F17: 315.0548246 | G17: 220.2401082 | H17: 266.9089616 | I17: 1869404 | J17: 1597220 | K17: 252.72 | L17: 0.6907153296 | M17: 0.05614498876
A18: Oslo | B18: 23790868.06 | C18: 0 | D18: 69165 | F18: 343.972646 | G18: 0 | H18: 343.972646 | I18: 41051761.49 | K18: 330.94 | L18: -0.420466572 | M18: =IF(K18=0,0,(H18-K18)/K18) -> 0.03938069134
A19: Landet i alt | B19: =SUM(B7:B18) -> 119659631.8 | C19: =SUM(C7:C18) -> 5217132 | D19: =SUM(D7:D18) -> 378485.22 | E19: =SUM(E7:E18) -> 24550.92 | F19: =IF(D19=0,0,B19/D19) -> 316.1540411 | G19: =IF(E19=0,0,C19/E19) -> 212.502505 | H19: =IF(D19+E19=0,0,(B19+C19)/(D19+E19)) -> 309.8401146 | I19: =SUM(I7:I18) -> 145020372.7 | J19: =SUM(J7:J18) -> 9657183.26 | K19: 294.6 | L19: =IF(I19=0,0,(B19-I19)/I19) -> -0.174877091 | M19: =IF(K19=0,0,(H19-K19)/K19) -> 0.05173154977
A22: ="MÅLESTATISTIKK FOR TØMRERE - 2. HALVÅR "&FORS!$A$14 -> MÅLESTATISTIKK FOR TØMRERE - 2. HALVÅR 2020
B24: Målesum i kroner | D24: Timer | F24: ="Fortjeneste 2. halvår "&FORS!$A$14-0 -> Fortjeneste 2. halvår 2020 | I24: =" 2. halvår "&FORS!$A$14-1 -> 2. halvår 2019 | L24: Endringer i %
B25: Innmålt m/ | C25: Innmålt m/ | D25: Innmålt m/ | E25: Innmålt m/ | F25: Innmålt m/ | G25: Innmålt m/ | H25: Gjennom- | I25: Innmålt m/ | J25: Innmålt m/ | K25: Gjen.snitt | L25: Innmålt m/ | M25: Gjen.snitt
B26: overskudd | C26: underskudd | D26: overskudd | E26: underskudd | F26: overskudd | G26: underskudd | H26: snitt | I26: overskudd | J26: underskudd | K26: fortjeneste | L26: overskudd | M26: fortjeneste
A27: Agder | B27: 3754412 | D27: 12447 | F27: =IF(D27=0,0,B27/D27) -> 301.6318792 | G27: 0 | H27: =IF(D27+E27=0,0,(B27+C27)/(D27+E27)) -> 301.6318792 | I27: 2790787 | K27: 293.49 | L27: =IF(I27=0,0,(B27-I27)/I27) -> 0.3452879062 | M27: =IF(K27=0,0,(H27-K27)/K27) -> 0.02774158972
A28: Bergen | F28: 0 | G28: 0 | H28: =IF(D28+E28=0,0,(B28+C28)/(D28+E28)) -> 0 | I28: 2930601.38 | K28: 288.54 | L28: =IF(I28=0,0,(B28-I28)/I28) -> -1 | M28: =IF(K28=0,0,(H28-K28)/K28) -> -1
A29: Drammen - Bærum | F29: 0 | G29: 0 | H29: 0 | L29: 0 | M29: 0
A30: Haugesund | F30: 0 | G30: 0 | H30: 0 | L30: 0 | M30: 0
A31: Hamar og Omegn | B31: 16687447 | C31: 337805 | D31: 57079.87 | E31: 1856.3 | F31: 292.3525754 | G31: 181.9775898 | H31: 288.876118 | I31: 6457780 | K31: 271.98 | L31: 1.584084159 | M31: 0.06212264876
A32: Sandnes | B32: 1566462.38 | D32: 5528.8 | F32: 283.3277348 | G32: 0 | H32: 283.3277348 | L32: 0 | M32: 0
A33: Stavanger | F33: 0 | G33: 0 | H33: 0 | L33: 0 | M33: 0
A34: Telemark | B34: 10004015 | C34: 2000000 | D34: 30161 | E34: 8500 | F34: 331.6871125 | G34: 235.2941176 | H34: 310.4941672 | I34: 12072029 | J34: 500000 | K34: 286.88 | L34: -0.1713062485 | M34: 0.08231374529
A35: Trondheim | B35: 71739144.28 | C35: 1606123.69 | D35: 232880.65 | E35: 13139.04 | F35: 308.0511167 | G35: 122.2405663 | H35: 298.1276335 | I35: 78811131.77 | J35: 4257097.81 | K35: 297.97 | L35: -0.08973335785 | M35: 0.0005290246781
A36: Vestfold | F36: 0 | G36: 0 | H36: 0 | I36: 2731236.8 | J36: 397062.27 | K36: 255.02 | L36: -1 | M36: -1
A37: Østfold | B37: 10482940 | C37: 37500 | D37: 34880 | E37: 167 | F37: 300.5430046 | G37: 224.5508982 | H37: 300.1808999 | I37: 9172323 | J37: 776008 | K37: 278.29 | L37: 0.1428882302 | M37: 0.07866218669
A38: Oslo | B38: 48046246.52 | C38: 8470308.13 | D38: 134981.4 | E38: 38789.33 | F38: 355.947164 | G38: 218.3669615 | H38: 325.2363309 | I38: 54229915.23 | K38: 376.22 | L38: -0.1140268924 | M38: -0.1355155735
A39: Landet i alt | B39: =SUM(B27:B38) -> 162280667.2 | C39: =SUM(C27:C38) -> 12451736.82 | D39: =SUM(D27:D38) -> 507958.72 | E39: =SUM(E27:E38) -> 62451.67 | F39: =IF(D39=0,0,B39/D39) -> 319.4760928 | G39: =IF(E39=0,0,C39/E39) -> 199.3819672 | H39: =IF(D39+E39=0,0,(B39+C39)/(D39+E39)) -> 306.3275267 | I39: =SUM(I27:I38) -> 169195804.2 | J39: =SUM(J27:J38) -> 5930168.08 | K39: 313.75 | L39: -0.04087061753 | M39: -0.02365728527
A42: ="MÅLESTATISTIKK FOR TØMRERE - GJENNOMSNITT HELE ÅRET "&FORS!$A$14 -> MÅLESTATISTIKK FOR TØMRERE - GJENNOMSNITT HELE ÅRET 2020
B44: Målesum i kroner | D44: Timer | F44: ="Fortjeneste hele "&FORS!$A$14-0 -> Fortjeneste hele 2020 | I44: =" Hele året "&FORS!$A$14-1 -> Hele året 2019 | L44: Endringer i %
B45: Innmålt m/ | C45: Innmålt m/ | D45: Innmålt m/ | E45: Innmålt m/ | F45: Innmålt m/ | G45: Innmålt m/ | H45: Gjennom- | I45: Innmålt m/ | J45: Innmålt m/ | K45: Gjen.snitt | L45: Innmålt m/ | M45: Gjen.snitt
B46: overskudd | C46: underskudd | D46: overskudd | E46: underskudd | F46: overskudd | G46: underskudd | H46: snitt | I46: overskudd | J46: underskudd | K46: fortjeneste | L46: overskudd | M46: fortjeneste
A47: Agder | B47: =SUMIFS(B$7:B$19,$A$7:$A$19,$A47)+SUMIFS(B$27:B$39,$A$27:$A$39,$A47) -> 9089238 | C47: =SUMIFS(C$7:C$19,$A$7:$A$19,$A47)+SUMIFS(C$27:C$39,$A$27:$A$39,$A47) -> 0 | D47: 30836 | E47: 0 | F47: =IF(D47=0,0,B47/D47) -> 294.7606045 | G47: =IF(E47=0,0,C27/E47) -> 0 | H47: =IF(D47+E47=0,0,(B47+C47)/(D47+E47)) -> 294.7606045 | I47: =SUMIFS(I$7:I$19,$A$7:$A$19,$A47)+SUMIFS(I$27:I$39,$A$27:$A$39,$A47) -> 12229039 | J47: =SUMIFS(J$7:J$19,$A$7:$A$19,$A47)+SUMIFS(J$27:J$39,$A$27:$A$39,$A47) -> 0 | K47: 296.76 | L47: =IF(I47=0,0,(B47-I47)/I47) -> -0.2567496105 | M47: =IF(K47=0,0,(H47-K47)/K47) -> -0.006737415796
A48: Bergen | B48: =SUMIFS($B$7:$B$19,$A$7:$A$19,A48)+SUMIFS($B$27:$B$39,$A$27:$A$39,A48) -> 0 | C48: 0 | D48: 0 | E48: 0 | F48: =IF(D48=0,0,B48/D48) -> 0 | G48: 0 | H48: =IF(D48+E48=0,0,(B48+C48)/(D48+E48)) -> 0 | I48: =SUMIFS(I$7:I$19,$A$7:$A$19,$A48)+SUMIFS(I$27:I$39,$A$27:$A$39,$A48) -> 5590617.58 | J48: 0 | K48: 282.11 | L48: =IF(I48=0,0,(B48-I48)/I48) -> -1 | M48: =IF(K48=0,0,(H48-K48)/K48) -> -1
A49: Drammen - Bærum | B49: 0 | C49: 0 | D49: 0 | E49: 0 | F49: 0 | G49: 0 | H49: 0 | I49: 0 | J49: 0 | L49: 0 | M49: 0
A50: Haugesund | B50: 0 | C50: 0 | D50: 0 | E50: 0 | F50: 0 | G50: 0 | H50: 0 | I50: 0 | J50: 0 | L50: 0 | M50: 0
A51: Hamar og Omegn | B51: 24311907 | C51: 830561 | D51: 82371.87 | E51: 4109.28 | F51: 295.1481738 | G51: 202.118376 | H51: 290.7277251 | I51: 14488595.05 | J51: 0 | K51: 276.87 | L51: 0.6780030718 | M51: 0.05005137812
A52: Sandnes | B52: 1566462.38 | C52: 0 | D52: 5528.8 | E52: 0 | F52: =IF(D52=0,0,B52/D52) -> 283.3277348 | G52: 0 | H52: =IF(D52+E52=0,0,(B52+C52)/(D52+E52)) -> 283.3277348 | I52: 0 | J52: 0 | L52: 0 | M52: 0
A53: Stavanger | B53: 0 | C53: 0 | D53: 0 | E53: 0 | F53: 0 | G53: 0 | H53: 0 | I53: 0 | J53: 0 | L53: 0 | M53: 0
A54: Telemark | B54: 25929189.6 | C54: 2000000 | D54: 80575 | E54: 8500 | F54: 321.8019187 | G54: 235.2941176 | H54: 313.5468942 | I54: 20679500 | J54: 500000 | K54: 289.56 | L54: 0.2538596001 | M54: 0.08283911518
A55: Trondheim | B55: 134807055.4 | C55: 4051124.69 | D55: 436423.87 | E55: 25087.48 | F55: 308.8901975 | G55: 161.479937 | H55: 300.8770642 | I55: 151641882.7 | J55: 11372733.07 | K55: 292.51 | L55: -0.1110170028 | M55: 0.02860436989
A56: Vestfold | B56: 755762 | C56: 0 | D56: 1650 | E56: 0 | F56: =IF(D56=0,0,B56/D56) -> 458.0375758 | G56: 0 | H56: 458.0375758 | I56: 3263138.8 | J56: 1341390.27 | K56: 211.48 | L56: -0.7683941609 | M56: 1.165867107
A57: Østfold | B57: 13643570 | C57: 2316875 | D57: 44912 | E57: =SUMIFS(E$7:E$19,$A$7:$A$19,$A57)+SUMIFS(E$27:E$39,$A$27:$A$39,$A57) -> 10516.5 | F57: =IF(D57=0,0,B57/D57) -> 303.7845119 | G57: 220.3085627 | H57: 287.9465437 | I57: 11041727 | J57: 2373228 | K57: 371.2 | L57: 0.2356373238 | M57: -0.2242819403
A58: Oslo | B58: 71837114.58 | C58: 8470308.13 | D58: 204146.4 | E58: 38789.33 | F58: 351.8901856 | G58: 218.3669615 | H58: 330.5706522 | I58: 95281676.72 | J58: 0 | K58: 355.28 | L58: -0.2460553062 | M58: -0.0695489411
A59: Landet i alt | B59: =SUM(B47:B58) -> 281940299 | C59: =SUM(C47:C58) -> 17668868.82 | D59: =SUM(D47:D58) -> 886443.94 | E59: =SUM(E47:E58) -> 87002.59 | F59: =IF(D59=0,0,B59/D59) -> 318.0576754 | G59: =IF(E59=0,0,C59/E59) -> 203.0844004 | H59: =IF(D59+E59=0,0,(B59+C59)/(D59+E59)) -> 307.7818437 | I59: =SUM(I47:I58) -> 314216176.9 | J59: =SUM(J47:J58) -> 15587351.34 | K59: 304.47 | L59: =IF(I59=0,0,(B59-I59)/I59) -> -0.1027187022 | M59: =IF(K59=0,0,(H59-K59)/K59) -> 0.0108774058

Sheet MALERE
A2: ="MÅLESTATISTIKK FOR MALERE - 1. HALVÅR "&FORS!$A$14 -> MÅLESTATISTIKK FOR MALERE - 1. HALVÅR 2020
B4: Målesum i kroner | D4: Timer | F4: ="Fortjeneste 1. halvår "&FORS!$A$14-0 -> Fortjeneste 1. halvår 2020 | I4: =" 1. halvår "&FORS!$A$14-1 -> 1. halvår 2019 | L4: Endringer i %
B5: Innmålt m/ | C5: Innmålt m/ | D5: Innmålt m/ | E5: Innmålt m/ | F5: Innmålt m/ | G5: Innmålt m/ | H5: Gjennom- | I5: Innmålt m/ | J5: Innmålt m/ | K5: Gjen.snitt | L5: Innmålt m/ | M5: Gjen.snitt
B6: overskudd | C6: underskudd | D6: overskudd | E6: underskudd | F6: overskudd | G6: underskudd | H6: snitt | I6: overskudd | J6: underskudd | K6: fortjeneste | L6: overskudd | M6: fortjeneste
A7: Agder | F7: =IF(D7=0,0,B7/D7) -> 0 | G7: =IF(E7=0,0,C7/E7) -> 0 | H7: =IF(D7+E7=0,0,(B7+C7)/(D7+E7)) -> 0 | K7: 0 | L7: =IF(I7=0,0,(B7-I7)/I7) -> 0 | M7: =IF(K7=0,0,(H7-K7)/K7) -> 0
A8: Bergen | B8: 2428780.93 | D8: 9428.18 | F8: =IF(D8=0,0,B8/D8) -> 257.6086721 | G8: =IF(E8=0,0,C8/E8) -> 0 | H8: =IF(D8+E8=0,0,(B8+C8)/(D8+E8)) -> 257.6086721 | I8: 2027204.2 | K8: 245.32 | L8: =IF(I8=0,0,(B8-I8)/I8) -> 0.1980938723 | M8: =IF(K8=0,0,(H8-K8)/K8) -> 0.05009241842
A9: Drammen - Bærum | F9: 0 | G9: 0 | H9: =IF(D9+E9=0,0,(B9+C9)/(D9+E9)) -> 0 | L9: =IF(I9=0,0,(B9-I9)/I9) -> 0 | M9: 0
A10: Haugesund | F10: 0 | G10: 0 | H10: 0 | L10: 0 | M10: 0
A11: Hamar og Omegn | B11: 898136 | D11: 2279.5 | F11: =IF(D11=0,0,B11/D11) -> 394.005703 | G11: 0 | H11: =IF(D11+E11=0,0,(B11+C11)/(D11+E11)) -> 394.005703 | I11: 2830789.65 | K11: 333.07 | L11: -0.6827259842 | M11: 0.1829516408
A12: Sandnes | F12: 0 | G12: 0 | H12: 0 | L12: 0 | M12: 0
A13: Stavanger | F13: 0 | G13: 0 | H13: 0 | L13: 0 | M13: 0
A14: Telemark | B14: 288290 | C14: 265600 | D14: 656.5 | E14: 1270 | F14: 439.1317593 | G14: 209.1338583 | H14: 287.5110304 | I14: 86656 | K14: 381.74 | L14: 2.326832533 | M14: -0.2468407021
A15: Trondheim | B15: 12613846 | C15: 5938887 | D15: 44331.15 | E15: 31207.5 | F15: 284.536855 | G15: =IF(E15=0,0,C15/E15) -> 190.3031963 | H15: 245.6058322 | I15: 19582839 | J15: 3503061 | K15: 246.2 | L15: -0.3558724555 | M15: -0.002413353996
A16: Vestfold | B16: 98674.06 | D16: 247 | F16: 399.4901215 | G16: 0 | H16: 399.4901215 | I16: 423315.98 | K16: 385.71 | L16: -0.7669021141 | M16: 0.03572663778
A17: Østfold | F17: 0 | G17: 0 | H17: 0 | L17: 0 | M17: 0
A18: Oslo | B18: 8923154 | C18: 353931 | D18: 29210 | E18: 1688 | F18: 305.4828483 | G18: 209.674763 | H18: 300.2487216 | I18: 10629649.92 | J18: 390514.49 | K18: 287.88 | L18: -0.1605411216 | M18: 0.04296485202
A19: Landet i alt | B19: =SUM(B7:B18) -> 25250880.99 | C19: =SUM(C7:C18) -> 6558418 | D19: =SUM(D7:D18) -> 86152.33 | E19: =SUM(E7:E18) -> 34165.5 | F19: =IF(D19=0,0,B19/D19) -> 293.0957409 | G19: =IF(E19=0,0,C19/E19) -> 191.9602523 | H19: =IF(D19+E19=0,0,(B19+C19)/(D19+E19)) -> 264.3772664 | I19: =SUM(I7:I18) -> 35580454.75 | J19: =SUM(J7:J18) -> 3893575.49 | K19: 262.92 | L19: =IF(I19=0,0,(B19-I19)/I19) -> -0.2903159567 | M19: =IF(K19=0,0,(H19-K19)/K19) -> 0.005542622706
A22: ="MÅLESTATISTIKK FOR MALERE - 2. HALVÅR "&FORS!$A$14 -> MÅLESTATISTIKK FOR MALERE - 2. HALVÅR 2020
B24: Målesum i kroner | D24: Timer | F24: ="Fortjeneste 2. halvår "&FORS!$A$14-0 -> Fortjeneste 2. halvår 2020 | I24: =" 2. halvår "&FORS!$A$14-1 -> 2. halvår 2019 | L24: Endringer i %
B25: Innmålt m/ | C25: Innmålt m/ | D25: Innmålt m/ | E25: Innmålt m/ | F25: Innmålt m/ | G25: Innmålt m/ | H25: Gjennom- | I25: Innmålt m/ | J25: Innmålt m/ | K25: Gjen.snitt | L25: Innmålt m/ | M25: Gjen.snitt
B26: overskudd | C26: underskudd | D26: overskudd | E26: underskudd | F26: overskudd | G26: underskudd | H26: snitt | I26: overskudd | J26: underskudd | K26: fortjeneste | L26: overskudd | M26: fortjeneste
A27: Agder | F27: =IF(D27=0,0,B27/D27) -> 0 | G27: 0 | H27: =IF(D27+E27=0,0,(B27+C27)/(D27+E27)) -> 0 | K27: 0 | L27: =IF(I27=0,0,(B27-I27)/I27) -> 0 | M27: =IF(K27=0,0,(H27-K27)/K27) -> 0
A28: Bergen | B28: 5028908.86 | D28: 19744.5 | F28: 254.6992256 | G28: 0 | H28: =IF(D28+E28=0,0,(B28+C28)/(D28+E28)) -> 254.6992256 | I28: 2074331.88 | K28: 257.67 | L28: =IF(I28=0,0,(B28-I28)/I28) -> 1.424351141 | M28: =IF(K28=0,0,(H28-K28)/K28) -> -0.01152937631
A29: Drammen - Bærum | F29: 0 | G29: 0 | H29: =IF(D29+E29=0,0,(B29+C29)/(D29+E29)) -> 0 | L29: 0 | M29: 0
A30: Haugesund | F30: 0 | G30: 0 | H30: 0 | L30: 0 | M30: 0
A31: Hamar og Omegn | B31: 1351552 | C31: 0 | D31: 3370.36 | E31: 0 | F31: 401.0111679 | G31: 0 | H31: 401.0111679 | I31: 592277 | K31: 406.78 | L31: 1.281959286 | M31: -0.01418170031
A32: Sandnes | F32: 0 | G32: 0 | H32: 0 | L32: 0 | M32: 0
A33: Stavanger | F33: 0 | G33: 0 | H33: 0 | L33: 0 | M33: 0
A34: Telemark | B34: 69534 | D34: 162.5 | F34: 427.9015385 | G34: 0 | H34: 427.9015385 | I34: 194898 | K34: 307.9 | L34: -0.6432287658 | M34: 0.3897419242
A35: Trondheim | B35: 16569952 | C35: 7309458 | D35: 55391.8 | E35: 41266.48 | F35: 299.1408837 | G35: 177.1282164 | H35: 247.049813 | I35: 13616221 | J35: 1533812 | K35: 274.56 | L35: 0.2169273692 | M35: -0.1001973594
A36: Vestfold | B36: 328413 | D36: 834 | F36: 393.7805755 | G36: 0 | H36: 393.7805755 | I36: 558551 | K36: 348.22 | L36: -0.4120268337 | M36: 0.1308384801
A37: Østfold | C37: 0 | F37: 0 | G37: 0 | H37: 0 | L37: 0 | M37: 0
A38: Oslo | B38: 12091567 | C38: 706194 | D38: 38493 | E38: 3397 | F38: 314.1237887 | G38: 207.8875478 | H38: 305.5087372 | I38: 9934668 | K38: 277.16 | L38: 0.217108312 | M38: 0.102282931
A39: Landet i alt | B39: =SUM(B27:B38) -> 35439926.86 | C39: =SUM(C27:C38) -> 8015652 | D39: =SUM(D27:D38) -> 117996.16 | E39: =SUM(E27:E38) -> 44663.48 | F39: =IF(D39=0,0,B39/D39) -> 300.3481373 | G39: =IF(E39=0,0,C39/E39) -> 179.4676993 | H39: =IF(D39+E39=0,0,(B39+C39)/(D39+E39)) -> 267.1564923 | I39: =SUM(I27:I38) -> 26970946.88 | J39: =SUM(J27:J38) -> 1533812 | K39: 277.38 | L39: 0.3140038063 | M39: -0.03685740755
A42: ="MÅLESTATISTIKK FOR MALERE - GJENNOMSNITT HELE ÅRET "&FORS!$A$14 -> MÅLESTATISTIKK FOR MALERE - GJENNOMSNITT HELE ÅRET 2020
B44: Målesum i kroner | D44: Timer | F44: ="Fortjeneste hele "&FORS!$A$14-0 -> Fortjeneste hele 2020 | I44: =" Hele året "&FORS!$A$14-1 -> Hele året 2019 | L44: Endringer i %
B45: Innmålt m/ | C45: Innmålt m/ | D45: Innmålt m/ | E45: Innmålt m/ | F45: Innmålt m/ | G45: Innmålt m/ | H45: Gjennom- | I45: Innmålt m/ | J45: Innmålt m/ | K45: Gjen.snitt | L45: Innmålt m/ | M45: Gjen.snitt
B46: overskudd | C46: underskudd | D46: overskudd | E46: underskudd | F46: overskudd | G46: underskudd | H46: snitt | I46: overskudd | J46: underskudd | K46: fortjeneste | L46: overskudd | M46: fortjeneste
A47: Agder | B47: =SUMIFS(B$7:B$19,$A$7:$A$19,$A47)+SUMIFS(B$27:B$39,$A$27:$A$39,$A47) -> 0 | C47: =SUMIFS(C$7:C$19,$A$7:$A$19,$A47)+SUMIFS(C$27:C$39,$A$27:$A$39,$A47) -> 0 | D47: 0 | E47: 0 | F47: =IF(D47=0,0,B47/D47) -> 0 | G47: =IF(E47=0,0,C27/E47) -> 0 | H47: =IF(D47+E47=0,0,(B47+C47)/(D47+E47)) -> 0 | I47: =SUMIFS(I$7:I$19,$A$7:$A$19,$A47)+SUMIFS(I$27:I$39,$A$27:$A$39,$A47) -> 0 | J47: =SUMIFS(J$7:J$19,$A$7:$A$19,$A47)+SUMIFS(J$27:J$39,$A$27:$A$39,$A47) -> 0 | K47: 0 | L47: =IF(I47=0,0,(B47-I47)/I47) -> 0 | M47: =IF(K47=0,0,(H47-K47)/K47) -> 0
A48: Bergen | B48: =SUMIFS($B$7:$B$19,$A$7:$A$19,A48)+SUMIFS($B$27:$B$39,$A$27:$A$39,A48) -> 7457689.79 | C48: 0 | D48: 29172.68 | E48: 0 | F48: =IF(D48=0,0,B48/D48) -> 255.6395158 | G48: 0 | H48: =IF(D48+E48=0,0,(B48+C48)/(D48+E48)) -> 255.6395158 | I48: =SUMIFS(I$7:I$19,$A$7:$A$19,$A48)+SUMIFS(I$27:I$39,$A$27:$A$39,$A48) -> 4101536.08 | J48: 0 | K48: 251.42 | L48: =IF(I48=0,0,(B48-I48)/I48) -> 0.8182675087 | M48: =IF(K48=0,0,(H48-K48)/K48) -> 0.01678273728
A49: Drammen - Bærum | B49: 0 | C49: 0 | D49: 0 | E49: 0 | F49: 0 | G49: 0 | H49: 0 | I49: 0 | J49: 0 | L49: 0 | M49: 0
A50: Haugesund | B50: 0 | C50: 0 | D50: 0 | E50: 0 | F50: 0 | G50: 0 | H50: 0 | I50: 0 | J50: 0 | L50: 0 | M50: 0
A51: Hamar og Omegn | B51: 2249688 | C51: 0 | D51: 5649.86 | E51: 0 | F51: 398.1847338 | G51: 0 | H51: 398.1847338 | I51: 3423066.65 | J51: 0 | K51: 343.85 | L51: -0.3427858029 | M51: 0.158018711
A52: Sandnes | B52: 0 | C52: 0 | D52: 0 | E52: 0 | F52: =IF(D52=0,0,B52/D52) -> 0 | G52: 0 | H52: =IF(D52+E52=0,0,(B52+C52)/(D52+E52)) -> 0 | I52: 0 | J52: 0 | L52: 0 | M52: 0
A53: Stavanger | B53: 0 | C53: 0 | D53: 0 | E53: 0 | F53: 0 | G53: 0 | H53: 0 | I53: 0 | J53: 0 | L53: 0 | M53: 0
A54: Telemark | B54: 357824 | C54: 265600 | D54: 819 | E54: 1270 | F54: 436.9035409 | G54: 209.1338583 | H54: 298.4317855 | I54: 281554 | J54: 0 | K54: 327.39 | L54: 0.2708894209 | M54: -0.08845173786
A55: Trondheim | B55: 29183798 | C55: 13248345 | D55: 99722.95 | E55: 72473.98 | F55: 292.6487634 | G55: 182.8013999 | H55: 246.4163734 | I55: 33199060 | J55: 5036873 | K55: 266.89 | L55: -0.1209450509 | M55: -0.0767118536
A56: Vestfold | B56: 427087.06 | C56: 0 | D56: 1081 | E56: 0 | F56: =IF(D56=0,0,B56/D56) -> 395.0851619 | G56: 0 | H56: 395.0851619 | I56: 981866.98 | J56: 0 | K56: 363.45 | L56: -0.5650255394 | M56: 0.08704130386
A57: Østfold | B57: 0 | C57: 0 | D57: 0 | E57: =SUMIFS(E$7:E$19,$A$7:$A$19,$A57)+SUMIFS(E$27:E$39,$A$27:$A$39,$A57) -> 0 | F57: =IF(D57=0,0,B57/D57) -> 0 | G57: 0 | H57: 0 | I57: 0 | J57: 0 | L57: 0 | M57: 0
A58: Oslo | B58: 21014721 | C58: 1060125 | D58: 67703 | E58: 5085 | F58: 310.3957136 | G58: 208.480826 | H58: 303.2758971 | I58: 20564317.92 | J58: 390514.49 | K58: 287.32 | L58: 0.0219021648 | M58: 0.05553354144
A59: Landet i alt | B59: =SUM(B47:B58) -> 60690807.85 | C59: =SUM(C47:C58) -> 14574070 | D59: =SUM(D47:D58) -> 204148.49 | E59: =SUM(E47:E58) -> 78828.98 | F59: =IF(D59=0,0,B59/D59) -> 297.2875668 | G59: =IF(E59=0,0,C59/E59) -> 184.8821334 | H59: =IF(D59+E59=0,0,(B59+C59)/(D59+E59)) -> 265.9748066 | I59: =SUM(I47:I58) -> 62551401.63 | J59: =SUM(J47:J58) -> 5427387.49 | K59: 277.02 | L59: =IF(I59=0,0,(B59-I59)/I59) -> -0.02974503739 | M59: =IF(K59=0,0,(H59-K59)/K59) -> -0.03987146567

Sheet RØRLEGGERE
A2: ="MÅLESTATISTIKK FOR RØRLEGGERE - 1. HALVÅR "&FORS!$A$14 -> MÅLESTATISTIKK FOR RØRLEGGERE - 1. HALVÅR 2020
B4: Målesum i kroner | D4: Timer | F4: ="Fortjeneste 1. halvår "&FORS!$A$14-0 -> Fortjeneste 1. halvår 2020 | I4: =" 1. halvår "&FORS!$A$14-1 -> 1. halvår 2019 | L4: Endringer i %
B5: Innmålt m/ | C5: Innmålt m/ | D5: Innmålt m/ | E5: Innmålt m/ | F5: Innmålt m/ | G5: Innmålt m/ | H5: Gjennom- | I5: Innmålt m/ | J5: Innmålt m/ | K5: Gjen.snitt | L5: Innmålt m/ | M5: Gjen.snitt
B6: overskudd | C6: underskudd | D6: overskudd | E6: underskudd | F6: overskudd | G6: underskudd | H6: snitt | I6: overskudd | J6: underskudd | K6: fortjeneste | L6: overskudd | M6: fortjeneste
A7: Agder | F7: =IF(D7=0,0,B7/D7) -> 0 | G7: =IF(E7=0,0,C7/E7) -> 0 | H7: =IF(D7+E7=0,0,(B7+C7)/(D7+E7)) -> 0 | L7: =IF(I7=0,0,(B7-I7)/I7) -> 0 | M7: =IF(K7=0,0,(H7-K7)/K7) -> 0
A8: Bergen | F8: =IF(D8=0,0,B8/D8) -> 0 | G8: 0 | H8: =IF(D8+E8=0,0,(B8+C8)/(D8+E8)) -> 0 | L8: =IF(I8=0,0,(B8-I8)/I8) -> 0 | M8: =IF(K8=0,0,(H8-K8)/K8) -> 0
A9: Nordland | F9: 0 | G9: 0 | H9: 0 | L9: 0 | M9: 0
A10: Haugesund | F10: 0 | G10: 0 | H10: 0 | L10: 0 | M10: 0
A11: Hamar og Omegn | F11: 0 | G11: 0 | H11: 0 | L11: 0 | M11: 0
A12: Sandnes | F12: 0 | G12: 0 | H12: 0 | L12: 0 | M12: 0
A13: Stavanger | F13: 0 | G13: 0 | H13: 0 | L13: 0 | M13: 0
A14: Telemark | F14: 0 | G14: 0 | H14: 0 | L14: 0 | M14: 0
A15: Trondheim | B15: 7937562.45 | C15: 3667299.97 | D15: 23970.89 | E15: 16278.24 | F15: 331.133406 | G15: 225.2884814 | H15: 288.3257954 | I15: 21919850.74 | J15: 2040193.86 | K15: 302.03 | L15: -0.637882459 | M15: -0.04537365373
A16: Vestfold | F16: 0 | G16: 0 | H16: 0 | L16: 0 | M16: 0
A17: Østfold | F17: 0 | G17: 0 | H17: 0 | K17: 0 | L17: 0 | M17: 0
A18: Oslo | B18: 30940663 | C18: 1134425 | D18: 96619.5 | E18: 5127 | F18: 320.2320753 | G18: 221.2648722 | H18: 315.2451239 | I18: 7707737 | J18: 7705847 | K18: 259.87 | L18: 3.014234399 | M18: 0.2130877897
A19: Landet i alt | B19: =SUM(B7:B18) -> 38878225.45 | C19: =SUM(C7:C18) -> 4801724.97 | D19: =SUM(D7:D18) -> 120590.39 | E19: =SUM(E7:E18) -> 21405.24 | F19: =IF(D19=0,0,B19/D19) -> 322.3990357 | G19: =IF(E19=0,0,C19/E19) -> 224.3247434 | H19: =IF(D19+E19=0,0,(B19+C19)/(D19+E19)) -> 307.6147514 | I19: =SUM(I7:I18) -> 29627587.74 | J19: =SUM(J7:J18) -> 9746040.86 | K19: 283.99 | L19: =IF(I19=0,0,(B19-I19)/I19) -> 0.3122305397 | M19: =IF(K19=0,0,(H19-K19)/K19) -> 0.08318867349
A22: ="MÅLESTATISTIKK FOR RØRLEGGERE - 2. HALVÅR "&FORS!$A$14 -> MÅLESTATISTIKK FOR RØRLEGGERE - 2. HALVÅR 2020
B24: Målesum i kroner | D24: Timer | F24: ="Fortjeneste 2. halvår "&FORS!$A$14-0 -> Fortjeneste 2. halvår 2020 | I24: =" 2. halvår "&FORS!$A$14-1 -> 2. halvår 2019 | L24: Endringer i %
B25: Innmålt m/ | C25: Innmålt m/ | D25: Innmålt m/ | E25: Innmålt m/ | F25: Innmålt m/ | G25: Innmålt m/ | H25: Gjennom- | I25: Innmålt m/ | J25: Innmålt m/ | K25: Gjen.snitt | L25: Innmålt m/ | M25: Gjen.snitt
B26: overskudd | C26: underskudd | D26: overskudd | E26: underskudd | F26: overskudd | G26: underskudd | H26: snitt | I26: overskudd | J26: underskudd | K26: fortjeneste | L26: overskudd | M26: fortjeneste
A27: Agder | F27: =IF(D27=0,0,B27/D27) -> 0 | G27: 0 | H27: =IF(D27+E27=0,0,(B27+C27)/(D27+E27)) -> 0 | L27: =IF(I27=0,0,(B27-I27)/I27) -> 0 | M27: =IF(K27=0,0,(H27-K27)/K27) -> 0
A28: Bergen | F28: 0 | G28: 0 | H28: =IF(D28+E28=0,0,(B28+C28)/(D28+E28)) -> 0 | L28: =IF(I28=0,0,(B28-I28)/I28) -> 0 | M28: =IF(K28=0,0,(H28-K28)/K28) -> 0
A29: Nordland | C29: 424816.48 | D29: 0 | E29: 2105.5 | F29: 0 | G29: 201.7651294 | H29: 201.7651294 | L29: 0 | M29: 0
A30: Haugesund | F30: 0 | G30: 0 | H30: 0 | K30: 0 | L30: 0 | M30: 0
A31: Hamar og Omegn | F31: 0 | G31: 0 | H31: 0 | K31: 0 | L31: 0 | M31: 0
A32: Sandnes | F32: 0 | G32: 0 | H32: 0 | L32: 0 | M32: 0
A33: Stavanger | F33: 0 | G33: 0 | H33: 0 | K33: 0 | L33: 0 | M33: 0
A34: Telemark | F34: 0 | G34: 0 | H34: 0 | K34: 0 | L34: 0 | M34: 0
A35: Trondheim | B35: 4383440.44 | C35: 6394354.97 | D35: 12924.03 | E35: 28921.9 | F35: 339.1697822 | G35: 221.0904183 | H35: 257.5589887 | I35: 15340772.1 | J35: 1886858.23 | K35: 271.15 | L35: -0.7142620716 | M35: -0.0501235897
A36: Vestfold | F36: 0 | G36: 0 | H36: 0 | L36: 0 | M36: 0
A37: Østfold | C37: 0 | F37: 0 | G37: 0 | H37: 0 | K37: 0 | L37: 0 | M37: 0
A38: Oslo | B38: 28628301 | C38: 993875 | D38: 86070 | E38: 4291 | F38: 332.6164866 | G38: 231.6185038 | H38: 327.820365 | I38: 31421189 | K38: 302.19 | L38: -0.08888549698 | M38: 0.08481539753
A39: Landet i alt | B39: =SUM(B27:B38) -> 33011741.44 | C39: =SUM(C27:C38) -> 7813046.45 | D39: =SUM(D27:D38) -> 98994.03 | E39: =SUM(E27:E38) -> 35318.4 | F39: =IF(D39=0,0,B39/D39) -> 333.4720431 | G39: =IF(E39=0,0,C39/E39) -> 221.2174518 | H39: =IF(D39+E39=0,0,(B39+C39)/(D39+E39)) -> 303.9539072 | I39: =SUM(I27:I38) -> 46761961.1 | J39: =SUM(J27:J38) -> 1886858.23 | K39: 290.42 | L39: -0.294047113 | M39: 0.04660115434
A42: ="MÅLESTATISTIKK FOR RØRLEGGERE - GJENNOMSNITT HELE ÅRET "&FORS!$A$14 -> MÅLESTATISTIKK FOR RØRLEGGERE - GJENNOMSNITT HELE ÅRET 2020
B44: Målesum i kroner | D44: Timer | F44: ="Fortjeneste hele "&FORS!$A$14-0 -> Fortjeneste hele 2020 | I44: =" Hele året "&FORS!$A$14-1 -> Hele året 2019 | L44: Endringer i %
B45: Innmålt m/ | C45: Innmålt m/ | D45: Innmålt m/ | E45: Innmålt m/ | F45: Innmålt m/ | G45: Innmålt m/ | H45: Gjennom- | I45: Innmålt m/ | J45: Innmålt m/ | K45: Gjen.snitt | L45: Innmålt m/ | M45: Gjen.snitt
B46: overskudd | C46: underskudd | D46: overskudd | E46: underskudd | F46: overskudd | G46: underskudd | H46: snitt | I46: overskudd | J46: underskudd | K46: fortjeneste | L46: overskudd | M46: fortjeneste
A47: Agder | B47: =SUMIFS(B$7:B$19,$A$7:$A$19,$A47)+SUMIFS(B$27:B$39,$A$27:$A$39,$A47) -> 0 | C47: =SUMIFS(C$7:C$19,$A$7:$A$19,$A47)+SUMIFS(C$27:C$39,$A$27:$A$39,$A47) -> 0 | D47: 0 | E47: 0 | F47: =IF(D47=0,0,B47/D47) -> 0 | G47: =IF(E47=0,0,C27/E47) -> 0 | H47: =IF(D47+E47=0,0,(B47+C47)/(D47+E47)) -> 0 | I47: =SUMIFS(I$7:I$19,$A$7:$A$19,$A47)+SUMIFS(I$27:I$39,$A$27:$A$39,$A47) -> 0 | J47: =SUMIFS(J$7:J$19,$A$7:$A$19,$A47)+SUMIFS(J$27:J$39,$A$27:$A$39,$A47) -> 0 | L47: =IF(I47=0,0,(B47-I47)/I47) -> 0 | M47: =IF(K47=0,0,(H47-K47)/K47) -> 0
A48: Bergen | B48: =SUMIFS($B$7:$B$19,$A$7:$A$19,A48)+SUMIFS($B$27:$B$39,$A$27:$A$39,A48) -> 0 | C48: 0 | D48: 0 | E48: 0 | F48: =IF(D48=0,0,B48/D48) -> 0 | G48: 0 | H48: =IF(D48+E48=0,0,(B48+C48)/(D48+E48)) -> 0 | I48: =SUMIFS(I$7:I$19,$A$7:$A$19,$A48)+SUMIFS(I$27:I$39,$A$27:$A$39,$A48) -> 0 | J48: 0 | L48: =IF(I48=0,0,(B48-I48)/I48) -> 0 | M48: =IF(K48=0,0,(H48-K48)/K48) -> 0
A49: Nordland | B49: 0 | C49: 424816.48 | D49: 0 | E49: 2105.5 | F49: 0 | G49: 201.7651294 | H49: 201.7651294 | I49: 0 | J49: 0 | L49: 0 | M49: 0
A50: Haugesund | B50: 0 | C50: 0 | D50: 0 | E50: 0 | F50: 0 | G50: 0 | H50: 0 | I50: 0 | J50: 0 | K50: 0 | L50: 0 | M50: 0
A51: Hamar og Omegn | B51: 0 | C51: 0 | D51: 0 | E51: 0 | F51: 0 | G51: 0 | H51: 0 | I51: 0 | J51: 0 | K51: 0 | L51: 0 | M51: 0
A52: Sandnes | B52: 0 | C52: 0 | D52: 0 | E52: 0 | F52: =IF(D52=0,0,B52/D52) -> 0 | G52: 0 | H52: =IF(D52+E52=0,0,(B52+C52)/(D52+E52)) -> 0 | I52: 0 | J52: 0 | L52: 0 | M52: 0
A53: Stavanger | B53: 0 | C53: 0 | D53: 0 | E53: 0 | F53: 0 | G53: 0 | H53: 0 | I53: 0 | J53: 0 | K53: 0 | L53: 0 | M53: 0
A54: Telemark | B54: 0 | C54: 0 | D54: 0 | E54: 0 | F54: 0 | G54: 0 | H54: 0 | I54: 0 | J54: 0 | K54: 0 | L54: 0 | M54: 0
A55: Trondheim | B55: 12321002.89 | C55: 10061654.94 | D55: 36894.92 | E55: 45200.14 | F55: 333.9484918 | G55: 222.6022959 | H55: 272.6431752 | I55: 37260622.84 | J55: 3927052.09 | K55: 288.3 | L55: -0.6693291214 | M55: -0.05430740464
A56: Vestfold | B56: 0 | C56: 0 | D56: 0 | E56: 0 | F56: =IF(D56=0,0,B56/D56) -> 0 | G56: 0 | H56: 0 | I56: 0 | J56: 0 | L56: 0 | M56: 0
A57: Østfold | B57: 0 | C57: 0 | D57: 0 | E57: =SUMIFS(E$7:E$19,$A$7:$A$19,$A57)+SUMIFS(E$27:E$39,$A$27:$A$39,$A57) -> 0 | F57: =IF(D57=0,0,B57/D57) -> 0 | G57: 0 | H57: 0 | I57: 0 | J57: 0 | K57: 0 | L57: 0 | M57: 0
A58: Oslo | B58: 59568964 | C58: 2128300 | D58: 182689.5 | E58: 9418 | F58: 326.0667088 | G58: 225.9821618 | H58: 321.1601005 | I58: 39128926 | J58: 7705847 | K58: 286.82 | L58: 0.5223766684 | M58: 0.1197270081
A59: Landet i alt | B59: =SUM(B47:B58) -> 71889966.89 | C59: =SUM(C47:C58) -> 12614771.42 | D59: =SUM(D47:D58) -> 219584.42 | E59: =SUM(E47:E58) -> 56723.64 | F59: =IF(D59=0,0,B59/D59) -> 327.3910184 | G59: =IF(E59=0,0,C59/E59) -> 222.3900198 | H59: =IF(D59+E59=0,0,(B59+C59)/(D59+E59)) -> 305.8352272 | I59: =SUM(I47:I58) -> 76389548.84 | J59: =SUM(J47:J58) -> 11632899.09 | K59: 287.51 | L59: =IF(I59=0,0,(B59-I59)/I59) -> -0.05890310937 | M59: =IF(K59=0,0,(H59-K59)/K59) -> 0.06373770377

Sheet TAKTEKKERE
A2: ="MÅLESTATISTIKK FOR TAKTEKKERE - 1. HALVÅR "&FORS!$A$14 -> MÅLESTATISTIKK FOR TAKTEKKERE - 1. HALVÅR 2020
B4: Målesum i kroner | D4: Timer | F4: ="Fortjeneste 1. halvår "&FORS!$A$14-0 -> Fortjeneste 1. halvår 2020 | I4: =" 1. halvår "&FORS!$A$14-1 -> 1. halvår 2019 | L4: Endringer i %
B5: Innmålt m/ | C5: Innmålt m/ | D5: Innmålt m/ | E5: Innmålt m/ | F5: Innmålt m/ | G5: Innmålt m/ | H5: Gjennom- | I5: Innmålt m/ | J5: Innmålt m/ | K5: Gjen.snitt | L5: Innmålt m/ | M5: Gjen.snitt
B6: overskudd | C6: underskudd | D6: overskudd | E6: underskudd | F6: overskudd | G6: underskudd | H6: snitt | I6: overskudd | J6: underskudd | K6: fortjeneste | L6: overskudd | M6: fortjeneste
A7: Agder | B7: 0 | D7: 0 | F7: =IF(D7=0,0,B7/D7) -> 0 | G7: =IF(E7=0,0,C7/E7) -> 0 | H7: =IF(D7+E7=0,0,(B7+C7)/(D7+E7)) -> 0 | I7: 31052 | K7: 295.73 | L7: =IF(I7=0,0,(B7-I7)/I7) -> -1 | M7: =IF(K7=0,0,(H7-K7)/K7) -> -1
A8: Bergen | B8: 262003.71 | D8: 953.2 | F8: =IF(D8=0,0,B8/D8) -> 274.8675094 | G8: 0 | H8: =IF(D8+E8=0,0,(B8+C8)/(D8+E8)) -> 274.8675094 | I8: 598395.35 | K8: 227.2 | L8: =IF(I8=0,0,(B8-I8)/I8) -> -0.5621561732 | M8: =IF(K8=0,0,(H8-K8)/K8) -> 0.2098041789
A9: Drammen - Bærum | F9: 0 | G9: 0 | H9: 0 | L9: =IF(I9=0,0,(B9-I9)/I9) -> 0 | M9: 0
A10: Haugesund | F10: 0 | G10: 0 | H10: 0 | L10: 0 | M10: 0
A11: Hamar og Omegn | B11: 1210598 | C11: 136955 | D11: 3135 | E11: 658.5 | F11: 386.1556619 | G11: 207.9802582 | H11: 355.2268354 | I11: 642219.82 | K11: 353.06 | L11: 0.8850212377 | M11: 0.006137300675
A12: Sandnes | F12: 0 | G12: 0 | H12: 0 | L12: 0 | M12: 0
A13: Stavanger | B13: 4632594.24 | D13: 16048 | F13: 288.6711266 | G13: 0 | H13: 288.6711266 | I13: 4556716.09 | J13: 582107 | K13: 314 | L13: 0.01665193716 | M13: -0.08066520185
A14: Telemark | B14: 1191176 | D14: 2979 | F14: 399.8576704 | G14: 0 | H14: 399.8576704 | I14: 678205 | K14: 361.71 | L14: 0.7563657006 | M14: 0.1054647932
A15: Trondheim | B15: 3268824.26 | C15: 495868.81 | D15: 10503.1 | E15: 4634.9 | F15: 311.2247108 | G15: 106.9858702 | H15: 248.6915755 | I15: 3714665.51 | J15: 432615.08 | K15: 301.36 | L15: -0.1200219101 | M15: -0.1747691283
A16: Vestfold | F16: 0 | G16: 0 | H16: 0 | L16: 0 | M16: 0
A17: Østfold | F17: 0 | G17: 0 | H17: 0 | L17: 0 | M17: 0
A18: Oslo | B18: 3369047.7 | C18: 317516.03 | D18: 9407.9 | E18: 1739.7 | F18: 358.1083664 | G18: 182.5119446 | H18: 330.7047015 | I18: 3147493.76 | J18: 384909.92 | K18: 325.69 | L18: 0.07039058911 | M18: 0.01539716129
A19: Landet i alt | B19: =SUM(B7:B18) -> 13934243.91 | C19: =SUM(C7:C18) -> 950339.84 | D19: =SUM(D7:D18) -> 43026.2 | E19: =SUM(E7:E18) -> 7033.1 | F19: =IF(D19=0,0,B19/D19) -> 323.8548584 | G19: =IF(E19=0,0,C19/E19) -> 135.1238913 | H19: =IF(D19+E19=0,0,(B19+C19)/(D19+E19)) -> 297.3390309 | I19: =SUM(I7:I18) -> 13368747.53 | J19: =SUM(J7:J18) -> 1399632 | K19: 311.53 | L19: =IF(I19=0,0,(B19-I19)/I19) -> 0.04229987729 | M19: =IF(K19=0,0,(H19-K19)/K19) -> -0.04555249604
A22: ="MÅLESTATISTIKK FOR TAKTEKKERE - 2. HALVÅR "&FORS!$A$14 -> MÅLESTATISTIKK FOR TAKTEKKERE - 2. HALVÅR 2020
B24: Målesum i kroner | D24: Timer | F24: ="Fortjeneste 2. halvår "&FORS!$A$14-0 -> Fortjeneste 2. halvår 2020 | I24: =" 2. halvår "&FORS!$A$14-1 -> 2. halvår 2019 | L24: Endringer i %
B25: Innmålt m/ | C25: Innmålt m/ | D25: Innmålt m/ | E25: Innmålt m/ | F25: Innmålt m/ | G25: Innmålt m/ | H25: Gjennom- | I25: Innmålt m/ | J25: Innmålt m/ | K25: Gjen.snitt | L25: Innmålt m/ | M25: Gjen.snitt
B26: overskudd | C26: underskudd | D26: overskudd | E26: underskudd | F26: overskudd | G26: underskudd | H26: snitt | I26: overskudd | J26: underskudd | K26: fortjeneste | L26: overskudd | M26: fortjeneste
A27: Agder | B27: 137045 | D27: 533 | F27: =IF(D27=0,0,B27/D27) -> 257.120075 | G27: 0 | H27: =IF(D27+E27=0,0,(B27+C27)/(D27+E27)) -> 257.120075 | L27: =IF(I27=0,0,(B27-I27)/I27) -> 0 | M27: =IF(K27=0,0,(H27-K27)/K27) -> 0
A28: Bergen | B28: 326745.87 | D28: 1249.2 | F28: 261.564097 | G28: 0 | H28: =IF(D28+E28=0,0,(B28+C28)/(D28+E28)) -> 261.564097 | I28: 345436.27 | K28: 285.7 | L28: =IF(I28=0,0,(B28-I28)/I28) -> -0.05410665186 | M28: =IF(K28=0,0,(H28-K28)/K28) -> -0.08447988442
A29: Drammen - Bærum | F29: 0 | G29: 0 | H29: 0 | L29: 0 | M29: 0
A30: Haugesund | F30: 0 | G30: 0 | H30: 0 | L30: 0 | M30: 0
A31: Hamar og Omegn | B31: 744563 | C31: 50985 | D31: 1621 | E31: 242.1 | F31: 459.3232572 | G31: 210.5947955 | H31: 427.002308 | I31: 910470 | J31: 16167 | K31: 408.88 | L31: -0.1822212703 | M31: 0.04432182543
A32: Sandnes | F32: 0 | G32: 0 | H32: 0 | L32: 0 | M32: 0
A33: Stavanger | B33: 4022427.07 | D33: 12931 | F33: 311.0685229 | G33: 0 | H33: 311.0685229 | I33: 3865294 | J33: 579766 | K33: 287.95 | L33: 0.0406522945 | M33: 0.0802865877
A34: Telemark | B34: 420459 | D34: 1127 | F34: 373.0780834 | G34: 0 | H34: 373.0780834 | I34: 933348 | K34: 358.29 | L34: -0.5495152933 | M34: 0.04127406126
A35: Trondheim | B35: 3258692.57 | C35: 222188 | D35: 11231.55 | E35: 1122.6 | F35: 290.1373871 | G35: 197.9226795 | H35: 281.7579979 | I35: 2983168.5 | J35: 350459.7 | K35: 349.59 | L35: 0.09235953987 | M35: -0.194033016
A36: Vestfold | F36: 0 | G36: 0 | H36: 0 | L36: 0 | M36: 0
A37: Østfold | C37: 0 | F37: 0 | G37: 0 | H37: 0 | L37: 0 | M37: 0
A38: Oslo | B38: 2821959.11 | C38: 207750.72 | D38: 6926.7 | E38: 1063.2 | F38: 407.4031083 | G38: 195.4013544 | H38: 379.1924592 | I38: 3753132.77 | J38: 315163.38 | K38: 348.61 | L38: -0.2481057072 | M38: 0.08772685588
A39: Landet i alt | B39: =SUM(B27:B38) -> 11731891.62 | C39: =SUM(C27:C38) -> 480923.72 | D39: =SUM(D27:D38) -> 35619.45 | E39: =SUM(E27:E38) -> 2427.9 | F39: =IF(D39=0,0,B39/D39) -> 329.367568 | G39: =IF(E39=0,0,C39/E39) -> 198.082178 | H39: =IF(D39+E39=0,0,(B39+C39)/(D39+E39)) -> 320.9899071 | I39: =SUM(I27:I38) -> 12790849.54 | J39: =SUM(J27:J38) -> 1261556.08 | K39: 328.92 | L39: -0.08279027258 | M39: -0.02410948848
A42: ="MÅLESTATISTIKK FOR TAKTEKKERE - GJENNOMSNITT HELE ÅRET "&FORS!$A$14 -> MÅLESTATISTIKK FOR TAKTEKKERE - GJENNOMSNITT HELE ÅRET 2020
B44: Målesum i kroner | D44: Timer | F44: ="Fortjeneste hele "&FORS!$A$14-0 -> Fortjeneste hele 2020 | I44: =" Hele året "&FORS!$A$14-1 -> Hele året 2019 | L44: Endringer i %
B45: Innmålt m/ | C45: Innmålt m/ | D45: Innmålt m/ | E45: Innmålt m/ | F45: Innmålt m/ | G45: Innmålt m/ | H45: Gjennom- | I45: Innmålt m/ | J45: Innmålt m/ | K45: Gjen.snitt | L45: Innmålt m/ | M45: Gjen.snitt
B46: overskudd | C46: underskudd | D46: overskudd | E46: underskudd | F46: overskudd | G46: underskudd | H46: snitt | I46: overskudd | J46: underskudd | K46: fortjeneste | L46: overskudd | M46: fortjeneste
A47: Agder | B47: =SUMIFS(B$7:B$19,$A$7:$A$19,$A47)+SUMIFS(B$27:B$39,$A$27:$A$39,$A47) -> 137045 | C47: =SUMIFS(C$7:C$19,$A$7:$A$19,$A47)+SUMIFS(C$27:C$39,$A$27:$A$39,$A47) -> 0 | D47: 533 | E47: 0 | F47: =IF(D47=0,0,B47/D47) -> 257.120075 | G47: =IF(E47=0,0,C27/E47) -> 0 | H47: =IF(D47+E47=0,0,(B47+C47)/(D47+E47)) -> 257.120075 | I47: =SUMIFS(I$7:I$19,$A$7:$A$19,$A47)+SUMIFS(I$27:I$39,$A$27:$A$39,$A47) -> 31052 | J47: =SUMIFS(J$7:J$19,$A$7:$A$19,$A47)+SUMIFS(J$27:J$39,$A$27:$A$39,$A47) -> 0 | K47: 295.73 | L47: =IF(I47=0,0,(B47-I47)/I47) -> 3.413403323 | M47: =IF(K47=0,0,(H47-K47)/K47) -> -0.1305580257
A48: Bergen | B48: =SUMIFS($B$7:$B$19,$A$7:$A$19,A48)+SUMIFS($B$27:$B$39,$A$27:$A$39,A48) -> 588749.58 | C48: 0 | D48: 2202.4 | E48: 0 | F48: =IF(D48=0,0,B48/D48) -> 267.3218216 | G48: 0 | H48: =IF(D48+E48=0,0,(B48+C48)/(D48+E48)) -> 267.3218216 | I48: =SUMIFS(I$7:I$19,$A$7:$A$19,$A48)+SUMIFS(I$27:I$39,$A$27:$A$39,$A48) -> 943831.62 | J48: 0 | K48: 245.6 | L48: =IF(I48=0,0,(B48-I48)/I48) -> -0.3762133335 | M48: =IF(K48=0,0,(H48-K48)/K48) -> 0.08844389922
A49: Drammen - Bærum | B49: 0 | C49: 0 | D49: 0 | E49: 0 | F49: 0 | G49: 0 | H49: 0 | I49: 0 | J49: 0 | L49: 0 | M49: 0
A50: Haugesund | B50: 0 | C50: 0 | D50: 0 | E50: 0 | F50: 0 | G50: 0 | H50: 0 | I50: 0 | J50: 0 | L50: 0 | M50: 0
A51: Hamar og Omegn | B51: 1955161 | C51: 187940 | D51: 4756 | E51: 900.6 | F51: 411.093566 | G51: 208.6831002 | H51: 378.8673408 | I51: 1552689.82 | J51: 16167 | K51: 384.02 | L51: 0.2592090029 | M51: -0.01341768448
A52: Sandnes | B52: 0 | C52: 0 | D52: 0 | E52: 0 | F52: =IF(D52=0,0,B52/D52) -> 0 | G52: 0 | H52: =IF(D52+E52=0,0,(B52+C52)/(D52+E52)) -> 0 | I52: 0 | J52: 0 | L52: 0 | M52: 0
A53: Stavanger | B53: 8655021.31 | C53: 0 | D53: 28979 | E53: 0 | F53: 298.6652856 | G53: 0 | H53: 298.6652856 | I53: 8422010.09 | J53: 1161873 | K53: 301.36 | L53: 0.02766693669 | M53: -0.00894184513
A54: Telemark | B54: 1611635 | C54: 0 | D54: 4106 | E54: 0 | F54: 392.5073064 | G54: 0 | H54: 392.5073064 | I54: 1611553 | J54: 0 | K54: 359.72 | L54: 5.088259586e-05 | M54: 0.09114674297
A55: Trondheim | B55: 6527516.83 | C55: 718056.81 | D55: 21734.65 | E55: 5757.5 | F55: 300.3276717 | G55: 124.7167712 | H55: 263.5506368 | I55: 6697834.01 | J55: 783074.78 | K55: 321.1 | L55: -0.02542869527 | M55: -0.1792256717
A56: Vestfold | B56: 0 | C56: 0 | D56: 0 | E56: 0 | F56: =IF(D56=0,0,B56/D56) -> 0 | G56: 0 | H56: 0 | I56: 0 | J56: 0 | L56: 0 | M56: 0
A57: Østfold | B57: 0 | C57: 0 | D57: 0 | E57: =SUMIFS(E$7:E$19,$A$7:$A$19,$A57)+SUMIFS(E$27:E$39,$A$27:$A$39,$A57) -> 0 | F57: =IF(D57=0,0,B57/D57) -> 0 | G57: 0 | H57: 0 | I57: 0 | J57: 0 | L57: 0 | M57: 0
A58: Oslo | B58: 6191006.81 | C58: 525266.75 | D58: 16334.6 | E58: 2802.9 | F58: 379.0118405 | G58: 187.4011738 | H58: 350.9483245 | I58: 6900626.53 | J58: 700073.3 | K58: 337.57 | L58: -0.1028341002 | M58: 0.03963126016
A59: Landet i alt | B59: =SUM(B47:B58) -> 25666135.53 | C59: =SUM(C47:C58) -> 1431263.56 | D59: =SUM(D47:D58) -> 78645.65 | E59: =SUM(E47:E58) -> 9461 | F59: =IF(D59=0,0,B59/D59) -> 326.3516231 | G59: =IF(E59=0,0,C59/E59) -> 151.2803678 | H59: =IF(D59+E59=0,0,(B59+C59)/(D59+E59)) -> 307.5522573 | I59: =SUM(I47:I58) -> 26159597.07 | J59: =SUM(J47:J58) -> 2661188.08 | K59: 319.77 | L59: =IF(I59=0,0,(B59-I59)/I59) -> -0.01886349926 | M59: =IF(K59=0,0,(H59-K59)/K59) -> -0.03820790789

Sheet MURERE
A2: ="MÅLESTATISTIKK FOR MURERE - 1. HALVÅR "&FORS!$A$14 -> MÅLESTATISTIKK FOR MURERE - 1. HALVÅR 2020
B4: Målesum i kroner | D4: Timer | F4: ="Fortjeneste 1. halvår "&FORS!$A$14-0 -> Fortjeneste 1. halvår 2020 | I4: =" 1. halvår "&FORS!$A$14-1 -> 1. halvår 2019 | L4: Endringer i %
B5: Innmålt m/ | C5: Innmålt m/ | D5: Innmålt m/ | E5: Innmålt m/ | F5: Innmålt m/ | G5: Innmålt m/ | H5: Gjennom- | I5: Innmålt m/ | J5: Innmålt m/ | K5: Gjen.snitt | L5: Innmålt m/ | M5: Gjen.snitt
B6: overskudd | C6: underskudd | D6: overskudd | E6: underskudd | F6: overskudd | G6: underskudd | H6: snitt | I6: overskudd | J6: underskudd | K6: fortjeneste | L6: overskudd | M6: fortjeneste
A7: Agder | F7: =IF(D7=0,0,B7/D7) -> 0 | G7: =IF(E7=0,0,C7/E7) -> 0 | H7: =IF(D7+E7=0,0,(B7+C7)/(D7+E7)) -> 0 | K7: 0 | L7: =IF(I7=0,0,(B7-I7)/I7) -> 0 | M7: =IF(K7=0,0,(H7-K7)/K7) -> 0
A8: Bergen | F8: =IF(D8=0,0,B8/D8) -> 0 | G8: 0 | H8: =IF(D8+E8=0,0,(B8+C8)/(D8+E8)) -> 0 | L8: =IF(I8=0,0,(B8-I8)/I8) -> 0 | M8: =IF(K8=0,0,(H8-K8)/K8) -> 0
A9: Drammen - Bærum | F9: 0 | G9: 0 | H9: 0 | K9: 0 | L9: 0 | M9: 0
A10: Haugesund | F10: 0 | G10: 0 | H10: 0 | L10: 0 | M10: 0
A11: Hamar og Omegn | F11: 0 | G11: 0 | H11: 0 | K11: 0 | L11: 0 | M11: 0
A12: Sandnes | F12: 0 | G12: 0 | H12: 0 | K12: 0 | L12: 0 | M12: 0
A13: Stavanger | B13: 759319.41 | D13: 2349.5 | F13: 323.183405 | G13: 0 | H13: 323.183405 | I13: 1548129 | K13: 329.42 | L13: -0.5095244582 | M13: -0.0189320473
A14: Telemark | F14: 0 | G14: 0 | H14: 0 | L14: 0 | M14: 0
A15: Trondheim | B15: 1553467.15 | D15: 5416.83 | F15: 286.7852877 | G15: 0 | H15: 286.7852877 | I15: 2992235.33 | J15: 125699.13 | K15: 329.42 | L15: -0.4808338988 | M15: -0.1294235696
A16: Vestfold | F16: 0 | G16: 0 | H16: 0 | L16: 0 | M16: 0
A17: Østfold | B17: 1433240 | C17: 0 | D17: 4391 | F17: 326.4040082 | G17: 0 | H17: 326.4040082 | I17: 1541298 | K17: 325.48 | L17: -0.07010844107 | M17: 0.002838909299
A18: Oslo | B18: 12114296 | C18: 337216 | D18: 36601 | E18: 1457 | F18: 330.9826507 | G18: 231.4454358 | H18: 327.1720006 | I18: 10317640 | K18: 309.04 | L18: 0.1741343951 | M18: 0.05867201861
A19: Landet i alt | B19: =SUM(B7:B18) -> 15860322.56 | C19: =SUM(C7:C18) -> 337216 | D19: =SUM(D7:D18) -> 48758.33 | E19: =SUM(E7:E18) -> 1457 | F19: =IF(D19=0,0,B19/D19) -> 325.284368 | G19: =IF(E19=0,0,C19/E19) -> 231.4454358 | H19: =IF(D19+E19=0,0,(B19+C19)/(D19+E19)) -> 322.5616273 | I19: =SUM(I7:I18) -> 16399302.33 | J19: =SUM(J7:J18) -> 125699.13 | K19: 311.46 | L19: =IF(I19=0,0,(B19-I19)/I19) -> -0.03286601827 | M19: =IF(K19=0,0,(H19-K19)/K19) -> 0.03564383001
A22: ="MÅLESTATISTIKK FOR MURERE - 2. HALVÅR "&FORS!$A$14 -> MÅLESTATISTIKK FOR MURERE - 2. HALVÅR 2020
B24: Målesum i kroner | D24: Timer | F24: ="Fortjeneste 2. halvår "&FORS!$A$14-0 -> Fortjeneste 2. halvår 2020 | I24: =" 2. halvår "&FORS!$A$14-1 -> 2. halvår 2019 | L24: Endringer i %
B25: Innmålt m/ | C25: Innmålt m/ | D25: Innmålt m/ | E25: Innmålt m/ | F25: Innmålt m/ | G25: Innmålt m/ | H25: Gjennom- | I25: Innmålt m/ | J25: Innmålt m/ | K25: Gjen.snitt | L25: Innmålt m/ | M25: Gjen.snitt
B26: overskudd | C26: underskudd | D26: overskudd | E26: underskudd | F26: overskudd | G26: underskudd | H26: snitt | I26: overskudd | J26: underskudd | K26: fortjeneste | L26: overskudd | M26: fortjeneste
A27: Agder | F27: =IF(D27=0,0,B27/D27) -> 0 | G27: 0 | H27: =IF(D27+E27=0,0,(B27+C27)/(D27+E27)) -> 0 | K27: 0 | L27: =IF(I27=0,0,(B27-I27)/I27) -> 0 | M27: =IF(K27=0,0,(H27-K27)/K27) -> 0
A28: Bergen | B28: 165664.82 | D28: 452 | F28: 366.5150885 | G28: 0 | H28: =IF(D28+E28=0,0,(B28+C28)/(D28+E28)) -> 366.5150885 | L28: =IF(I28=0,0,(B28-I28)/I28) -> 0 | M28: =IF(K28=0,0,(H28-K28)/K28) -> 0
A29: Drammen - Bærum | F29: 0 | G29: 0 | H29: 0 | K29: 0 | L29: 0 | M29: 0
A30: Haugesund | F30: 0 | G30: 0 | H30: 0 | L30: 0 | M30: 0
A31: Hamar og Omegn | F31: 0 | G31: 0 | H31: 0 | K31: 0 | L31: 0 | M31: 0
A32: Sandnes | F32: 0 | G32: 0 | H32: 0 | L32: 0 | M32: 0
A33: Stavanger | B33: 109708.36 | D33: 337.5 | F33: 325.0618074 | G33: 0 | H33: 325.0618074 | I33: 222026 | K33: 272.76 | L33: -0.5058760686 | M33: 0.1917502838
A34: Telemark | F34: 0 | G34: 0 | H34: 0 | L34: 0 | M34: 0
A35: Trondheim | B35: 2635021.58 | D35: 8816.23 | F35: 298.883035 | G35: 0 | H35: 298.883035 | I35: 3803430.08 | J35: 847742.77 | K35: 272.39 | L35: -0.3071986274 | M35: 0.09726140842
A36: Vestfold | F36: 0 | G36: 0 | H36: 0 | L36: 0 | M36: 0
A37: Østfold | B37: 2201290 | C37: 0 | D37: 6025 | F37: 365.3593361 | G37: 0 | H37: 365.3593361 | I37: 2236147 | K37: 367.03 | L37: -0.01558797342 | M37: -0.004551845627
A38: Oslo | B38: 8741782 | C38: 173256 | D38: 26150 | E38: 772 | F38: 334.2937667 | G38: 224.4248705 | H38: 331.1432286 | I38: 11994209 | J38: 234550 | K38: 331.74 | L38: -0.2711664437 | M38: -0.001798913045
A39: Landet i alt | B39: =SUM(B27:B38) -> 13853466.76 | C39: =SUM(C27:C38) -> 173256 | D39: =SUM(D27:D38) -> 41780.73 | E39: =SUM(E27:E38) -> 772 | F39: =IF(D39=0,0,B39/D39) -> 331.5755077 | G39: =IF(E39=0,0,C39/E39) -> 224.4248705 | H39: =IF(D39+E39=0,0,(B39+C39)/(D39+E39)) -> 329.6315597 | I39: =SUM(I27:I38) -> 18255812.08 | J39: =SUM(J27:J38) -> 1082292.77 | K39: 317.83 | L39: -0.2411476028 | M39: 0.03713167327
A42: ="MÅLESTATISTIKK FOR MURERE - GJENNOMSNITT HELE ÅRET "&FORS!$A$14 -> MÅLESTATISTIKK FOR MURERE - GJENNOMSNITT HELE ÅRET 2020
B44: Målesum i kroner | D44: Timer | F44: ="Fortjeneste hele "&FORS!$A$14-0 -> Fortjeneste hele 2020 | I44: =" Hele året "&FORS!$A$14-1 -> Hele året 2019 | L44: Endringer i %
B45: Innmålt m/ | C45: Innmålt m/ | D45: Innmålt m/ | E45: Innmålt m/ | F45: Innmålt m/ | G45: Innmålt m/ | H45: Gjennom- | I45: Innmålt m/ | J45: Innmålt m/ | K45: Gjen.snitt | L45: Innmålt m/ | M45: Gjen.snitt
B46: overskudd | C46: underskudd | D46: overskudd | E46: underskudd | F46: overskudd | G46: underskudd | H46: snitt | I46: overskudd | J46: underskudd | K46: fortjeneste | L46: overskudd | M46: fortjeneste
A47: Agder | B47: =SUMIFS(B$7:B$19,$A$7:$A$19,$A47)+SUMIFS(B$27:B$39,$A$27:$A$39,$A47) -> 0 | C47: =SUMIFS(C$7:C$19,$A$7:$A$19,$A47)+SUMIFS(C$27:C$39,$A$27:$A$39,$A47) -> 0 | D47: 0 | E47: 0 | F47: =IF(D47=0,0,B47/D47) -> 0 | G47: =IF(E47=0,0,C27/E47) -> 0 | H47: =IF(D47+E47=0,0,(B47+C47)/(D47+E47)) -> 0 | I47: =SUMIFS(I$7:I$19,$A$7:$A$19,$A47)+SUMIFS(I$27:I$39,$A$27:$A$39,$A47) -> 0 | J47: =SUMIFS(J$7:J$19,$A$7:$A$19,$A47)+SUMIFS(J$27:J$39,$A$27:$A$39,$A47) -> 0 | K47: 0 | L47: =IF(I47=0,0,(B47-I47)/I47) -> 0 | M47: =IF(K47=0,0,(H47-K47)/K47) -> 0
A48: Bergen | B48: =SUMIFS($B$7:$B$19,$A$7:$A$19,A48)+SUMIFS($B$27:$B$39,$A$27:$A$39,A48) -> 165664.82 | C48: 0 | D48: 452 | E48: 0 | F48: =IF(D48=0,0,B48/D48) -> 366.5150885 | G48: 0 | H48: =IF(D48+E48=0,0,(B48+C48)/(D48+E48)) -> 366.5150885 | I48: =SUMIFS(I$7:I$19,$A$7:$A$19,$A48)+SUMIFS(I$27:I$39,$A$27:$A$39,$A48) -> 0 | J48: 0 | L48: =IF(I48=0,0,(B48-I48)/I48) -> 0 | M48: =IF(K48=0,0,(H48-K48)/K48) -> 0
A49: Drammen - Bærum | B49: 0 | C49: 0 | D49: 0 | E49: 0 | F49: 0 | G49: 0 | H49: 0 | I49: 0 | J49: 0 | K49: 0 | L49: 0 | M49: 0
A50: Haugesund | B50: 0 | C50: 0 | D50: 0 | E50: 0 | F50: 0 | G50: 0 | H50: 0 | I50: 0 | J50: 0 | L50: 0 | M50: 0
A51: Hamar og Omegn | B51: 0 | C51: 0 | D51: 0 | E51: 0 | F51: 0 | G51: 0 | H51: 0 | I51: 0 | J51: 0 | K51: 0 | L51: 0 | M51: 0
A52: Sandnes | B52: 0 | C52: 0 | D52: 0 | E52: 0 | F52: =IF(D52=0,0,B52/D52) -> 0 | G52: 0 | H52: =IF(D52+E52=0,0,(B52+C52)/(D52+E52)) -> 0 | I52: 0 | J52: 0 | K52: 0 | L52: 0 | M52: 0
A53: Stavanger | B53: 869027.77 | C53: 0 | D53: 2687 | E53: 0 | F53: 323.4193413 | G53: 0 | H53: 323.4193413 | I53: 1770155 | J53: 0 | K53: 321.06 | L53: -0.5090668501 | M53: 0.007348599242
A54: Telemark | B54: 0 | C54: 0 | D54: 0 | E54: 0 | F54: 0 | G54: 0 | H54: 0 | I54: 0 | J54: 0 | L54: 0 | M54: 0
A55: Trondheim | B55: 4188488.73 | C55: 0 | D55: 14233.06 | E55: 0 | F55: 294.2788641 | G55: 0 | H55: 294.2788641 | I55: 6795665.41 | J55: 973441.9 | K55: 281.99 | L55: -0.3836528909 | M55: 0.04357907776
A56: Vestfold | B56: 0 | C56: 0 | D56: 0 | E56: 0 | F56: =IF(D56=0,0,B56/D56) -> 0 | G56: 0 | H56: 0 | I56: 0 | J56: 0 | L56: 0 | M56: 0
A57: Østfold | B57: 3634530 | C57: 0 | D57: 10416 | E57: =SUMIFS(E$7:E$19,$A$7:$A$19,$A57)+SUMIFS(E$27:E$39,$A$27:$A$39,$A57) -> 0 | F57: =IF(D57=0,0,B57/D57) -> 348.937212 | G57: 0 | H57: 348.937212 | I57: 3777445 | J57: 0 | K57: 348.86 | L57: -0.03783377389 | M57: 0.0002213265538
A58: Oslo | B58: 20856078 | C58: 510472 | D58: 62751 | E58: 2229 | F58: 332.3624803 | G58: 229.0139076 | H58: 328.8173284 | I58: 22311849 | J58: 234550 | K58: 320.95 | L58: -0.06524654232 | M58: 0.02451262941
A59: Landet i alt | B59: =SUM(B47:B58) -> 29713789.32 | C59: =SUM(C47:C58) -> 510472 | D59: =SUM(D47:D58) -> 90539.06 | E59: =SUM(E47:E58) -> 2229 | F59: =IF(D59=0,0,B59/D59) -> 328.1875173 | G59: =IF(E59=0,0,C59/E59) -> 229.0139076 | H59: =IF(D59+E59=0,0,(B59+C59)/(D59+E59)) -> 325.8046069 | I59: =SUM(I47:I58) -> 34655114.41 | J59: =SUM(J47:J58) -> 1207991.9 | K59: 314.2 | L59: =IF(I59=0,0,(B59-I59)/I59) -> -0.1425857388 | M59: =IF(K59=0,0,(H59-K59)/K59) -> 0.03693382205

Sheet BLIKK OG VENTILASJON
A2: ="MÅLESTATISTIKK FOR BLIKK- OG VENTILASJONSARBEID - 1. HALVÅR "&FORS!$A$14 -> MÅLESTATISTIKK FOR BLIKK- OG VENTILASJONSARBEID - 1. HALVÅR 2020
B4: Målesum i kroner | D4: Timer | F4: ="Fortjeneste 1. halvår "&FORS!$A$14-0 -> Fortjeneste 1. halvår 2020 | I4: =" 1. halvår "&FORS!$A$14-1 -> 1. halvår 2019 | L4: Endringer i %
B5: Innmålt m/ | C5: Innmålt m/ | D5: Innmålt m/ | E5: Innmålt m/ | F5: Innmålt m/ | G5: Innmålt m/ | H5: Gjennom- | I5: Innmålt m/ | J5: Innmålt m/ | K5: Gjen.snitt | L5: Innmålt m/ | M5: Gjen.snitt
B6: overskudd | C6: underskudd | D6: overskudd | E6: underskudd | F6: overskudd | G6: underskudd | H6: snitt | I6: overskudd | J6: underskudd | K6: fortjeneste | L6: overskudd | M6: fortjeneste
A7: Agder | F7: =IF(D7=0,0,B7/D7) -> 0 | G7: =IF(E7=0,0,C7/E7) -> 0 | H7: =IF(D7+E7=0,0,(B7+C7)/(D7+E7)) -> 0 | L7: =IF(I7=0,0,(B7-I7)/I7) -> 0 | M7: =IF(K7=0,0,(H7-K7)/K7) -> 0
A8: Bergen | F8: =IF(D8=0,0,B8/D8) -> 0 | G8: 0 | H8: =IF(D8+E8=0,0,(B8+C8)/(D8+E8)) -> 0 | L8: =IF(I8=0,0,(B8-I8)/I8) -> 0 | M8: =IF(K8=0,0,(H8-K8)/K8) -> 0
A9: Drammen - Bærum | F9: 0 | G9: 0 | H9: 0 | L9: 0 | M9: 0
A10: Haugesund | F10: 0 | G10: 0 | H10: 0 | L10: 0 | M10: 0
A11: Hamar og Omegn | F11: 0 | G11: 0 | H11: 0 | L11: 0 | M11: 0
A12: Sandnes | F12: 0 | G12: 0 | H12: 0 | L12: 0 | M12: 0
A13: Stavanger | F13: 0 | G13: 0 | H13: 0 | L13: 0 | M13: 0
A14: Telemark | F14: 0 | G14: 0 | H14: 0 | L14: 0 | M14: 0
A15: Trondheim | C15: 0 | F15: 0 | G15: 0 | H15: 0 | L15: 0 | M15: 0
A16: Vestfold | F16: 0 | G16: 0 | H16: 0 | L16: 0 | M16: 0
A17: Østfold | F17: 0 | G17: 0 | H17: 0 | L17: 0 | M17: 0
A18: Oslo | F18: 0 | G18: 0 | H18: 0 | L18: 0 | M18: 0
A19: Landet i alt | B19: =SUM(B7:B18) -> 0 | C19: =SUM(C7:C18) -> 0 | D19: =SUM(D7:D18) -> 0 | E19: =SUM(E7:E18) -> 0 | F19: =IF(D19=0,0,B19/D19) -> 0 | G19: =IF(E19=0,0,C19/E19) -> 0 | H19: =IF(D19+E19=0,0,(B19+C19)/(D19+E19)) -> 0 | I19: =SUM(I7:I18) -> 0 | J19: =SUM(J7:J18) -> 0 | L19: =IF(I19=0,0,(B19-I19)/I19) -> 0 | M19: =IF(K19=0,0,(H19-K19)/K19) -> 0
A22: ="MÅLESTATISTIKK FOR BLIKK- OG VENTILASJONSARBEID - 2. HALVÅR "&FORS!$A$14 -> MÅLESTATISTIKK FOR BLIKK- OG VENTILASJONSARBEID - 2. HALVÅR 2020
B24: Målesum i kroner | D24: Timer | F24: ="Fortjeneste 2. halvår "&FORS!$A$14-0 -> Fortjeneste 2. halvår 2020 | I24: =" 2. halvår "&FORS!$A$14-1 -> 2. halvår 2019 | L24: Endringer i %
B25: Innmålt m/ | C25: Innmålt m/ | D25: Innmålt m/ | E25: Innmålt m/ | F25: Innmålt m/ | G25: Innmålt m/ | H25: Gjennom- | I25: Innmålt m/ | J25: Innmålt m/ | K25: Gjen.snitt | L25: Innmålt m/ | M25: Gjen.snitt
B26: overskudd | C26: underskudd | D26: overskudd | E26: underskudd | F26: overskudd | G26: underskudd | H26: snitt | I26: overskudd | J26: underskudd | K26: fortjeneste | L26: overskudd | M26: fortjeneste
A27: Agder | F27: =IF(D27=0,0,B27/D27) -> 0 | G27: 0 | H27: =IF(D27+E27=0,0,(B27+C27)/(D27+E27)) -> 0 | L27: =IF(I27=0,0,(B27-I27)/I27) -> 0 | M27: =IF(K27=0,0,(H27-K27)/K27) -> 0
A28: Bergen | F28: 0 | G28: 0 | H28: =IF(D28+E28=0,0,(B28+C28)/(D28+E28)) -> 0 | L28: =IF(I28=0,0,(B28-I28)/I28) -> 0 | M28: =IF(K28=0,0,(H28-K28)/K28) -> 0
A29: Drammen - Bærum | F29: 0 | G29: 0 | H29: 0 | L29: 0 | M29: 0
A30: Haugesund | F30: 0 | G30: 0 | H30: 0 | L30: 0 | M30: 0
A31: Hamar og Omegn | F31: 0 | G31: 0 | H31: 0 | L31: 0 | M31: 0
A32: Sandnes | F32: 0 | G32: 0 | H32: 0 | L32: 0 | M32: 0
A33: Stavanger | F33: 0 | G33: 0 | H33: 0 | L33: 0 | M33: 0
A34: Telemark | F34: 0 | G34: 0 | H34: 0 | L34: 0 | M34: 0
A35: Trondheim | B35: 247052.49 | C35: 0 | D35: 904.9 | F35: 273.0163443 | G35: 0 | H35: 273.0163443 | L35: 0 | M35: 0
A36: Vestfold | F36: 0 | G36: 0 | H36: 0 | L36: 0 | M36: 0
A37: Østfold | C37: 0 | F37: 0 | G37: 0 | H37: 0 | L37: 0 | M37: 0
A38: Oslo | F38: 0 | G38: 0 | H38: 0 | L38: 0 | M38: 0
A39: Landet i alt | B39: =SUM(B27:B38) -> 247052.49 | C39: =SUM(C27:C38) -> 0 | D39: =SUM(D27:D38) -> 904.9 | E39: =SUM(E27:E38) -> 0 | F39: =IF(D39=0,0,B39/D39) -> 273.0163443 | G39: =IF(E39=0,0,C39/E39) -> 0 | H39: =IF(D39+E39=0,0,(B39+C39)/(D39+E39)) -> 273.0163443 | I39: =SUM(I27:I38) -> 0 | J39: =SUM(J27:J38) -> 0 | L39: 0 | M39: 0
A42: ="MÅLESTATISTIKK FOR BLIKK- OG VENTILASJONSARBEID - GJENNOMSNITT HELE ÅRET "&FORS!$A$14 -> MÅLESTATISTIKK FOR BLIKK- OG VENTILASJONSARBEID - GJENNOMSNITT HELE ÅRET 2020
B44: Målesum i kroner | D44: Timer | F44: ="Fortjeneste hele "&FORS!$A$14-0 -> Fortjeneste hele 2020 | I44: =" Hele året "&FORS!$A$14-1 -> Hele året 2019 | L44: Endringer i %
B45: Innmålt m/ | C45: Innmålt m/ | D45: Innmålt m/ | E45: Innmålt m/ | F45: Innmålt m/ | G45: Innmålt m/ | H45: Gjennom- | I45: Innmålt m/ | J45: Innmålt m/ | K45: Gjen.snitt | L45: Innmålt m/ | M45: Gjen.snitt
B46: overskudd | C46: underskudd | D46: overskudd | E46: underskudd | F46: overskudd | G46: underskudd | H46: snitt | I46: overskudd | J46: underskudd | K46: fortjeneste | L46: overskudd | M46: fortjeneste
A47: Agder | B47: =SUMIFS(B$7:B$19,$A$7:$A$19,$A47)+SUMIFS(B$27:B$39,$A$27:$A$39,$A47) -> 0 | C47: =SUMIFS(C$7:C$19,$A$7:$A$19,$A47)+SUMIFS(C$27:C$39,$A$27:$A$39,$A47) -> 0 | D47: 0 | E47: 0 | F47: =IF(D47=0,0,B47/D47) -> 0 | G47: =IF(E47=0,0,C27/E47) -> 0 | H47: =IF(D47+E47=0,0,(B47+C47)/(D47+E47)) -> 0 | I47: =SUMIFS(I$7:I$19,$A$7:$A$19,$A47)+SUMIFS(I$27:I$39,$A$27:$A$39,$A47) -> 0 | J47: =SUMIFS(J$7:J$19,$A$7:$A$19,$A47)+SUMIFS(J$27:J$39,$A$27:$A$39,$A47) -> 0 | L47: =IF(I47=0,0,(B47-I47)/I47) -> 0 | M47: =IF(K47=0,0,(H47-K47)/K47) -> 0
A48: Bergen | B48: =SUMIFS($B$7:$B$19,$A$7:$A$19,A48)+SUMIFS($B$27:$B$39,$A$27:$A$39,A48) -> 0 | C48: 0 | D48: 0 | E48: 0 | F48: =IF(D48=0,0,B48/D48) -> 0 | G48: 0 | H48: =IF(D48+E48=0,0,(B48+C48)/(D48+E48)) -> 0 | I48: =SUMIFS(I$7:I$19,$A$7:$A$19,$A48)+SUMIFS(I$27:I$39,$A$27:$A$39,$A48) -> 0 | J48: 0 | L48: =IF(I48=0,0,(B48-I48)/I48) -> 0 | M48: =IF(K48=0,0,(H48-K48)/K48) -> 0
A49: Drammen - Bærum | B49: 0 | C49: 0 | D49: 0 | E49: 0 | F49: 0 | G49: 0 | H49: 0 | I49: 0 | J49: 0 | L49: 0 | M49: 0
A50: Haugesund | B50: 0 | C50: 0 | D50: 0 | E50: 0 | F50: 0 | G50: 0 | H50: 0 | I50: 0 | J50: 0 | L50: 0 | M50: 0
A51: Hamar og Omegn | B51: 0 | C51: 0 | D51: 0 | E51: 0 | F51: 0 | G51: 0 | H51: 0 | I51: 0 | J51: 0 | L51: 0 | M51: 0
A52: Sandnes | B52: 0 | C52: 0 | D52: 0 | E52: 0 | F52: =IF(D52=0,0,B52/D52) -> 0 | G52: 0 | H52: =IF(D52+E52=0,0,(B52+C52)/(D52+E52)) -> 0 | I52: 0 | J52: 0 | L52: 0 | M52: 0
A53: Stavanger | B53: 0 | C53: 0 | D53: 0 | E53: 0 | F53: 0 | G53: 0 | H53: 0 | I53: 0 | J53: 0 | L53: 0 | M53: 0
A54: Telemark | B54: 0 | C54: 0 | D54: 0 | E54: 0 | F54: 0 | G54: 0 | H54: 0 | I54: 0 | J54: 0 | L54: 0 | M54: 0
A55: Trondheim | B55: 247052.49 | C55: 0 | D55: 904.9 | E55: 0 | F55: 273.0163443 | G55: 0 | H55: 273.0163443 | I55: 0 | J55: 0 | L55: 0 | M55: 0
A56: Vestfold | B56: 0 | C56: 0 | D56: 0 | E56: 0 | F56: =IF(D56=0,0,B56/D56) -> 0 | G56: 0 | H56: 0 | I56: 0 | J56: 0 | L56: 0 | M56: 0
A57: Østfold | B57: 0 | C57: 0 | D57: 0 | E57: =SUMIFS(E$7:E$19,$A$7:$A$19,$A57)+SUMIFS(E$27:E$39,$A$27:$A$39,$A57) -> 0 | F57: =IF(D57=0,0,B57/D57) -> 0 | G57: 0 | H57: 0 | I57: 0 | J57: 0 | L57: 0 | M57: 0
A58: Oslo | B58: 0 | C58: 0 | D58: 0 | E58: 0 | F58: 0 | G58: 0 | H58: 0 | I58: 0 | J58: 0 | L58: 0 | M58: 0
A59: Landet i alt | B59: =SUM(B47:B58) -> 247052.49 | C59: =SUM(C47:C58) -> 0 | D59: =SUM(D47:D58) -> 904.9 | E59: =SUM(E47:E58) -> 0 | F59: =IF(D59=0,0,B59/D59) -> 273.0163443 | G59: =IF(E59=0,0,C59/E59) -> 0 | H59: =IF(D59+E59=0,0,(B59+C59)/(D59+E59)) -> 273.0163443 | I59: =SUM(I47:I58) -> 0 | J59: =SUM(J47:J58) -> 0 | L59: =IF(I59=0,0,(B59-I59)/I59) -> 0 | M59: =IF(K59=0,0,(H59-K59)/K59) -> 0

Sheet ISOLATØR
A2: ="MÅLESTATISTIKK FOR ISOLATØRER - 1. HALVÅR "&FORS!$A$14 -> MÅLESTATISTIKK FOR ISOLATØRER - 1. HALVÅR 2020
B4: Målesum i kroner | D4: Timer | F4: ="Fortjeneste 1. halvår "&FORS!$A$14-0 -> Fortjeneste 1. halvår 2020 | I4: =" 1. halvår "&FORS!$A$14-1 -> 1. halvår 2019 | L4: Endringer i %
B5: Innmålt m/ | C5: Innmålt m/ | D5: Innmålt m/ | E5: Innmålt m/ | F5: Innmålt m/ | G5: Innmålt m/ | H5: Gjennom- | I5: Innmålt m/ | J5: Innmålt m/ | K5: Gjen.snitt | L5: Innmålt m/ | M5: Gjen.snitt
B6: overskudd | C6: underskudd | D6: overskudd | E6: underskudd | F6: overskudd | G6: underskudd | H6: snitt | I6: overskudd | J6: underskudd | K6: fortjeneste | L6: overskudd | M6: fortjeneste
A7: Agder | F7: =IF(D7=0,0,B7/D7) -> 0 | G7: =IF(E7=0,0,C7/E7) -> 0 | H7: =IF(D7+E7=0,0,(B7+C7)/(D7+E7)) -> 0 | L7: =IF(I7=0,0,(B7-I7)/I7) -> 0 | M7: =IF(K7=0,0,(H7-K7)/K7) -> 0
A8: Bergen | F8: =IF(D8=0,0,B8/D8) -> 0 | G8: 0 | H8: =IF(D8+E8=0,0,(B8+C8)/(D8+E8)) -> 0 | L8: =IF(I8=0,0,(B8-I8)/I8) -> 0 | M8: =IF(K8=0,0,(H8-K8)/K8) -> 0
A9: Drammen - Bærum | F9: 0 | G9: 0 | H9: 0 | L9: 0 | M9: 0
A10: Haugesund | F10: 0 | G10: 0 | H10: 0 | L10: 0 | M10: 0
A11: Hamar og Omegn | F11: 0 | G11: 0 | H11: 0 | L11: 0 | M11: 0
A12: Sandnes | F12: 0 | G12: 0 | H12: 0 | L12: 0 | M12: 0
A13: Stavanger | F13: 0 | G13: 0 | H13: 0 | L13: 0 | M13: 0
A14: Telemark | F14: 0 | G14: 0 | H14: 0 | L14: 0 | M14: 0
A15: Trondheim | F15: 0 | G15: 0 | H15: 0 | L15: 0 | M15: 0
A16: Vestfold | F16: 0 | G16: 0 | H16: 0 | L16: 0 | M16: 0
A17: Østfold | F17: 0 | G17: 0 | H17: 0 | L17: 0 | M17: 0
A18: Oslo | F18: 0 | G18: 0 | H18: 0 | L18: 0 | M18: 0
A19: Landet i alt | B19: =SUM(B7:B18) -> 0 | C19: =SUM(C7:C18) -> 0 | D19: =SUM(D7:D18) -> 0 | E19: =SUM(E7:E18) -> 0 | F19: =IF(D19=0,0,B19/D19) -> 0 | G19: =IF(E19=0,0,C19/E19) -> 0 | H19: =IF(D19+E19=0,0,(B19+C19)/(D19+E19)) -> 0 | I19: =SUM(I7:I18) -> 0 | J19: =SUM(J7:J18) -> 0 | L19: =IF(I19=0,0,(B19-I19)/I19) -> 0 | M19: =IF(K19=0,0,(H19-K19)/K19) -> 0
A22: ="MÅLESTATISTIKK FOR ISOLATØRER - 2. HALVÅR "&FORS!$A$14 -> MÅLESTATISTIKK FOR ISOLATØRER - 2. HALVÅR 2020
B24: Målesum i kroner | D24: Timer | F24: ="Fortjeneste 2. halvår "&FORS!$A$14-0 -> Fortjeneste 2. halvår 2020 | I24: =" 2. halvår "&FORS!$A$14-1 -> 2. halvår 2019 | L24: Endringer i %
B25: Innmålt m/ | C25: Innmålt m/ | D25: Innmålt m/ | E25: Innmålt m/ | F25: Innmålt m/ | G25: Innmålt m/ | H25: Gjennom- | I25: Innmålt m/ | J25: Innmålt m/ | K25: Gjen.snitt | L25: Innmålt m/ | M25: Gjen.snitt
B26: overskudd | C26: underskudd | D26: overskudd | E26: underskudd | F26: overskudd | G26: underskudd | H26: snitt | I26: overskudd | J26: underskudd | K26: fortjeneste | L26: overskudd | M26: fortjeneste
A27: Agder | F27: =IF(D27=0,0,B27/D27) -> 0 | G27: 0 | H27: =IF(D27+E27=0,0,(B27+C27)/(D27+E27)) -> 0 | L27: =IF(I27=0,0,(B27-I27)/I27) -> 0 | M27: =IF(K27=0,0,(H27-K27)/K27) -> 0
A28: Bergen | F28: 0 | G28: 0 | H28: =IF(D28+E28=0,0,(B28+C28)/(D28+E28)) -> 0 | L28: =IF(I28=0,0,(B28-I28)/I28) -> 0 | M28: =IF(K28=0,0,(H28-K28)/K28) -> 0
A29: Drammen - Bærum | F29: 0 | G29: 0 | H29: 0 | L29: 0 | M29: 0
A30: Haugesund | F30: 0 | G30: 0 | H30: 0 | L30: 0 | M30: 0
A31: Hamar og Omegn | F31: 0 | G31: 0 | H31: 0 | L31: 0 | M31: 0
A32: Sandnes | F32: 0 | G32: 0 | H32: 0 | L32: 0 | M32: 0
A33: Stavanger | F33: 0 | G33: 0 | H33: 0 | L33: 0 | M33: 0
A34: Telemark | F34: 0 | G34: 0 | H34: 0 | L34: 0 | M34: 0
A35: Trondheim | F35: 0 | G35: 0 | H35: 0 | L35: 0 | M35: 0
A36: Vestfold | F36: 0 | G36: 0 | H36: 0 | L36: 0 | M36: 0
A37: Østfold | C37: 0 | F37: 0 | G37: 0 | H37: 0 | L37: 0 | M37: 0
A38: Oslo | F38: 0 | G38: 0 | H38: 0 | L38: 0 | M38: 0
A39: Landet i alt | B39: =SUM(B27:B38) -> 0 | C39: =SUM(C27:C38) -> 0 | D39: =SUM(D27:D38) -> 0 | E39: =SUM(E27:E38) -> 0 | F39: =IF(D39=0,0,B39/D39) -> 0 | G39: =IF(E39=0,0,C39/E39) -> 0 | H39: =IF(D39+E39=0,0,(B39+C39)/(D39+E39)) -> 0 | I39: =SUM(I27:I38) -> 0 | J39: =SUM(J27:J38) -> 0 | L39: 0 | M39: 0
A42: ="MÅLESTATISTIKK FOR ISOLATØRER - GJENNOMSNITT HELE ÅRET "&FORS!$A$14 -> MÅLESTATISTIKK FOR ISOLATØRER - GJENNOMSNITT HELE ÅRET 2020
B44: Målesum i kroner | D44: Timer | F44: ="Fortjeneste hele "&FORS!$A$14-0 -> Fortjeneste hele 2020 | I44: =" Hele året "&FORS!$A$14-1 -> Hele året 2019 | L44: Endringer i %
B45: Innmålt m/ | C45: Innmålt m/ | D45: Innmålt m/ | E45: Innmålt m/ | F45: Innmålt m/ | G45: Innmålt m/ | H45: Gjennom- | I45: Innmålt m/ | J45: Innmålt m/ | K45: Gjen.snitt | L45: Innmålt m/ | M45: Gjen.snitt
B46: overskudd | C46: underskudd | D46: overskudd | E46: underskudd | F46: overskudd | G46: underskudd | H46: snitt | I46: overskudd | J46: underskudd | K46: fortjeneste | L46: overskudd | M46: fortjeneste
A47: Agder | B47: =SUMIFS(B$7:B$19,$A$7:$A$19,$A47)+SUMIFS(B$27:B$39,$A$27:$A$39,$A47) -> 0 | C47: =SUMIFS(C$7:C$19,$A$7:$A$19,$A47)+SUMIFS(C$27:C$39,$A$27:$A$39,$A47) -> 0 | D47: 0 | E47: 0 | F47: =IF(D47=0,0,B47/D47) -> 0 | G47: =IF(E47=0,0,C27/E47) -> 0 | H47: =IF(D47+E47=0,0,(B47+C47)/(D47+E47)) -> 0 | I47: =SUMIFS(I$7:I$19,$A$7:$A$19,$A47)+SUMIFS(I$27:I$39,$A$27:$A$39,$A47) -> 0 | J47: =SUMIFS(J$7:J$19,$A$7:$A$19,$A47)+SUMIFS(J$27:J$39,$A$27:$A$39,$A47) -> 0 | L47: =IF(I47=0,0,(B47-I47)/I47) -> 0 | M47: =IF(K47=0,0,(H47-K47)/K47) -> 0
A48: Bergen | B48: =SUMIFS($B$7:$B$19,$A$7:$A$19,A48)+SUMIFS($B$27:$B$39,$A$27:$A$39,A48) -> 0 | C48: 0 | D48: 0 | E48: 0 | F48: =IF(D48=0,0,B48/D48) -> 0 | G48: 0 | H48: =IF(D48+E48=0,0,(B48+C48)/(D48+E48)) -> 0 | I48: =SUMIFS(I$7:I$19,$A$7:$A$19,$A48)+SUMIFS(I$27:I$39,$A$27:$A$39,$A48) -> 0 | J48: 0 | L48: =IF(I48=0,0,(B48-I48)/I48) -> 0 | M48: =IF(K48=0,0,(H48-K48)/K48) -> 0
A49: Drammen - Bærum | B49: 0 | C49: 0 | D49: 0 | E49: 0 | F49: 0 | G49: 0 | H49: 0 | I49: 0 | J49: 0 | L49: 0 | M49: 0
A50: Haugesund | B50: 0 | C50: 0 | D50: 0 | E50: 0 | F50: 0 | G50: 0 | H50: 0 | I50: 0 | J50: 0 | L50: 0 | M50: 0
A51: Hamar og Omegn | B51: 0 | C51: 0 | D51: 0 | E51: 0 | F51: 0 | G51: 0 | H51: 0 | I51: 0 | J51: 0 | L51: 0 | M51: 0
A52: Sandnes | B52: 0 | C52: 0 | D52: 0 | E52: 0 | F52: =IF(D52=0,0,B52/D52) -> 0 | G52: 0 | H52: =IF(D52+E52=0,0,(B52+C52)/(D52+E52)) -> 0 | I52: 0 | J52: 0 | L52: 0 | M52: 0
A53: Stavanger | B53: 0 | C53: 0 | D53: 0 | E53: 0 | F53: 0 | G53: 0 | H53: 0 | I53: 0 | J53: 0 | L53: 0 | M53: 0
A54: Telemark | B54: 0 | C54: 0 | D54: 0 | E54: 0 | F54: 0 | G54: 0 | H54: 0 | I54: 0 | J54: 0 | L54: 0 | M54: 0
A55: Trondheim | B55: 0 | C55: 0 | D55: 0 | E55: 0 | F55: 0 | G55: 0 | H55: 0 | I55: 0 | J55: 0 | L55: 0 | M55: 0
A56: Vestfold | B56: 0 | C56: 0 | D56: 0 | E56: 0 | F56: =IF(D56=0,0,B56/D56) -> 0 | G56: 0 | H56: 0 | I56: 0 | J56: 0 | L56: 0 | M56: 0
A57: Østfold | B57: 0 | C57: 0 | D57: 0 | E57: =SUMIFS(E$7:E$19,$A$7:$A$19,$A57)+SUMIFS(E$27:E$39,$A$27:$A$39,$A57) -> 0 | F57: =IF(D57=0,0,B57/D57) -> 0 | G57: 0 | H57: 0 | I57: 0 | J57: 0 | L57: 0 | M57: 0
A58: Oslo | B58: 0 | C58: 0 | D58: 0 | E58: 0 | F58: 0 | G58: 0 | H58: 0 | I58: 0 | J58: 0 | L58: 0 | M58: 0
A59: Landet i alt | B59: =SUM(B47:B58) -> 0 | C59: =SUM(C47:C58) -> 0 | D59: =SUM(D47:D58) -> 0 | E59: =SUM(E47:E58) -> 0 | F59: =IF(D59=0,0,B59/D59) -> 0 | G59: =IF(E59=0,0,C59/E59) -> 0 | H59: =IF(D59+E59=0,0,(B59+C59)/(D59+E59)) -> 0 | I59: =SUM(I47:I58) -> 0 | J59: =SUM(J47:J58) -> 0 | L59: =IF(I59=0,0,(B59-I59)/I59) -> 0 | M59: =IF(K59=0,0,(H59-K59)/K59) -> 0
